{"text_format":"1","workbook":"xlsx","n_sheets":4,"sheets":["NewTab","Index","DE100_0A","DE113_10"],"not_rendered":{"charts":0,"images":0,"macros":1,"external_links":1,"defined_names":6,"comments":1,"pivot_tables":0},"unopened":[],"bounds":{"document_bytes":16777216,"sheet_cells":100000,"rows_first":2000,"rows_last":500,"rows_between":2000,"halvings":0,"cell_chars":16384,"cell_head_chars":4096},"cells_cut":0,"cells_raw":0,"read":"whole","date_system":"1900"}

{"sheet":"NewTab","index":0,"n_rows":17,"n_cols":2,"rows_kept":17,"cut":false,"hidden":true,"merged":[]}
["TabTitle",{"$f":"C15","v":0}]
["Number of Tab Columns"]
["DE Starter Row Number"]
["TabSheet Starter Row Number"]
["TabSheet Header Row Count"]
["Top Header Cell"]
["Bottom Header Cell"]
["DESheet Row Count",0]
["Fixed Empty Rows",10]
["Usable Empty Rows",0]
["Total Rows Placed",0]
["Total Rows Needed",{"$f":"SUM(B8:B10)","v":10}]
["Last Tab DE Starter Row",0]
["Last Tab TabSheet Starter Row",0]
["Last Copy Starter Row",0]
["Tab Loop Number",0]
["Revision Date"]

{"sheet":"Index","index":1,"n_rows":123,"n_cols":2,"rows_kept":123,"cut":false,"hidden":true,"merged":[]}
["100-0A","1997-10-28"]
["100-1A","1997-07-15"]
["100-1B","2002-10-29"]
["100-1C","1997-07-15"]
["100-1D","2005-10-18"]
["100-4A","2002-10-29"]
["100-7","2010-04-20"]
["100-11","1998-10-27"]
["100-12","2001-04-03"]
["100-12A","1989-02-28"]
["100-13","2010-04-20"]
["100-14","2010-04-20"]
["100-15","2010-04-20"]
["100-16","2009-04-21"]
["100-17","2010-04-20"]
["100-18","2010-04-20"]
["102-3","2010-04-20"]
["102-4","2010-04-20"]
["102-5","2002-10-29"]
["102-5A","2004-04-20"]
["102-6C","2004-10-19"]
["102-10","1993-06-15"]
["102-11","2001-10-02"]
["102-12","2001-10-02"]
["102-13","1993-02-23"]
["102-13A","2002-10-29"]
["102-14","2002-10-29"]
["102-15","2002-10-29"]
["102-16","2000-10-03"]
["103-1","1981-05-22"]
["103-3","2002-10-29"]
["103-4","1998-10-27"]
["103-5","2006-10-17"]
["103-6","1981-05-22"]
["103-7","2008-04-15"]
["104-3  ","2009-10-20"]
["104-3A ","2005-04-19"]
["104-4","2009-10-20"]
["104-5","---"]
["104-5A","2010-04-20"]
["104-5B","2010-04-20"]
["104-5C","2004-04-20"]
["104-8","2006-10-17"]
["104-8A","2010-04-20"]
["104-9","2009-10-20"]
["104-10","2002-10-29"]
["104-11","2002-10-29"]
["104-12","2002-10-29"]
["105-1","1994-09-27"]
["105-3","2005-10-18"]
["105-4","2010-04-20"]
["106-1","2002-10-29"]
["106-2","2002-10-29"]
["106-3","2002-10-29"]
["106-4","1986-04-01"]
["106-5","1986-04-01"]
["106-7","1993-10-22"]
["106-8","1993-02-23"]
["107-5","1987-07-21"]
["107-7","1985-08-20"]
["107-20","1989-04-04"]
["107-21","1968-06-20"]
["107-22","1976-06-25"]
["107-23","2010-04-20"]
["107-24","2008-04-15"]
["107-25","1982-02-12"]
["107-26","1983-11-10"]
["107-27A","2001-04-03"]
["107-27B","2001-04-03"]
["107-28","2001-04-03"]
["107-29","2001-04-03"]
["107-30","2001-04-03"]
["108-1","2000-02-11"]
["108-2","1985-08-20"]
["108-2A","2002-10-29"]
["108-8A","2010-04-20"]
["108-8B","2010-04-20"]
["108-8D","2010-04-20"]
["108-9","---"]
["108-9A","2010-04-20"]
["108-11","1985-08-20"]
["108-11A","2002-10-29"]
["108-12","2000-02-11"]
["108-13A","1997-10-28"]
["108-15","1974-08-30"]
["108-16","2002-10-29"]
["108-17","---"]
["108-18","2010-04-20"]
["108-18B","2010-04-20"]
["108-22","2010-04-20"]
["108-23","1989-04-04"]
["108-23A","2002-10-29"]
["108-24","1997-10-28"]
["108-25","---"]
["108-26","1988-08-30"]
["108-26A","2002-10-29"]
["108-27","1996-04-30"]
["108-28","2006-04-18"]
["108-29","1998-04-28"]
["108-30","2010-04-20"]
["108-31","---"]
["108-32","---"]
["108-33","2008-04-15"]
["108-34","2009-10-20"]
["110-1","2005-04-19"]
["110-2","1972-10-13"]
["110-3","1985-08-20"]
["110-4","1995-03-28"]
["110-5","1972-10-13"]
["110-6","1984-06-22"]
["111-2","1989-02-28"]
["111-22","1989-02-28"]
["111-23","2002-10-29"]
["111-25","2009-04-21"]
["112-3","1971-03-19"]
["112-4","2010-04-20"]
["112-5","1980-04-18"]
["112-6","2008-10-21"]
["112-6A","---"]
["112-7","2005-10-18"]
["112-8 ","2010-04-20"]
["112-9 ","2009-04-21"]
["112-10","2010-04-20"]

{"sheet":"DE100_0A","index":2,"n_rows":21,"n_cols":15,"rows_kept":21,"cut":false,"hidden":false,"merged":[[20,13,21,13],[14,2,17,7],[14,9,14,14],[15,9,15,14],[16,9,19,14],[18,2,18,7],[19,2,20,2],[19,3,20,3],[19,4,20,4],[19,5,20,5],[19,6,20,6],[20,14,21,14],[19,7,20,7],[20,9,21,9],[20,10,21,10],[20,11,21,11],[20,12,21,12]]}
["TabTitle",{"$f":"C15","v":"ESTIMATED ROADWAY QUANTITIES\n(1 DIVISION PROJECT)"}]
["Number of Tab Columns",6]
["DE Starter Row Number",22]
["TabSheet Starter Row Number",9]
["TabSheet Header Row Count",8]
["Top Header Cell","J15"]
["Bottom Header Cell","O22"]
["DESheet Row Count",0]
["Fixed Empty Rows",2]
["Usable Empty Rows",0]
["Total Rows Placed",2,"xlCenter","xlCenter","xlLeft(1)","xlLeft(1)","xlRight(1)","xlRight(1)",null,{"$f":"C11","v":"xlCenter"},{"$f":"D11","v":"xlCenter"},"xlLeft(1)","xlLeft(1)","xlRight(1)","xlRight(1)"]
["Total Rows Needed",{"$f":"SUM(B8:B10)","v":2},"General","General","General","General","General","General",null,{"$f":"C12","v":"General"},"General","General","General","General","General"]
["Last Tab DE Starter Row",22,{"$f":"CELL(\"width\",C13)","v":12},16,83,11,16,16,null,{"$f":"CELL(\"width\",J13)","v":0},0,0,0,0,0]
["Last Tab Tabsheet Starter Row",9,"A","B","C","D","E","F",null,{"$f":"LOWER(C14)","v":"a"},{"$f":"LOWER(D14)","v":"b"},"c","d","e","f"]
["Last Copy Starter Row",1,"ESTIMATED ROADWAY QUANTITIES\n(1 DIVISION PROJECT)",null,null,null,null,null,null,"100-0A"]
["Tab Loop Number",2,null,null,null,null,null,null,null,{"$f":"B17","v":"1997-10-28"}]
["Revision Date","1997-10-28",null,null,null,null,null,null,null,{"$f":"C15","v":"ESTIMATED ROADWAY QUANTITIES\n(1 DIVISION PROJECT)"}]
["Tabulation Width",2]
["Horizontal Grid Lines","Yes",{"$f":"\"This Data Entry Sheet fills Tab \"&J15&\" effective \"&TEXT(B17,\"mm-dd-yy\")","v":"This Data Entry Sheet fills Tab 100-0A effective 10-28-97"}]
[null,null,"Item No.","Item Code","Item","Unit","Total","As Built Qty."]
[null,null,null,null,null,null,null,null,null,{"$f":"C20","v":"Item No."},{"$f":"D20","v":"Item Code"},{"$f":"E20","v":"Item"},"Unit",{"$f":"G20","v":"Total"},{"$f":"H20","v":"As Built Qty."}]

{"sheet":"DE113_10","index":3,"n_rows":6001,"n_cols":66,"rows_kept":1125,"cut":true,"hidden":false,"merged":[[21,21,25,21],[21,22,25,22],[21,23,26,23],[21,24,26,24],[21,25,26,25],[21,26,23,29],[24,26,26,26],[24,27,26,27],[24,28,26,28],[24,29,26,29],[21,15,26,15],[21,16,26,16],[21,17,25,17],[21,18,26,18],[21,19,25,19],[21,20,26,20],[21,8,26,9],[21,10,26,10],[21,11,26,11],[21,12,25,12],[21,13,25,13],[21,14,25,14],[17,2,17,29],[18,2,18,29],[19,2,19,29],[20,2,20,29],[21,2,26,2],[21,3,26,3],[21,4,26,4],[21,5,26,5],[21,6,26,6],[21,7,26,7],[3,13,8,18],[12,61,12,65],[14,2,15,29],[14,50,14,51],[14,52,14,53],[16,2,16,29]],"bounds":{"rows_first":500,"rows_last":125,"rows_between":500,"halvings":2}}
[]
[]
[]
[null,null,null,"Enter point information.",null,null,null,null,null,null,null,null,null,"Columns N:S don't need to be imported into Design Tabulations. They will recalculate when you import. If you do, Columns  \"O\" and \"S\" will give errors if slope values are not converted to decimal. For example 2.0% to 0.02."]
[null,null,null,"Will need filled out by designer."]
[null,null,null,"Automatically filled out from lookup list or formulas."]
[null,null,null,"Data will need copied to Design Tabulations CSV file."]
[]
[]
[]
[]
[]
[null,null,null,null,null,null,null,null,null,null,null,null,null,null,null,null,null,null,null,null,null,null,null,null,null,null,null,null,null,null,null,null,null,null,null,null,null,null,null,null,null,null,null,null,null,null,null,null,null,null,null,null,null,null,null,null,null,null,null,null,null,"Provides a count of errors to color code Point column in column C"]
[]
[null,null,"SIDEWALK COMPLIANCE",null,null,null,null,null,null,null,null,null,null,null,null,null,null,null,null,null,null,null,null,null,null,null,null,null,null,null,null,null,null,null,null,null,null,null,null,null,null,null,null,null,null,null,null,null,null,{"$f":"K22","v":"Sidewalk Designation"},"Min. Slope",null,"Max. Slope",null,"Range",null,{"$f":"AX15","v":"Sidewalk Designation"},"Typical Sidewalk Thickness",null,{"$f":"Y22","v":"Remarks"},null,{"$f":"\"Outside of \"&R22","v":"Outside of Legally Acceptable Range"},"Point 1","Point 2","Point","Count of Associated Errors"]
[null,null,null,null,null,null,null,null,null,null,null,null,null,null,null,null,null,null,null,null,null,null,null,null,null,null,null,null,null,null,null,null,null,null,null,null,null,null,null,null,null,null,null,null,null,null,null,null,null,"Crosswalk Cross Slope - No Yield Condition","0.0%",0,"5.0%",0.05,{"$f":"AY16&\" to \"&BA16","v":"0.0% to 5.0%"},null,"Crosswalk Cross Slope - No Yield Condition",6,null,"Drainage issues were considered",null,{"$f":"IF(AND($K28=$AX$18,AND(OR($O28<=$AZ$18,$O28>=$BB$18),OR($O28>=-$AZ$18,$O28<=-$BB$18))),\"Yes\",IF(AND($K28=$AX$20,AND(OR($O28<=$AZ$20,$O28>=$BB$20),OR($O28>=-$AZ$20,$O28<=-$BB$20))),\"Yes\",IF(AND($K28=$AX$21,AND(OR($O28<=$AZ$21,$O28>=$BB$21),OR($O28>=-$AZ$21,$O28<=-$BB$21))),\"Yes\",IF(AND($K28=$AX$22,AND(OR($O28<=$AZ$22,$O28>=$BB$22),OR($O28>=-$AZ$22,$O28<=-$BB$22))),\"Yes\",IF(AND($K28=$AX$23,AND(OR($O28<=$AZ$23,$O28>=$BB$23),OR($O28>=-$AZ$23,$O28<=-$BB$23))),\"Yes\",\"No\")))))","v":"No"},{"$f":"IF(BJ16=\"Yes\",I28,\"\")","v":""},{"$f":"IF(BJ16=\"Yes\",J28,\"\")","v":""},{"$f":"IF(C28<>\"\",C28,\"\")","v":""},{"$f":"COUNTIF($BK$16:$BL$1990,BM16)","v":3950}]
[null,null,"See S Sheets",null,null,null,null,null,null,null,null,null,null,null,null,null,null,null,null,null,null,null,null,null,null,null,null,null,null,null,null,null,null,null,null,null,null,null,null,null,null,null,null,null,null,null,null,null,null,"Crosswalk Cross Slope - Yield Condition","0.0%",0,"2.0%",0.02,{"$f":"AY17&\" to \"&BA17","v":"0.0% to 2.0%"},null,"Crosswalk Cross Slope - Yield Condition",6,null,"Proposed slope is maximum allowed",null,"No","","","",3950]
[null,null," *  Does not include curb",null,null,null,null,null,null,null,null,null,null,null,null,null,null,null,null,null,null,null,null,null,null,null,null,null,null,null,null,null,null,null,null,null,null,null,null,null,null,null,null,null,null,null,null,null,null,"Landing/Turning Space","0.1%",1E-3,"2.0%",0.02,{"$f":"AY18&\" to \"&BA18","v":"0.1% to 2.0%"},null,"Landing/Turning Space",4,null,"Slope required to match existing conditions",null,"No","","","",3950]
[null,null,"    Staking required by Contracting Authority per Article 2511.03 of the Standard Specifications.",null,null,null,null,null,null,null,null,null,null,null,null,null,null,null,null,null,null,null,null,null,null,null,null,null,null,null,null,null,null,null,null,null,null,null,null,null,null,null,null,null,null,null,null,null,null,"Match Existing Cross Slope","0.0%",0,null,null,"Match Existing",null,"Match Existing Cross Slope",4,null,"Transition cross slope",null,"No","","","",3950]
[null,null,"    Refer to tabulation 113-01 for bid quantities.",null,null,null,null,null,null,null,null,null,null,null,null,null,null,null,null,null,null,null,null,null,null,null,null,null,null,null,null,null,null,null,null,null,null,null,null,null,null,null,null,null,null,null,null,null,null,"Ramp Cross Slope","0.1%",1E-3,"2.0%",0.02,{"$f":"AY20&\" to \"&BA20","v":"0.1% to 2.0%"},null,"Ramp Cross Slope",6,null,"Length constructed must exceed 15 feet at a uniform running slope",null,"No","","","",3950]
[null,null,{"$f":"\"This Data Entry Sheet fills Tab \"&AF15&\" effective \"&TEXT(B17,\"mm-dd-yy\")","v":"This Data Entry Sheet fills Tab  effective 01-00-00"},null,null,null,null,null,null,null,null,null,null,null,null,null,null,null,null,null,null,null,null,null,null,null,null,null,null,null,null,null,null,null,null,null,null,null,null,null,null,null,null,null,null,null,null,null,null,"Ramp Running Slope","0.5%",5.0000000000000001E-3,"8.3%",8.3000000000000004E-2,{"$f":"AY21&\" to \"&BA21","v":"0.5% to 8.3%"},null,"Ramp Running Slope",6,null,"Match curb profile",null,"No","","","",3950]
[null,null,"Point","Station","Offset","Elevation","Starting Elevation","Ending Elevation","Point to Point",null,"Sidewalk Designation","Sidewalk Thickness (IN)","Distance*","Δ Elevation","Slope","Legally Acceptable Low Range","Legally Acceptable High Range","Legally Acceptable Range","Difference between Designed Slope and Maximum Legally Acceptable Range","Acceptable Constructed Range","Does Designer need to obtain design approval from Method's Engineer?","Staking Required on this Quadrant?","Measured Slope","Initials","Remarks",null,"FOR INFORMATION ONLY:\nVALUES USED TO DETERMINE DESIGNED SLOPES",null,null,null,null,null,null,null,null,null,null,null,null,null,null,null,null,null,null,null,null,null,null,"Sidewalk Cross Slope","0.5%",5.0000000000000001E-3,"2.0%",0.02,{"$f":"AY22&\" to \"&BA22","v":"0.5% to 2.0%"},null,"Sidewalk Cross Slope",4,null,"Match general street grade",null,"No","","","",3950]
[null,null,null,null,null,null,null,null,null,null,null,null,null,null,null,null,null,null,null,null,null,null,null,null,null,null,null,null,null,null,null,null,null,null,null,null,null,null,null,null,null,null,null,null,null,null,null,null,null,"Sidewalk Running Slope","0.5%",5.0000000000000001E-3,"5.0%",0.05,{"$f":"AY23&\" to \"&BA23","v":"0.5% to 5.0%"},null,"Sidewalk Running Slope",4,null,null,null,"No","","","",3950]
[null,null,null,null,null,null,null,null,null,null,null,null,null,null,null,null,null,null,null,null,null,null,null,null,null,null,null,null,null,null,null,null,null,null,null,null,null,null,null,null,null,null,null,null,null,null,null,null,null,null,null,null,null,null,null,null,null,null,null,null,null,"No","","","",3950]
[null,null,null,null,null,null,null,null,null,null,null,null,null,null,null,null,null,null,null,null,null,null,null,null,null,null,"Point","Station","Offset","Elevation",null,null,null,null,null,null,null,null,null,null,null,null,null,null,null,null,null,null,null,null,null,null,null,null,null,null,null,null,null,null,null,"No","","","",3950]
[null,null,null,null,null,null,null,null,null,null,null,null,null,null,null,null,null,null,null,null,null,null,null,null,null,null,null,null,null,null,null,null,null,null,null,null,null,null,null,null,null,null,null,null,null,null,null,null,null,null,null,null,null,null,null,null,null,null,null,null,null,"No","","","",3950]
[null,null,null,null,null,null,null,null,null,null,null,null,"FT","FT","%",null,null,"Pos. or Neg.",null,"Pos. or Neg.",null,null,"%",null,null,null,null,null,null,null,null,null,null,null,null,null,null,null,null,null,null,null,null,null,null,null,null,null,null,null,null,null,null,null,null,null,null,null,null,null,null,"No","","","",3950]
[null,null,null,null,null,null,null,null,null,null,null,null,null,null,null,null,null,null,null,null,null,null,null,null,null,null,{"$f":"IF(C28<>\"\",C28,\"\")","v":""},"","","",null,null,null,null,null,null,null,null,null,null,null,null,null,null,null,null,null,null,null,null,null,null,null,null,null,null,null,null,null,null,null,"No","","","",3950]
[null,null,null,null,null,null,null,null,null,null,null,null,null,null,null,null,null,null,null,null,null,null,null,null,null,null,"","","","",null,null,null,null,null,null,null,null,null,null,null,null,null,null,null,null,null,null,null,null,null,null,null,null,null,null,null,null,null,null,null,"No","","","",3950]
[null,null,null,null,null,null,null,null,null,null,null,null,null,null,null,null,null,null,null,null,null,null,null,null,null,null,"","","","",null,null,null,null,null,null,null,null,null,null,null,null,null,null,null,null,null,null,null,null,null,null,null,null,null,null,null,null,null,null,null,"No","","","",3950]
[null,null,null,null,null,null,null,null,null,null,null,null,null,null,null,null,null,null,null,null,null,null,null,null,null,null,"","","","",null,null,null,null,null,null,null,null,null,null,null,null,null,null,null,null,null,null,null,null,null,null,null,null,null,null,null,null,null,null,null,"No","","","",3950]
[null,null,null,null,null,null,null,null,null,null,null,null,null,null,null,null,null,null,null,null,null,null,null,null,null,null,"","","","",null,null,null,null,null,null,null,null,null,null,null,null,null,null,null,null,null,null,null,null,null,null,null,null,null,null,null,null,null,null,null,"No","","","",3950]
[null,null,null,null,null,null,null,null,null,null,null,null,null,null,null,null,null,null,null,null,null,null,null,null,null,null,"","","","",null,null,null,null,null,null,null,null,null,null,null,null,null,null,null,null,null,null,null,null,null,null,null,null,null,null,null,null,null,null,null,"No","","","",3950]
[null,null,null,null,null,null,null,null,null,null,null,null,null,null,null,null,null,null,null,null,null,null,null,null,null,null,"","","","",null,null,null,null,null,null,null,null,null,null,null,null,null,null,null,null,null,null,null,null,null,null,null,null,null,null,null,null,null,null,null,"No","","","",3950]
[null,null,null,null,null,null,null,null,null,null,null,null,null,null,null,null,null,null,null,null,null,null,null,null,null,null,"","","","",null,null,null,null,null,null,null,null,null,null,null,null,null,null,null,null,null,null,null,null,null,null,null,null,null,null,null,null,null,null,null,"No","","","",3950]
[null,null,null,null,null,null,null,null,null,null,null,null,null,null,null,null,null,null,null,null,null,null,null,null,null,null,"","","","",null,null,null,null,null,null,null,null,null,null,null,null,null,null,null,null,null,null,null,null,null,null,null,null,null,null,null,null,null,null,null,"No","","","",3950]
[null,null,null,null,null,null,null,null,null,null,null,null,null,null,null,null,null,null,null,null,null,null,null,null,null,null,"","","","",null,null,null,null,null,null,null,null,null,null,null,null,null,null,null,null,null,null,null,null,null,null,null,null,null,null,null,null,null,null,null,"No","","","",3950]
[null,null,null,null,null,null,null,null,null,null,null,null,null,null,null,null,null,null,null,null,null,null,null,null,null,null,"","","","",null,null,null,null,null,null,null,null,null,null,null,null,null,null,null,null,null,null,null,null,null,null,null,null,null,null,null,null,null,null,null,"No","","","",3950]
[null,null,null,null,null,null,null,null,null,null,null,null,null,null,null,null,null,null,null,null,null,null,null,null,null,null,"","","","",null,null,null,null,null,null,null,null,null,null,null,null,null,null,null,null,null,null,null,null,null,null,null,null,null,null,null,null,null,null,null,"No","","","",3950]
[null,null,null,null,null,null,null,null,null,null,null,null,null,null,null,null,null,null,null,null,null,null,null,null,null,null,"","","","",null,null,null,null,null,null,null,null,null,null,null,null,null,null,null,null,null,null,null,null,null,null,null,null,null,null,null,null,null,null,null,"No","","","",3950]
[null,null,null,null,null,null,null,null,null,null,null,null,null,null,null,null,null,null,null,null,null,null,null,null,null,null,"","","","",null,null,null,null,null,null,null,null,null,null,null,null,null,null,null,null,null,null,null,null,null,null,null,null,null,null,null,null,null,null,null,"No","","","",3950]
[null,null,null,null,null,null,null,null,null,null,null,null,null,null,null,null,null,null,null,null,null,null,null,null,null,null,"","","","",null,null,null,null,null,null,null,null,null,null,null,null,null,null,null,null,null,null,null,null,null,null,null,null,null,null,null,null,null,null,null,"No","","","",3950]
[null,null,null,null,null,null,null,null,null,null,null,null,null,null,null,null,null,null,null,null,null,null,null,null,null,null,"","","","",null,null,null,null,null,null,null,null,null,null,null,null,null,null,null,null,null,null,null,null,null,null,null,null,null,null,null,null,null,null,null,"No","","","",3950]
[null,null,null,null,null,null,null,null,null,null,null,null,null,null,null,null,null,null,null,null,null,null,null,null,null,null,"","","","",null,null,null,null,null,null,null,null,null,null,null,null,null,null,null,null,null,null,null,null,null,null,null,null,null,null,null,null,null,null,null,"No","","","",3950]
[null,null,null,null,null,null,null,null,null,null,null,null,null,null,null,null,null,null,null,null,null,null,null,null,null,null,"","","","",null,null,null,null,null,null,null,null,null,null,null,null,null,null,null,null,null,null,null,null,null,null,null,null,null,null,null,null,null,null,null,"No","","","",3950]
[null,null,null,null,null,null,null,null,null,null,null,null,null,null,null,null,null,null,null,null,null,null,null,null,null,null,"","","","",null,null,null,null,null,null,null,null,null,null,null,null,null,null,null,null,null,null,null,null,null,null,null,null,null,null,null,null,null,null,null,"No","","","",3950]
[null,null,null,null,null,null,null,null,null,null,null,null,null,null,null,null,null,null,null,null,null,null,null,null,null,null,"","","","",null,null,null,null,null,null,null,null,null,null,null,null,null,null,null,null,null,null,null,null,null,null,null,null,null,null,null,null,null,null,null,"No","","","",3950]
[null,null,null,null,null,null,null,null,null,null,null,null,null,null,null,null,null,null,null,null,null,null,null,null,null,null,"","","","",null,null,null,null,null,null,null,null,null,null,null,null,null,null,null,null,null,null,null,null,null,null,null,null,null,null,null,null,null,null,null,"No","","","",3950]
[null,null,null,null,null,null,null,null,null,null,null,null,null,null,null,null,null,null,null,null,null,null,null,null,null,null,"","","","",null,null,null,null,null,null,null,null,null,null,null,null,null,null,null,null,null,null,null,null,null,null,null,null,null,null,null,null,null,null,null,"No","","","",3950]
[null,null,null,null,null,null,null,null,null,null,null,null,null,null,null,null,null,null,null,null,null,null,null,null,null,null,"","","","",null,null,null,null,null,null,null,null,null,null,null,null,null,null,null,null,null,null,null,null,null,null,null,null,null,null,null,null,null,null,null,"No","","","",3950]
[null,null,null,null,null,null,null,null,null,null,null,null,null,null,null,null,null,null,null,null,null,null,null,null,null,null,"","","","",null,null,null,null,null,null,null,null,null,null,null,null,null,null,null,null,null,null,null,null,null,null,null,null,null,null,null,null,null,null,null,"No","","","",3950]
[null,null,null,null,null,null,null,null,null,null,null,null,null,null,null,null,null,null,null,null,null,null,null,null,null,null,"","","","",null,null,null,null,null,null,null,null,null,null,null,null,null,null,null,null,null,null,null,null,null,null,null,null,null,null,null,null,null,null,null,"No","","","",3950]
[null,null,null,null,null,null,null,null,null,null,null,null,null,null,null,null,null,null,null,null,null,null,null,null,null,null,"","","","",null,null,null,null,null,null,null,null,null,null,null,null,null,null,null,null,null,null,null,null,null,null,null,null,null,null,null,null,null,null,null,"No","","","",3950]
[null,null,null,null,null,null,null,null,null,null,null,null,null,null,null,null,null,null,null,null,null,null,null,null,null,null,"","","","",null,null,null,null,null,null,null,null,null,null,null,null,null,null,null,null,null,null,null,null,null,null,null,null,null,null,null,null,null,null,null,"No","","","",3950]
[null,null,null,null,null,null,null,null,null,null,null,null,null,null,null,null,null,null,null,null,null,null,null,null,null,null,"","","","",null,null,null,null,null,null,null,null,null,null,null,null,null,null,null,null,null,null,null,null,null,null,null,null,null,null,null,null,null,null,null,"No","","","",3950]
[null,null,null,null,null,null,null,null,null,null,null,null,null,null,null,null,null,null,null,null,null,null,null,null,null,null,"","","","",null,null,null,null,null,null,null,null,null,null,null,null,null,null,null,null,null,null,null,null,null,null,null,null,null,null,null,null,null,null,null,"No","","","",3950]
[null,null,null,null,null,null,null,null,null,null,null,null,null,null,null,null,null,null,null,null,null,null,null,null,null,null,"","","","",null,null,null,null,null,null,null,null,null,null,null,null,null,null,null,null,null,null,null,null,null,null,null,null,null,null,null,null,null,null,null,"No","","","",3950]
[null,null,null,null,null,null,null,null,null,null,null,null,null,null,null,null,null,null,null,null,null,null,null,null,null,null,"","","","",null,null,null,null,null,null,null,null,null,null,null,null,null,null,null,null,null,null,null,null,null,null,null,null,null,null,null,null,null,null,null,"No","","","",3950]
[null,null,null,null,null,null,null,null,null,null,null,null,null,null,null,null,null,null,null,null,null,null,null,null,null,null,"","","","",null,null,null,null,null,null,null,null,null,null,null,null,null,null,null,null,null,null,null,null,null,null,null,null,null,null,null,null,null,null,null,"No","","","",3950]
[null,null,null,null,null,null,null,null,null,null,null,null,null,null,null,null,null,null,null,null,null,null,null,null,null,null,"","","","",null,null,null,null,null,null,null,null,null,null,null,null,null,null,null,null,null,null,null,null,null,null,null,null,null,null,null,null,null,null,null,"No","","","",3950]
[null,null,null,null,null,null,null,null,null,null,null,null,null,null,null,null,null,null,null,null,null,null,null,null,null,null,"","","","",null,null,null,null,null,null,null,null,null,null,null,null,null,null,null,null,null,null,null,null,null,null,null,null,null,null,null,null,null,null,null,"No","","","",3950]
[null,null,null,null,null,null,null,null,null,null,null,null,null,null,null,null,null,null,null,null,null,null,null,null,null,null,"","","","",null,null,null,null,null,null,null,null,null,null,null,null,null,null,null,null,null,null,null,null,null,null,null,null,null,null,null,null,null,null,null,"No","","","",3950]
[null,null,null,null,null,null,null,null,null,null,null,null,null,null,null,null,null,null,null,null,null,null,null,null,null,null,"","","","",null,null,null,null,null,null,null,null,null,null,null,null,null,null,null,null,null,null,null,null,null,null,null,null,null,null,null,null,null,null,null,"No","","","",3950]
[null,null,null,null,null,null,null,null,null,null,null,null,null,null,null,null,null,null,null,null,null,null,null,null,null,null,"","","","",null,null,null,null,null,null,null,null,null,null,null,null,null,null,null,null,null,null,null,null,null,null,null,null,null,null,null,null,null,null,null,"No","","","",3950]
[null,null,null,null,null,null,null,null,null,null,null,null,null,null,null,null,null,null,null,null,null,null,null,null,null,null,"","","","",null,null,null,null,null,null,null,null,null,null,null,null,null,null,null,null,null,null,null,null,null,null,null,null,null,null,null,null,null,null,null,"No","","","",3950]
[null,null,null,null,null,null,null,null,null,null,null,null,null,null,null,null,null,null,null,null,null,null,null,null,null,null,"","","","",null,null,null,null,null,null,null,null,null,null,null,null,null,null,null,null,null,null,null,null,null,null,null,null,null,null,null,null,null,null,null,"No","","","",3950]
[null,null,null,null,null,null,null,null,null,null,null,null,null,null,null,null,null,null,null,null,null,null,null,null,null,null,"","","","",null,null,null,null,null,null,null,null,null,null,null,null,null,null,null,null,null,null,null,null,null,null,null,null,null,null,null,null,null,null,null,"No","","","",3950]
[null,null,null,null,null,null,null,null,null,null,null,null,null,null,null,null,null,null,null,null,null,null,null,null,null,null,"","","","",null,null,null,null,null,null,null,null,null,null,null,null,null,null,null,null,null,null,null,null,null,null,null,null,null,null,null,null,null,null,null,"No","","","",3950]
[null,null,null,null,null,null,null,null,null,null,null,null,null,null,null,null,null,null,null,null,null,null,null,null,null,null,"","","","",null,null,null,null,null,null,null,null,null,null,null,null,null,null,null,null,null,null,null,null,null,null,null,null,null,null,null,null,null,null,null,"No","","","",3950]
[null,null,null,null,null,null,null,null,null,null,null,null,null,null,null,null,null,null,null,null,null,null,null,null,null,null,"","","","",null,null,null,null,null,null,null,null,null,null,null,null,null,null,null,null,null,null,null,null,null,null,null,null,null,null,null,null,null,null,null,"No","","","",3950]
[null,null,null,null,null,null,null,null,null,null,null,null,null,null,null,null,null,null,null,null,null,null,null,null,null,null,"","","","",null,null,null,null,null,null,null,null,null,null,null,null,null,null,null,null,null,null,null,null,null,null,null,null,null,null,null,null,null,null,null,"No","","","",3950]
[null,null,null,null,null,null,null,null,null,null,null,null,null,null,null,null,null,null,null,null,null,null,null,null,null,null,"","","","",null,null,null,null,null,null,null,null,null,null,null,null,null,null,null,null,null,null,null,null,null,null,null,null,null,null,null,null,null,null,null,"No","","","",3950]
[null,null,null,null,null,null,null,null,null,null,null,null,null,null,null,null,null,null,null,null,null,null,null,null,null,null,"","","","",null,null,null,null,null,null,null,null,null,null,null,null,null,null,null,null,null,null,null,null,null,null,null,null,null,null,null,null,null,null,null,"No","","","",3950]
[null,null,null,null,null,null,null,null,null,null,null,null,null,null,null,null,null,null,null,null,null,null,null,null,null,null,"","","","",null,null,null,null,null,null,null,null,null,null,null,null,null,null,null,null,null,null,null,null,null,null,null,null,null,null,null,null,null,null,null,"No","","","",3950]
[null,null,null,null,null,null,null,null,null,null,null,null,null,null,null,null,null,null,null,null,null,null,null,null,null,null,"","","","",null,null,null,null,null,null,null,null,null,null,null,null,null,null,null,null,null,null,null,null,null,null,null,null,null,null,null,null,null,null,null,"No","","","",3950]
[null,null,null,null,null,null,null,null,null,null,null,null,null,null,null,null,null,null,null,null,null,null,null,null,null,null,"","","","",null,null,null,null,null,null,null,null,null,null,null,null,null,null,null,null,null,null,null,null,null,null,null,null,null,null,null,null,null,null,null,"No","","","",3950]
[null,null,null,null,null,null,null,null,null,null,null,null,null,null,null,null,null,null,null,null,null,null,null,null,null,null,"","","","",null,null,null,null,null,null,null,null,null,null,null,null,null,null,null,null,null,null,null,null,null,null,null,null,null,null,null,null,null,null,null,"No","","","",3950]
[null,null,null,null,null,null,null,null,null,null,null,null,null,null,null,null,null,null,null,null,null,null,null,null,null,null,"","","","",null,null,null,null,null,null,null,null,null,null,null,null,null,null,null,null,null,null,null,null,null,null,null,null,null,null,null,null,null,null,null,"No","","","",3950]
[null,null,null,null,null,null,null,null,null,null,null,null,null,null,null,null,null,null,null,null,null,null,null,null,null,null,"","","","",null,null,null,null,null,null,null,null,null,null,null,null,null,null,null,null,null,null,null,null,null,null,null,null,null,null,null,null,null,null,null,"No","","","",3950]
[null,null,null,null,null,null,null,null,null,null,null,null,null,null,null,null,null,null,null,null,null,null,null,null,null,null,"","","","",null,null,null,null,null,null,null,null,null,null,null,null,null,null,null,null,null,null,null,null,null,null,null,null,null,null,null,null,null,null,null,{"$f":"IF(AND($K92=$AX$18,AND(OR($O92<=$AZ$18,$O92>=$BB$18),OR($O92>=-$AZ$18,$O92<=-$BB$18))),\"Yes\",IF(AND($K92=$AX$20,AND(OR($O92<=$AZ$20,$O92>=$BB$20),OR($O92>=-$AZ$20,$O92<=-$BB$20))),\"Yes\",IF(AND($K92=$AX$21,AND(OR($O92<=$AZ$21,$O92>=$BB$21),OR($O92>=-$AZ$21,$O92<=-$BB$21))),\"Yes\",IF(AND($K92=$AX$22,AND(OR($O92<=$AZ$22,$O92>=$BB$22),OR($O92>=-$AZ$22,$O92<=-$BB$22))),\"Yes\",IF(AND($K92=$AX$23,AND(OR($O92<=$AZ$23,$O92>=$BB$23),OR($O92>=-$AZ$23,$O92<=-$BB$23))),\"Yes\",\"No\")))))","v":"No"},{"$f":"IF(BJ80=\"Yes\",I92,\"\")","v":""},{"$f":"IF(BJ80=\"Yes\",J92,\"\")","v":""},{"$f":"IF(C92<>\"\",C92,\"\")","v":""},{"$f":"COUNTIF($BK$16:$BL$1990,BM80)","v":3950}]
[null,null,null,null,null,null,null,null,null,null,null,null,null,null,null,null,null,null,null,null,null,null,null,null,null,null,"","","","",null,null,null,null,null,null,null,null,null,null,null,null,null,null,null,null,null,null,null,null,null,null,null,null,null,null,null,null,null,null,null,"No","","","",3950]
[null,null,null,null,null,null,null,null,null,null,null,null,null,null,null,null,null,null,null,null,null,null,null,null,null,null,"","","","",null,null,null,null,null,null,null,null,null,null,null,null,null,null,null,null,null,null,null,null,null,null,null,null,null,null,null,null,null,null,null,"No","","","",3950]
[null,null,null,null,null,null,null,null,null,null,null,null,null,null,null,null,null,null,null,null,null,null,null,null,null,null,"","","","",null,null,null,null,null,null,null,null,null,null,null,null,null,null,null,null,null,null,null,null,null,null,null,null,null,null,null,null,null,null,null,"No","","","",3950]
[null,null,null,null,null,null,null,null,null,null,null,null,null,null,null,null,null,null,null,null,null,null,null,null,null,null,"","","","",null,null,null,null,null,null,null,null,null,null,null,null,null,null,null,null,null,null,null,null,null,null,null,null,null,null,null,null,null,null,null,"No","","","",3950]
[null,null,null,null,null,null,null,null,null,null,null,null,null,null,null,null,null,null,null,null,null,null,null,null,null,null,"","","","",null,null,null,null,null,null,null,null,null,null,null,null,null,null,null,null,null,null,null,null,null,null,null,null,null,null,null,null,null,null,null,"No","","","",3950]
[null,null,null,null,null,null,null,null,null,null,null,null,null,null,null,null,null,null,null,null,null,null,null,null,null,null,"","","","",null,null,null,null,null,null,null,null,null,null,null,null,null,null,null,null,null,null,null,null,null,null,null,null,null,null,null,null,null,null,null,"No","","","",3950]
[null,null,null,null,null,null,null,null,null,null,null,null,null,null,null,null,null,null,null,null,null,null,null,null,null,null,"","","","",null,null,null,null,null,null,null,null,null,null,null,null,null,null,null,null,null,null,null,null,null,null,null,null,null,null,null,null,null,null,null,"No","","","",3950]
[null,null,null,null,null,null,null,null,null,null,null,null,null,null,null,null,null,null,null,null,null,null,null,null,null,null,"","","","",null,null,null,null,null,null,null,null,null,null,null,null,null,null,null,null,null,null,null,null,null,null,null,null,null,null,null,null,null,null,null,"No","","","",3950]
[null,null,null,null,null,null,null,null,null,null,null,null,null,null,null,null,null,null,null,null,null,null,null,null,null,null,"","","","",null,null,null,null,null,null,null,null,null,null,null,null,null,null,null,null,null,null,null,null,null,null,null,null,null,null,null,null,null,null,null,"No","","","",3950]
[null,null,null,null,null,null,null,null,null,null,null,null,null,null,null,null,null,null,null,null,null,null,null,null,null,null,"","","","",null,null,null,null,null,null,null,null,null,null,null,null,null,null,null,null,null,null,null,null,null,null,null,null,null,null,null,null,null,null,null,"No","","","",3950]
[null,null,null,null,null,null,null,null,null,null,null,null,null,null,null,null,null,null,null,null,null,null,null,null,null,null,"","","",{"$f":"IF(F91<>\"\",F91,\"\")","v":""},null,null,null,null,null,null,null,null,null,null,null,null,null,null,null,null,null,null,null,null,null,null,null,null,null,null,null,null,null,null,null,"No","","","",3950]
[null,null,null,null,null,null,null,null,null,null,null,null,null,null,null,null,null,null,null,null,null,null,null,null,null,null,{"$f":"IF(C92<>\"\",C92,\"\")","v":""},"","","",null,null,null,null,null,null,null,null,null,null,null,null,null,null,null,null,null,null,null,null,null,null,null,null,null,null,null,null,null,null,null,"No","","","",3950]
[null,null,null,null,null,null,null,null,null,null,null,null,null,null,null,null,null,null,null,null,null,null,null,null,null,null,"","","","",null,null,null,null,null,null,null,null,null,null,null,null,null,null,null,null,null,null,null,null,null,null,null,null,null,null,null,null,null,null,null,"No","","","",3950]
[null,null,null,null,null,null,null,null,null,null,null,null,null,null,null,null,null,null,null,null,null,null,null,null,null,null,"","","","",null,null,null,null,null,null,null,null,null,null,null,null,null,null,null,null,null,null,null,null,null,null,null,null,null,null,null,null,null,null,null,"No","","","",3950]
[null,null,null,null,null,null,null,null,null,null,null,null,null,null,null,null,null,null,null,null,null,null,null,null,null,null,"","","","",null,null,null,null,null,null,null,null,null,null,null,null,null,null,null,null,null,null,null,null,null,null,null,null,null,null,null,null,null,null,null,"No","","","",3950]
[null,null,null,null,null,null,null,null,null,null,null,null,null,null,null,null,null,null,null,null,null,null,null,null,null,null,"","","","",null,null,null,null,null,null,null,null,null,null,null,null,null,null,null,null,null,null,null,null,null,null,null,null,null,null,null,null,null,null,null,"No","","","",3950]
[null,null,null,null,null,null,null,null,null,null,null,null,null,null,null,null,null,null,null,null,null,null,null,null,null,null,"","","","",null,null,null,null,null,null,null,null,null,null,null,null,null,null,null,null,null,null,null,null,null,null,null,null,null,null,null,null,null,null,null,"No","","","",3950]
[null,null,null,null,null,null,null,null,null,null,null,null,null,null,null,null,null,null,null,null,null,null,null,null,null,null,"","","","",null,null,null,null,null,null,null,null,null,null,null,null,null,null,null,null,null,null,null,null,null,null,null,null,null,null,null,null,null,null,null,"No","","","",3950]
[null,null,null,null,null,null,null,null,null,null,null,null,null,null,null,null,null,null,null,null,null,null,null,null,null,null,"","","","",null,null,null,null,null,null,null,null,null,null,null,null,null,null,null,null,null,null,null,null,null,null,null,null,null,null,null,null,null,null,null,"No","","","",3950]
[null,null,null,null,null,null,null,null,null,null,null,null,null,null,null,null,null,null,null,null,null,null,null,null,null,null,"","","","",null,null,null,null,null,null,null,null,null,null,null,null,null,null,null,null,null,null,null,null,null,null,null,null,null,null,null,null,null,null,null,"No","","","",3950]
[null,null,null,null,null,null,null,null,null,null,null,null,null,null,null,null,null,null,null,null,null,null,null,null,null,null,"","","","",null,null,null,null,null,null,null,null,null,null,null,null,null,null,null,null,null,null,null,null,null,null,null,null,null,null,null,null,null,null,null,"No","","","",3950]
[null,null,null,null,null,null,null,null,null,null,null,null,null,null,null,null,null,null,null,null,null,null,null,null,null,null,"","","","",null,null,null,null,null,null,null,null,null,null,null,null,null,null,null,null,null,null,null,null,null,null,null,null,null,null,null,null,null,null,null,"No","","","",3950]
[null,null,null,null,null,null,null,null,null,null,null,null,null,null,null,null,null,null,null,null,null,null,null,null,null,null,"","","","",null,null,null,null,null,null,null,null,null,null,null,null,null,null,null,null,null,null,null,null,null,null,null,null,null,null,null,null,null,null,null,"No","","","",3950]
[null,null,null,null,null,null,null,null,null,null,null,null,null,null,null,null,null,null,null,null,null,null,null,null,null,null,"","","","",null,null,null,null,null,null,null,null,null,null,null,null,null,null,null,null,null,null,null,null,null,null,null,null,null,null,null,null,null,null,null,"No","","","",3950]
[null,null,null,null,null,null,null,null,null,null,null,null,null,null,null,null,null,null,null,null,null,null,null,null,null,null,"","","","",null,null,null,null,null,null,null,null,null,null,null,null,null,null,null,null,null,null,null,null,null,null,null,null,null,null,null,null,null,null,null,"No","","","",3950]
[null,null,null,null,null,null,null,null,null,null,null,null,null,null,null,null,null,null,null,null,null,null,null,null,null,null,"","","","",null,null,null,null,null,null,null,null,null,null,null,null,null,null,null,null,null,null,null,null,null,null,null,null,null,null,null,null,null,null,null,"No","","","",3950]
[null,null,null,null,null,null,null,null,null,null,null,null,null,null,null,null,null,null,null,null,null,null,null,null,null,null,"","","","",null,null,null,null,null,null,null,null,null,null,null,null,null,null,null,null,null,null,null,null,null,null,null,null,null,null,null,null,null,null,null,"No","","","",3950]
[null,null,null,null,null,null,null,null,null,null,null,null,null,null,null,null,null,null,null,null,null,null,null,null,null,null,"","","","",null,null,null,null,null,null,null,null,null,null,null,null,null,null,null,null,null,null,null,null,null,null,null,null,null,null,null,null,null,null,null,"No","","","",3950]
[null,null,null,null,null,null,null,null,null,null,null,null,null,null,null,null,null,null,null,null,null,null,null,null,null,null,"","","","",null,null,null,null,null,null,null,null,null,null,null,null,null,null,null,null,null,null,null,null,null,null,null,null,null,null,null,null,null,null,null,"No","","","",3950]
[null,null,null,null,null,null,null,null,null,null,null,null,null,null,null,null,null,null,null,null,null,null,null,null,null,null,"","","","",null,null,null,null,null,null,null,null,null,null,null,null,null,null,null,null,null,null,null,null,null,null,null,null,null,null,null,null,null,null,null,"No","","","",3950]
[null,null,null,null,null,null,null,null,null,null,null,null,null,null,null,null,null,null,null,null,null,null,null,null,null,null,"","","","",null,null,null,null,null,null,null,null,null,null,null,null,null,null,null,null,null,null,null,null,null,null,null,null,null,null,null,null,null,null,null,"No","","","",3950]
[null,null,null,null,null,null,null,null,null,null,null,null,null,null,null,null,null,null,null,null,null,null,null,null,null,null,"","","","",null,null,null,null,null,null,null,null,null,null,null,null,null,null,null,null,null,null,null,null,null,null,null,null,null,null,null,null,null,null,null,"No","","","",3950]
[null,null,null,null,null,null,null,null,null,null,null,null,null,null,null,null,null,null,null,null,null,null,null,null,null,null,"","","","",null,null,null,null,null,null,null,null,null,null,null,null,null,null,null,null,null,null,null,null,null,null,null,null,null,null,null,null,null,null,null,"No","","","",3950]
[null,null,null,null,null,null,null,null,null,null,null,null,null,null,null,null,null,null,null,null,null,null,null,null,null,null,"","","","",null,null,null,null,null,null,null,null,null,null,null,null,null,null,null,null,null,null,null,null,null,null,null,null,null,null,null,null,null,null,null,"No","","","",3950]
[null,null,null,null,null,null,null,null,null,null,null,null,null,null,null,null,null,null,null,null,null,null,null,null,null,null,"","","","",null,null,null,null,null,null,null,null,null,null,null,null,null,null,null,null,null,null,null,null,null,null,null,null,null,null,null,null,null,null,null,"No","","","",3950]
[null,null,null,null,null,null,null,null,null,null,null,null,null,null,null,null,null,null,null,null,null,null,null,null,null,null,"","","","",null,null,null,null,null,null,null,null,null,null,null,null,null,null,null,null,null,null,null,null,null,null,null,null,null,null,null,null,null,null,null,"No","","","",3950]
[null,null,null,null,null,null,null,null,null,null,null,null,null,null,null,null,null,null,null,null,null,null,null,null,null,null,"","","","",null,null,null,null,null,null,null,null,null,null,null,null,null,null,null,null,null,null,null,null,null,null,null,null,null,null,null,null,null,null,null,"No","","","",3950]
[null,null,null,null,null,null,null,null,null,null,null,null,null,null,null,null,null,null,null,null,null,null,null,null,null,null,"","","","",null,null,null,null,null,null,null,null,null,null,null,null,null,null,null,null,null,null,null,null,null,null,null,null,null,null,null,null,null,null,null,"No","","","",3950]
[null,null,null,null,null,null,null,null,null,null,null,null,null,null,null,null,null,null,null,null,null,null,null,null,null,null,"","","","",null,null,null,null,null,null,null,null,null,null,null,null,null,null,null,null,null,null,null,null,null,null,null,null,null,null,null,null,null,null,null,"No","","","",3950]
[null,null,null,null,null,null,null,null,null,null,null,null,null,null,null,null,null,null,null,null,null,null,null,null,null,null,"","","","",null,null,null,null,null,null,null,null,null,null,null,null,null,null,null,null,null,null,null,null,null,null,null,null,null,null,null,null,null,null,null,"No","","","",3950]
[null,null,null,null,null,null,null,null,null,null,null,null,null,null,null,null,null,null,null,null,null,null,null,null,null,null,"","","","",null,null,null,null,null,null,null,null,null,null,null,null,null,null,null,null,null,null,null,null,null,null,null,null,null,null,null,null,null,null,null,"No","","","",3950]
[null,null,null,null,null,null,null,null,null,null,null,null,null,null,null,null,null,null,null,null,null,null,null,null,null,null,"","","","",null,null,null,null,null,null,null,null,null,null,null,null,null,null,null,null,null,null,null,null,null,null,null,null,null,null,null,null,null,null,null,"No","","","",3950]
[null,null,null,null,null,null,null,null,null,null,null,null,null,null,null,null,null,null,null,null,null,null,null,null,null,null,"","","","",null,null,null,null,null,null,null,null,null,null,null,null,null,null,null,null,null,null,null,null,null,null,null,null,null,null,null,null,null,null,null,"No","","","",3950]
[null,null,null,null,null,null,null,null,null,null,null,null,null,null,null,null,null,null,null,null,null,null,null,null,null,null,"","","","",null,null,null,null,null,null,null,null,null,null,null,null,null,null,null,null,null,null,null,null,null,null,null,null,null,null,null,null,null,null,null,"No","","","",3950]
[null,null,null,null,null,null,null,null,null,null,null,null,null,null,null,null,null,null,null,null,null,null,null,null,null,null,"","","","",null,null,null,null,null,null,null,null,null,null,null,null,null,null,null,null,null,null,null,null,null,null,null,null,null,null,null,null,null,null,null,"No","","","",3950]
[null,null,null,null,null,null,null,null,null,null,null,null,null,null,null,null,null,null,null,null,null,null,null,null,null,null,"","","","",null,null,null,null,null,null,null,null,null,null,null,null,null,null,null,null,null,null,null,null,null,null,null,null,null,null,null,null,null,null,null,"No","","","",3950]
[null,null,null,null,null,null,null,null,null,null,null,null,null,null,null,null,null,null,null,null,null,null,null,null,null,null,"","","","",null,null,null,null,null,null,null,null,null,null,null,null,null,null,null,null,null,null,null,null,null,null,null,null,null,null,null,null,null,null,null,"No","","","",3950]
[null,null,null,null,null,null,null,null,null,null,null,null,null,null,null,null,null,null,null,null,null,null,null,null,null,null,"","","","",null,null,null,null,null,null,null,null,null,null,null,null,null,null,null,null,null,null,null,null,null,null,null,null,null,null,null,null,null,null,null,"No","","","",3950]
[null,null,null,null,null,null,null,null,null,null,null,null,null,null,null,null,null,null,null,null,null,null,null,null,null,null,"","","","",null,null,null,null,null,null,null,null,null,null,null,null,null,null,null,null,null,null,null,null,null,null,null,null,null,null,null,null,null,null,null,"No","","","",3950]
[null,null,null,null,null,null,null,null,null,null,null,null,null,null,null,null,null,null,null,null,null,null,null,null,null,null,"","","","",null,null,null,null,null,null,null,null,null,null,null,null,null,null,null,null,null,null,null,null,null,null,null,null,null,null,null,null,null,null,null,"No","","","",3950]
[null,null,null,null,null,null,null,null,null,null,null,null,null,null,null,null,null,null,null,null,null,null,null,null,null,null,"","","","",null,null,null,null,null,null,null,null,null,null,null,null,null,null,null,null,null,null,null,null,null,null,null,null,null,null,null,null,null,null,null,"No","","","",3950]
[null,null,null,null,null,null,null,null,null,null,null,null,null,null,null,null,null,null,null,null,null,null,null,null,null,null,"","","","",null,null,null,null,null,null,null,null,null,null,null,null,null,null,null,null,null,null,null,null,null,null,null,null,null,null,null,null,null,null,null,"No","","","",3950]
[null,null,null,null,null,null,null,null,null,null,null,null,null,null,null,null,null,null,null,null,null,null,null,null,null,null,"","","","",null,null,null,null,null,null,null,null,null,null,null,null,null,null,null,null,null,null,null,null,null,null,null,null,null,null,null,null,null,null,null,"No","","","",3950]
[null,null,null,null,null,null,null,null,null,null,null,null,null,null,null,null,null,null,null,null,null,null,null,null,null,null,"","","","",null,null,null,null,null,null,null,null,null,null,null,null,null,null,null,null,null,null,null,null,null,null,null,null,null,null,null,null,null,null,null,"No","","","",3950]
[null,null,null,null,null,null,null,null,null,null,null,null,null,null,null,null,null,null,null,null,null,null,null,null,null,null,"","","","",null,null,null,null,null,null,null,null,null,null,null,null,null,null,null,null,null,null,null,null,null,null,null,null,null,null,null,null,null,null,null,"No","","","",3950]
[null,null,null,null,null,null,null,null,null,null,null,null,null,null,null,null,null,null,null,null,null,null,null,null,null,null,"","","","",null,null,null,null,null,null,null,null,null,null,null,null,null,null,null,null,null,null,null,null,null,null,null,null,null,null,null,null,null,null,null,"No","","","",3950]
[null,null,null,null,null,null,null,null,null,null,null,null,null,null,null,null,null,null,null,null,null,null,null,null,null,null,"","","","",null,null,null,null,null,null,null,null,null,null,null,null,null,null,null,null,null,null,null,null,null,null,null,null,null,null,null,null,null,null,null,"No","","","",3950]
[null,null,null,null,null,null,null,null,null,null,null,null,null,null,null,null,null,null,null,null,null,null,null,null,null,null,"","","","",null,null,null,null,null,null,null,null,null,null,null,null,null,null,null,null,null,null,null,null,null,null,null,null,null,null,null,null,null,null,null,"No","","","",3950]
[null,null,null,null,null,null,null,null,null,null,null,null,null,null,null,null,null,null,null,null,null,null,null,null,null,null,"","","","",null,null,null,null,null,null,null,null,null,null,null,null,null,null,null,null,null,null,null,null,null,null,null,null,null,null,null,null,null,null,null,"No","","","",3950]
[null,null,null,null,null,null,null,null,null,null,null,null,null,null,null,null,null,null,null,null,null,null,null,null,null,null,"","","","",null,null,null,null,null,null,null,null,null,null,null,null,null,null,null,null,null,null,null,null,null,null,null,null,null,null,null,null,null,null,null,"No","","","",3950]
[null,null,null,null,null,null,null,null,null,null,null,null,null,null,null,null,null,null,null,null,null,null,null,null,null,null,"","","","",null,null,null,null,null,null,null,null,null,null,null,null,null,null,null,null,null,null,null,null,null,null,null,null,null,null,null,null,null,null,null,"No","","","",3950]
[null,null,null,null,null,null,null,null,null,null,null,null,null,null,null,null,null,null,null,null,null,null,null,null,null,null,"","","","",null,null,null,null,null,null,null,null,null,null,null,null,null,null,null,null,null,null,null,null,null,null,null,null,null,null,null,null,null,null,null,"No","","","",3950]
[null,null,null,null,null,null,null,null,null,null,null,null,null,null,null,null,null,null,null,null,null,null,null,null,null,null,"","","","",null,null,null,null,null,null,null,null,null,null,null,null,null,null,null,null,null,null,null,null,null,null,null,null,null,null,null,null,null,null,null,"No","","","",3950]
[null,null,null,null,null,null,null,null,null,null,null,null,null,null,null,null,null,null,null,null,null,null,null,null,null,null,"","","","",null,null,null,null,null,null,null,null,null,null,null,null,null,null,null,null,null,null,null,null,null,null,null,null,null,null,null,null,null,null,null,{"$f":"IF(AND($K156=$AX$18,AND(OR($O156<=$AZ$18,$O156>=$BB$18),OR($O156>=-$AZ$18,$O156<=-$BB$18))),\"Yes\",IF(AND($K156=$AX$20,AND(OR($O156<=$AZ$20,$O156>=$BB$20),OR($O156>=-$AZ$20,$O156<=-$BB$20))),\"Yes\",IF(AND($K156=$AX$21,AND(OR($O156<=$AZ$21,$O156>=$BB$21),OR($O156>=-$AZ$21,$O156<=-$BB$21))),\"Yes\",IF(AND($K156=$AX$22,AND(OR($O156<=$AZ$22,$O156>=$BB$22),OR($O156>=-$AZ$22,$O156<=-$BB$22))),\"Yes\",IF(AND($K156=$AX$23,AND(OR($O156<=$AZ$23,$O156>=$BB$23),OR($O156>=-$AZ$23,$O156<=-$BB$23))),\"Yes\",\"No\")))))","v":"No"},{"$f":"IF(BJ144=\"Yes\",I156,\"\")","v":""},{"$f":"IF(BJ144=\"Yes\",J156,\"\")","v":""},{"$f":"IF(C156<>\"\",C156,\"\")","v":""},{"$f":"COUNTIF($BK$16:$BL$1990,BM144)","v":3950}]
[null,null,null,null,null,null,null,null,null,null,null,null,null,null,null,null,null,null,null,null,null,null,null,null,null,null,"","","","",null,null,null,null,null,null,null,null,null,null,null,null,null,null,null,null,null,null,null,null,null,null,null,null,null,null,null,null,null,null,null,"No","","","",3950]
[null,null,null,null,null,null,null,null,null,null,null,null,null,null,null,null,null,null,null,null,null,null,null,null,null,null,"","","","",null,null,null,null,null,null,null,null,null,null,null,null,null,null,null,null,null,null,null,null,null,null,null,null,null,null,null,null,null,null,null,"No","","","",3950]
[null,null,null,null,null,null,null,null,null,null,null,null,null,null,null,null,null,null,null,null,null,null,null,null,null,null,"","","","",null,null,null,null,null,null,null,null,null,null,null,null,null,null,null,null,null,null,null,null,null,null,null,null,null,null,null,null,null,null,null,"No","","","",3950]
[null,null,null,null,null,null,null,null,null,null,null,null,null,null,null,null,null,null,null,null,null,null,null,null,null,null,"","","","",null,null,null,null,null,null,null,null,null,null,null,null,null,null,null,null,null,null,null,null,null,null,null,null,null,null,null,null,null,null,null,"No","","","",3950]
[null,null,null,null,null,null,null,null,null,null,null,null,null,null,null,null,null,null,null,null,null,null,null,null,null,null,"","","","",null,null,null,null,null,null,null,null,null,null,null,null,null,null,null,null,null,null,null,null,null,null,null,null,null,null,null,null,null,null,null,"No","","","",3950]
[null,null,null,null,null,null,null,null,null,null,null,null,null,null,null,null,null,null,null,null,null,null,null,null,null,null,"","","","",null,null,null,null,null,null,null,null,null,null,null,null,null,null,null,null,null,null,null,null,null,null,null,null,null,null,null,null,null,null,null,"No","","","",3950]
[null,null,null,null,null,null,null,null,null,null,null,null,null,null,null,null,null,null,null,null,null,null,null,null,null,null,"","","","",null,null,null,null,null,null,null,null,null,null,null,null,null,null,null,null,null,null,null,null,null,null,null,null,null,null,null,null,null,null,null,"No","","","",3950]
[null,null,null,null,null,null,null,null,null,null,null,null,null,null,null,null,null,null,null,null,null,null,null,null,null,null,"","","","",null,null,null,null,null,null,null,null,null,null,null,null,null,null,null,null,null,null,null,null,null,null,null,null,null,null,null,null,null,null,null,"No","","","",3950]
[null,null,null,null,null,null,null,null,null,null,null,null,null,null,null,null,null,null,null,null,null,null,null,null,null,null,"","","","",null,null,null,null,null,null,null,null,null,null,null,null,null,null,null,null,null,null,null,null,null,null,null,null,null,null,null,null,null,null,null,"No","","","",3950]
[null,null,null,null,null,null,null,null,null,null,null,null,null,null,null,null,null,null,null,null,null,null,null,null,null,null,"","","","",null,null,null,null,null,null,null,null,null,null,null,null,null,null,null,null,null,null,null,null,null,null,null,null,null,null,null,null,null,null,null,"No","","","",3950]
[null,null,null,null,null,null,null,null,null,null,null,null,null,null,null,null,null,null,null,null,null,null,null,null,null,null,"","","","",null,null,null,null,null,null,null,null,null,null,null,null,null,null,null,null,null,null,null,null,null,null,null,null,null,null,null,null,null,null,null,"No","","","",3950]
[null,null,null,null,null,null,null,null,null,null,null,null,null,null,null,null,null,null,null,null,null,null,null,null,null,null,{"$f":"IF(C156<>\"\",C156,\"\")","v":""},"","","",null,null,null,null,null,null,null,null,null,null,null,null,null,null,null,null,null,null,null,null,null,null,null,null,null,null,null,null,null,null,null,"No","","","",3950]
[null,null,null,null,null,null,null,null,null,null,null,null,null,null,null,null,null,null,null,null,null,null,null,null,null,null,"","","","",null,null,null,null,null,null,null,null,null,null,null,null,null,null,null,null,null,null,null,null,null,null,null,null,null,null,null,null,null,null,null,"No","","","",3950]
[null,null,null,null,null,null,null,null,null,null,null,null,null,null,null,null,null,null,null,null,null,null,null,null,null,null,"","","","",null,null,null,null,null,null,null,null,null,null,null,null,null,null,null,null,null,null,null,null,null,null,null,null,null,null,null,null,null,null,null,"No","","","",3950]
[null,null,null,null,null,null,null,null,null,null,null,null,null,null,null,null,null,null,null,null,null,null,null,null,null,null,"","","","",null,null,null,null,null,null,null,null,null,null,null,null,null,null,null,null,null,null,null,null,null,null,null,null,null,null,null,null,null,null,null,"No","","","",3950]
[null,null,null,null,null,null,null,null,null,null,null,null,null,null,null,null,null,null,null,null,null,null,null,null,null,null,"","","","",null,null,null,null,null,null,null,null,null,null,null,null,null,null,null,null,null,null,null,null,null,null,null,null,null,null,null,null,null,null,null,"No","","","",3950]
[null,null,null,null,null,null,null,null,null,null,null,null,null,null,null,null,null,null,null,null,null,null,null,null,null,null,"","","","",null,null,null,null,null,null,null,null,null,null,null,null,null,null,null,null,null,null,null,null,null,null,null,null,null,null,null,null,null,null,null,"No","","","",3950]
[null,null,null,null,null,null,null,null,null,null,null,null,null,null,null,null,null,null,null,null,null,null,null,null,null,null,"","","","",null,null,null,null,null,null,null,null,null,null,null,null,null,null,null,null,null,null,null,null,null,null,null,null,null,null,null,null,null,null,null,"No","","","",3950]
[null,null,null,null,null,null,null,null,null,null,null,null,null,null,null,null,null,null,null,null,null,null,null,null,null,null,"","","","",null,null,null,null,null,null,null,null,null,null,null,null,null,null,null,null,null,null,null,null,null,null,null,null,null,null,null,null,null,null,null,"No","","","",3950]
[null,null,null,null,null,null,null,null,null,null,null,null,null,null,null,null,null,null,null,null,null,null,null,null,null,null,"","","","",null,null,null,null,null,null,null,null,null,null,null,null,null,null,null,null,null,null,null,null,null,null,null,null,null,null,null,null,null,null,null,"No","","","",3950]
[null,null,null,null,null,null,null,null,null,null,null,null,null,null,null,null,null,null,null,null,null,null,null,null,null,null,"","","","",null,null,null,null,null,null,null,null,null,null,null,null,null,null,null,null,null,null,null,null,null,null,null,null,null,null,null,null,null,null,null,"No","","","",3950]
[null,null,null,null,null,null,null,null,null,null,null,null,null,null,null,null,null,null,null,null,null,null,null,null,null,null,"","","","",null,null,null,null,null,null,null,null,null,null,null,null,null,null,null,null,null,null,null,null,null,null,null,null,null,null,null,null,null,null,null,"No","","","",3950]
[null,null,null,null,null,null,null,null,null,null,null,null,null,null,null,null,null,null,null,null,null,null,null,null,null,null,"","","","",null,null,null,null,null,null,null,null,null,null,null,null,null,null,null,null,null,null,null,null,null,null,null,null,null,null,null,null,null,null,null,"No","","","",3950]
[null,null,null,null,null,null,null,null,null,null,null,null,null,null,null,null,null,null,null,null,null,null,null,null,null,null,"","","","",null,null,null,null,null,null,null,null,null,null,null,null,null,null,null,null,null,null,null,null,null,null,null,null,null,null,null,null,null,null,null,"No","","","",3950]
[null,null,null,null,null,null,null,null,null,null,null,null,null,null,null,null,null,null,null,null,null,null,null,null,null,null,"","","","",null,null,null,null,null,null,null,null,null,null,null,null,null,null,null,null,null,null,null,null,null,null,null,null,null,null,null,null,null,null,null,"No","","","",3950]
[null,null,null,null,null,null,null,null,null,null,null,null,null,null,null,null,null,null,null,null,null,null,null,null,null,null,"","","","",null,null,null,null,null,null,null,null,null,null,null,null,null,null,null,null,null,null,null,null,null,null,null,null,null,null,null,null,null,null,null,"No","","","",3950]
[null,null,null,null,null,null,null,null,null,null,null,null,null,null,null,null,null,null,null,null,null,null,null,null,null,null,"","","","",null,null,null,null,null,null,null,null,null,null,null,null,null,null,null,null,null,null,null,null,null,null,null,null,null,null,null,null,null,null,null,"No","","","",3950]
[null,null,null,null,null,null,null,null,null,null,null,null,null,null,null,null,null,null,null,null,null,null,null,null,null,null,"","","","",null,null,null,null,null,null,null,null,null,null,null,null,null,null,null,null,null,null,null,null,null,null,null,null,null,null,null,null,null,null,null,"No","","","",3950]
[null,null,null,null,null,null,null,null,null,null,null,null,null,null,null,null,null,null,null,null,null,null,null,null,null,null,"","","","",null,null,null,null,null,null,null,null,null,null,null,null,null,null,null,null,null,null,null,null,null,null,null,null,null,null,null,null,null,null,null,"No","","","",3950]
[null,null,null,null,null,null,null,null,null,null,null,null,null,null,null,null,null,null,null,null,null,null,null,null,null,null,"","","","",null,null,null,null,null,null,null,null,null,null,null,null,null,null,null,null,null,null,null,null,null,null,null,null,null,null,null,null,null,null,null,"No","","","",3950]
[null,null,null,null,null,null,null,null,null,null,null,null,null,null,null,null,null,null,null,null,null,null,null,null,null,null,"","","","",null,null,null,null,null,null,null,null,null,null,null,null,null,null,null,null,null,null,null,null,null,null,null,null,null,null,null,null,null,null,null,"No","","","",3950]
[null,null,null,null,null,null,null,null,null,null,null,null,null,null,null,null,null,null,null,null,null,null,null,null,null,null,"","","","",null,null,null,null,null,null,null,null,null,null,null,null,null,null,null,null,null,null,null,null,null,null,null,null,null,null,null,null,null,null,null,"No","","","",3950]
[null,null,null,null,null,null,null,null,null,null,null,null,null,null,null,null,null,null,null,null,null,null,null,null,null,null,"","","","",null,null,null,null,null,null,null,null,null,null,null,null,null,null,null,null,null,null,null,null,null,null,null,null,null,null,null,null,null,null,null,"No","","","",3950]
[null,null,null,null,null,null,null,null,null,null,null,null,null,null,null,null,null,null,null,null,null,null,null,null,null,null,"","","","",null,null,null,null,null,null,null,null,null,null,null,null,null,null,null,null,null,null,null,null,null,null,null,null,null,null,null,null,null,null,null,"No","","","",3950]
[null,null,null,null,null,null,null,null,null,null,null,null,null,null,null,null,null,null,null,null,null,null,null,null,null,null,"","","","",null,null,null,null,null,null,null,null,null,null,null,null,null,null,null,null,null,null,null,null,null,null,null,null,null,null,null,null,null,null,null,"No","","","",3950]
[null,null,null,null,null,null,null,null,null,null,null,null,null,null,null,null,null,null,null,null,null,null,null,null,null,null,"","","","",null,null,null,null,null,null,null,null,null,null,null,null,null,null,null,null,null,null,null,null,null,null,null,null,null,null,null,null,null,null,null,"No","","","",3950]
[null,null,null,null,null,null,null,null,null,null,null,null,null,null,null,null,null,null,null,null,null,null,null,null,null,null,"","","","",null,null,null,null,null,null,null,null,null,null,null,null,null,null,null,null,null,null,null,null,null,null,null,null,null,null,null,null,null,null,null,"No","","","",3950]
[null,null,null,null,null,null,null,null,null,null,null,null,null,null,null,null,null,null,null,null,null,null,null,null,null,null,"","","","",null,null,null,null,null,null,null,null,null,null,null,null,null,null,null,null,null,null,null,null,null,null,null,null,null,null,null,null,null,null,null,"No","","","",3950]
[null,null,null,null,null,null,null,null,null,null,null,null,null,null,null,null,null,null,null,null,null,null,null,null,null,null,"","","","",null,null,null,null,null,null,null,null,null,null,null,null,null,null,null,null,null,null,null,null,null,null,null,null,null,null,null,null,null,null,null,"No","","","",3950]
[null,null,null,null,null,null,null,null,null,null,null,null,null,null,null,null,null,null,null,null,null,null,null,null,null,null,"","","","",null,null,null,null,null,null,null,null,null,null,null,null,null,null,null,null,null,null,null,null,null,null,null,null,null,null,null,null,null,null,null,"No","","","",3950]
[null,null,null,null,null,null,null,null,null,null,null,null,null,null,null,null,null,null,null,null,null,null,null,null,null,null,"","","","",null,null,null,null,null,null,null,null,null,null,null,null,null,null,null,null,null,null,null,null,null,null,null,null,null,null,null,null,null,null,null,"No","","","",3950]
[null,null,null,null,null,null,null,null,null,null,null,null,null,null,null,null,null,null,null,null,null,null,null,null,null,null,"","","","",null,null,null,null,null,null,null,null,null,null,null,null,null,null,null,null,null,null,null,null,null,null,null,null,null,null,null,null,null,null,null,"No","","","",3950]
[null,null,null,null,null,null,null,null,null,null,null,null,null,null,null,null,null,null,null,null,null,null,null,null,null,null,"","","","",null,null,null,null,null,null,null,null,null,null,null,null,null,null,null,null,null,null,null,null,null,null,null,null,null,null,null,null,null,null,null,"No","","","",3950]
[null,null,null,null,null,null,null,null,null,null,null,null,null,null,null,null,null,null,null,null,null,null,null,null,null,null,"","","","",null,null,null,null,null,null,null,null,null,null,null,null,null,null,null,null,null,null,null,null,null,null,null,null,null,null,null,null,null,null,null,"No","","","",3950]
[null,null,null,null,null,null,null,null,null,null,null,null,null,null,null,null,null,null,null,null,null,null,null,null,null,null,"","","","",null,null,null,null,null,null,null,null,null,null,null,null,null,null,null,null,null,null,null,null,null,null,null,null,null,null,null,null,null,null,null,"No","","","",3950]
[null,null,null,null,null,null,null,null,null,null,null,null,null,null,null,null,null,null,null,null,null,null,null,null,null,null,"","","","",null,null,null,null,null,null,null,null,null,null,null,null,null,null,null,null,null,null,null,null,null,null,null,null,null,null,null,null,null,null,null,"No","","","",3950]
[null,null,null,null,null,null,null,null,null,null,null,null,null,null,null,null,null,null,null,null,null,null,null,null,null,null,"","","","",null,null,null,null,null,null,null,null,null,null,null,null,null,null,null,null,null,null,null,null,null,null,null,null,null,null,null,null,null,null,null,"No","","","",3950]
[null,null,null,null,null,null,null,null,null,null,null,null,null,null,null,null,null,null,null,null,null,null,null,null,null,null,"","","","",null,null,null,null,null,null,null,null,null,null,null,null,null,null,null,null,null,null,null,null,null,null,null,null,null,null,null,null,null,null,null,"No","","","",3950]
[null,null,null,null,null,null,null,null,null,null,null,null,null,null,null,null,null,null,null,null,null,null,null,null,null,null,"","","","",null,null,null,null,null,null,null,null,null,null,null,null,null,null,null,null,null,null,null,null,null,null,null,null,null,null,null,null,null,null,null,"No","","","",3950]
[null,null,null,null,null,null,null,null,null,null,null,null,null,null,null,null,null,null,null,null,null,null,null,null,null,null,"","","","",null,null,null,null,null,null,null,null,null,null,null,null,null,null,null,null,null,null,null,null,null,null,null,null,null,null,null,null,null,null,null,"No","","","",3950]
[null,null,null,null,null,null,null,null,null,null,null,null,null,null,null,null,null,null,null,null,null,null,null,null,null,null,"","","","",null,null,null,null,null,null,null,null,null,null,null,null,null,null,null,null,null,null,null,null,null,null,null,null,null,null,null,null,null,null,null,"No","","","",3950]
[null,null,null,null,null,null,null,null,null,null,null,null,null,null,null,null,null,null,null,null,null,null,null,null,null,null,"","","","",null,null,null,null,null,null,null,null,null,null,null,null,null,null,null,null,null,null,null,null,null,null,null,null,null,null,null,null,null,null,null,"No","","","",3950]
[null,null,null,null,null,null,null,null,null,null,null,null,null,null,null,null,null,null,null,null,null,null,null,null,null,null,"","","","",null,null,null,null,null,null,null,null,null,null,null,null,null,null,null,null,null,null,null,null,null,null,null,null,null,null,null,null,null,null,null,"No","","","",3950]
[null,null,null,null,null,null,null,null,null,null,null,null,null,null,null,null,null,null,null,null,null,null,null,null,null,null,"","","","",null,null,null,null,null,null,null,null,null,null,null,null,null,null,null,null,null,null,null,null,null,null,null,null,null,null,null,null,null,null,null,"No","","","",3950]
[null,null,null,null,null,null,null,null,null,null,null,null,null,null,null,null,null,null,null,null,null,null,null,null,null,null,"","","","",null,null,null,null,null,null,null,null,null,null,null,null,null,null,null,null,null,null,null,null,null,null,null,null,null,null,null,null,null,null,null,"No","","","",3950]
[null,null,null,null,null,null,null,null,null,null,null,null,null,null,null,null,null,null,null,null,null,null,null,null,null,null,"","","","",null,null,null,null,null,null,null,null,null,null,null,null,null,null,null,null,null,null,null,null,null,null,null,null,null,null,null,null,null,null,null,"No","","","",3950]
[null,null,null,null,null,null,null,null,null,null,null,null,null,null,null,null,null,null,null,null,null,null,null,null,null,null,"","","","",null,null,null,null,null,null,null,null,null,null,null,null,null,null,null,null,null,null,null,null,null,null,null,null,null,null,null,null,null,null,null,"No","","","",3950]
[null,null,null,null,null,null,null,null,null,null,null,null,null,null,null,null,null,null,null,null,null,null,null,null,null,null,"","","","",null,null,null,null,null,null,null,null,null,null,null,null,null,null,null,null,null,null,null,null,null,null,null,null,null,null,null,null,null,null,null,"No","","","",3950]
[null,null,null,null,null,null,null,null,null,null,null,null,null,null,null,null,null,null,null,null,null,null,null,null,null,null,"","","","",null,null,null,null,null,null,null,null,null,null,null,null,null,null,null,null,null,null,null,null,null,null,null,null,null,null,null,null,null,null,null,"No","","","",3950]
[null,null,null,null,null,null,null,null,null,null,null,null,null,null,null,null,null,null,null,null,null,null,null,null,null,null,"","","","",null,null,null,null,null,null,null,null,null,null,null,null,null,null,null,null,null,null,null,null,null,null,null,null,null,null,null,null,null,null,null,"No","","","",3950]
[null,null,null,null,null,null,null,null,null,null,null,null,null,null,null,null,null,null,null,null,null,null,null,null,null,null,"","","","",null,null,null,null,null,null,null,null,null,null,null,null,null,null,null,null,null,null,null,null,null,null,null,null,null,null,null,null,null,null,null,"No","","","",3950]
[null,null,null,null,null,null,null,null,null,null,null,null,null,null,null,null,null,null,null,null,null,null,null,null,null,null,"","","","",null,null,null,null,null,null,null,null,null,null,null,null,null,null,null,null,null,null,null,null,null,null,null,null,null,null,null,null,null,null,null,"No","","","",3950]
[null,null,null,null,null,null,null,null,null,null,null,null,null,null,null,null,null,null,null,null,null,null,null,null,null,null,"","","","",null,null,null,null,null,null,null,null,null,null,null,null,null,null,null,null,null,null,null,null,null,null,null,null,null,null,null,null,null,null,null,"No","","","",3950]
[null,null,null,null,null,null,null,null,null,null,null,null,null,null,null,null,null,null,null,null,null,null,null,null,null,null,"","","","",null,null,null,null,null,null,null,null,null,null,null,null,null,null,null,null,null,null,null,null,null,null,null,null,null,null,null,null,null,null,null,{"$f":"IF(AND($K220=$AX$18,AND(OR($O220<=$AZ$18,$O220>=$BB$18),OR($O220>=-$AZ$18,$O220<=-$BB$18))),\"Yes\",IF(AND($K220=$AX$20,AND(OR($O220<=$AZ$20,$O220>=$BB$20),OR($O220>=-$AZ$20,$O220<=-$BB$20))),\"Yes\",IF(AND($K220=$AX$21,AND(OR($O220<=$AZ$21,$O220>=$BB$21),OR($O220>=-$AZ$21,$O220<=-$BB$21))),\"Yes\",IF(AND($K220=$AX$22,AND(OR($O220<=$AZ$22,$O220>=$BB$22),OR($O220>=-$AZ$22,$O220<=-$BB$22))),\"Yes\",IF(AND($K220=$AX$23,AND(OR($O220<=$AZ$23,$O220>=$BB$23),OR($O220>=-$AZ$23,$O220<=-$BB$23))),\"Yes\",\"No\")))))","v":"No"},{"$f":"IF(BJ208=\"Yes\",I220,\"\")","v":""},{"$f":"IF(BJ208=\"Yes\",J220,\"\")","v":""},{"$f":"IF(C220<>\"\",C220,\"\")","v":""},{"$f":"COUNTIF($BK$16:$BL$1990,BM208)","v":3950}]
[null,null,null,null,null,null,null,null,null,null,null,null,null,null,null,null,null,null,null,null,null,null,null,null,null,null,"","","","",null,null,null,null,null,null,null,null,null,null,null,null,null,null,null,null,null,null,null,null,null,null,null,null,null,null,null,null,null,null,null,"No","","","",3950]
[null,null,null,null,null,null,null,null,null,null,null,null,null,null,null,null,null,null,null,null,null,null,null,null,null,null,"","","","",null,null,null,null,null,null,null,null,null,null,null,null,null,null,null,null,null,null,null,null,null,null,null,null,null,null,null,null,null,null,null,"No","","","",3950]
[null,null,null,null,null,null,null,null,null,null,null,null,null,null,null,null,null,null,null,null,null,null,null,null,null,null,"","","","",null,null,null,null,null,null,null,null,null,null,null,null,null,null,null,null,null,null,null,null,null,null,null,null,null,null,null,null,null,null,null,"No","","","",3950]
[null,null,null,null,null,null,null,null,null,null,null,null,null,null,null,null,null,null,null,null,null,null,null,null,null,null,"","","","",null,null,null,null,null,null,null,null,null,null,null,null,null,null,null,null,null,null,null,null,null,null,null,null,null,null,null,null,null,null,null,"No","","","",3950]
[null,null,null,null,null,null,null,null,null,null,null,null,null,null,null,null,null,null,null,null,null,null,null,null,null,null,"","","","",null,null,null,null,null,null,null,null,null,null,null,null,null,null,null,null,null,null,null,null,null,null,null,null,null,null,null,null,null,null,null,"No","","","",3950]
[null,null,null,null,null,null,null,null,null,null,null,null,null,null,null,null,null,null,null,null,null,null,null,null,null,null,"","","","",null,null,null,null,null,null,null,null,null,null,null,null,null,null,null,null,null,null,null,null,null,null,null,null,null,null,null,null,null,null,null,"No","","","",3950]
[null,null,null,null,null,null,null,null,null,null,null,null,null,null,null,null,null,null,null,null,null,null,null,null,null,null,"","","","",null,null,null,null,null,null,null,null,null,null,null,null,null,null,null,null,null,null,null,null,null,null,null,null,null,null,null,null,null,null,null,"No","","","",3950]
[null,null,null,null,null,null,null,null,null,null,null,null,null,null,null,null,null,null,null,null,null,null,null,null,null,null,"","","","",null,null,null,null,null,null,null,null,null,null,null,null,null,null,null,null,null,null,null,null,null,null,null,null,null,null,null,null,null,null,null,"No","","","",3950]
[null,null,null,null,null,null,null,null,null,null,null,null,null,null,null,null,null,null,null,null,null,null,null,null,null,null,"","","","",null,null,null,null,null,null,null,null,null,null,null,null,null,null,null,null,null,null,null,null,null,null,null,null,null,null,null,null,null,null,null,"No","","","",3950]
[null,null,null,null,null,null,null,null,null,null,null,null,null,null,null,null,null,null,null,null,null,null,null,null,null,null,"","","","",null,null,null,null,null,null,null,null,null,null,null,null,null,null,null,null,null,null,null,null,null,null,null,null,null,null,null,null,null,null,null,"No","","","",3950]
[null,null,null,null,null,null,null,null,null,null,null,null,null,null,null,null,null,null,null,null,null,null,null,null,null,null,"","","",{"$f":"IF(F219<>\"\",F219,\"\")","v":""},null,null,null,null,null,null,null,null,null,null,null,null,null,null,null,null,null,null,null,null,null,null,null,null,null,null,null,null,null,null,null,"No","","","",3950]
[null,null,null,null,null,null,null,null,null,null,null,null,null,null,null,null,null,null,null,null,null,null,null,null,null,null,{"$f":"IF(C220<>\"\",C220,\"\")","v":""},"","","",null,null,null,null,null,null,null,null,null,null,null,null,null,null,null,null,null,null,null,null,null,null,null,null,null,null,null,null,null,null,null,"No","","","",3950]
[null,null,null,null,null,null,null,null,null,null,null,null,null,null,null,null,null,null,null,null,null,null,null,null,null,null,"","","","",null,null,null,null,null,null,null,null,null,null,null,null,null,null,null,null,null,null,null,null,null,null,null,null,null,null,null,null,null,null,null,"No","","","",3950]
[null,null,null,null,null,null,null,null,null,null,null,null,null,null,null,null,null,null,null,null,null,null,null,null,null,null,"","","","",null,null,null,null,null,null,null,null,null,null,null,null,null,null,null,null,null,null,null,null,null,null,null,null,null,null,null,null,null,null,null,"No","","","",3950]
[null,null,null,null,null,null,null,null,null,null,null,null,null,null,null,null,null,null,null,null,null,null,null,null,null,null,"","","","",null,null,null,null,null,null,null,null,null,null,null,null,null,null,null,null,null,null,null,null,null,null,null,null,null,null,null,null,null,null,null,"No","","","",3950]
[null,null,null,null,null,null,null,null,null,null,null,null,null,null,null,null,null,null,null,null,null,null,null,null,null,null,"","","","",null,null,null,null,null,null,null,null,null,null,null,null,null,null,null,null,null,null,null,null,null,null,null,null,null,null,null,null,null,null,null,"No","","","",3950]
[null,null,null,null,null,null,null,null,null,null,null,null,null,null,null,null,null,null,null,null,null,null,null,null,null,null,"","","","",null,null,null,null,null,null,null,null,null,null,null,null,null,null,null,null,null,null,null,null,null,null,null,null,null,null,null,null,null,null,null,"No","","","",3950]
[null,null,null,null,null,null,null,null,null,null,null,null,null,null,null,null,null,null,null,null,null,null,null,null,null,null,"","","","",null,null,null,null,null,null,null,null,null,null,null,null,null,null,null,null,null,null,null,null,null,null,null,null,null,null,null,null,null,null,null,"No","","","",3950]
[null,null,null,null,null,null,null,null,null,null,null,null,null,null,null,null,null,null,null,null,null,null,null,null,null,null,"","","","",null,null,null,null,null,null,null,null,null,null,null,null,null,null,null,null,null,null,null,null,null,null,null,null,null,null,null,null,null,null,null,"No","","","",3950]
[null,null,null,null,null,null,null,null,null,null,null,null,null,null,null,null,null,null,null,null,null,null,null,null,null,null,"","","","",null,null,null,null,null,null,null,null,null,null,null,null,null,null,null,null,null,null,null,null,null,null,null,null,null,null,null,null,null,null,null,"No","","","",3950]
[null,null,null,null,null,null,null,null,null,null,null,null,null,null,null,null,null,null,null,null,null,null,null,null,null,null,"","","","",null,null,null,null,null,null,null,null,null,null,null,null,null,null,null,null,null,null,null,null,null,null,null,null,null,null,null,null,null,null,null,"No","","","",3950]
[null,null,null,null,null,null,null,null,null,null,null,null,null,null,null,null,null,null,null,null,null,null,null,null,null,null,"","","","",null,null,null,null,null,null,null,null,null,null,null,null,null,null,null,null,null,null,null,null,null,null,null,null,null,null,null,null,null,null,null,"No","","","",3950]
[null,null,null,null,null,null,null,null,null,null,null,null,null,null,null,null,null,null,null,null,null,null,null,null,null,null,"","","","",null,null,null,null,null,null,null,null,null,null,null,null,null,null,null,null,null,null,null,null,null,null,null,null,null,null,null,null,null,null,null,"No","","","",3950]
[null,null,null,null,null,null,null,null,null,null,null,null,null,null,null,null,null,null,null,null,null,null,null,null,null,null,"","","","",null,null,null,null,null,null,null,null,null,null,null,null,null,null,null,null,null,null,null,null,null,null,null,null,null,null,null,null,null,null,null,"No","","","",3950]
[null,null,null,null,null,null,null,null,null,null,null,null,null,null,null,null,null,null,null,null,null,null,null,null,null,null,"","","","",null,null,null,null,null,null,null,null,null,null,null,null,null,null,null,null,null,null,null,null,null,null,null,null,null,null,null,null,null,null,null,"No","","","",3950]
[null,null,null,null,null,null,null,null,null,null,null,null,null,null,null,null,null,null,null,null,null,null,null,null,null,null,"","","","",null,null,null,null,null,null,null,null,null,null,null,null,null,null,null,null,null,null,null,null,null,null,null,null,null,null,null,null,null,null,null,"No","","","",3950]
[null,null,null,null,null,null,null,null,null,null,null,null,null,null,null,null,null,null,null,null,null,null,null,null,null,null,"","","","",null,null,null,null,null,null,null,null,null,null,null,null,null,null,null,null,null,null,null,null,null,null,null,null,null,null,null,null,null,null,null,"No","","","",3950]
[null,null,null,null,null,null,null,null,null,null,null,null,null,null,null,null,null,null,null,null,null,null,null,null,null,null,"","","","",null,null,null,null,null,null,null,null,null,null,null,null,null,null,null,null,null,null,null,null,null,null,null,null,null,null,null,null,null,null,null,"No","","","",3950]
[null,null,null,null,null,null,null,null,null,null,null,null,null,null,null,null,null,null,null,null,null,null,null,null,null,null,"","","","",null,null,null,null,null,null,null,null,null,null,null,null,null,null,null,null,null,null,null,null,null,null,null,null,null,null,null,null,null,null,null,"No","","","",3950]
[null,null,null,null,null,null,null,null,null,null,null,null,null,null,null,null,null,null,null,null,null,null,null,null,null,null,"","","","",null,null,null,null,null,null,null,null,null,null,null,null,null,null,null,null,null,null,null,null,null,null,null,null,null,null,null,null,null,null,null,"No","","","",3950]
[null,null,null,null,null,null,null,null,null,null,null,null,null,null,null,null,null,null,null,null,null,null,null,null,null,null,"","","","",null,null,null,null,null,null,null,null,null,null,null,null,null,null,null,null,null,null,null,null,null,null,null,null,null,null,null,null,null,null,null,"No","","","",3950]
[null,null,null,null,null,null,null,null,null,null,null,null,null,null,null,null,null,null,null,null,null,null,null,null,null,null,"","","","",null,null,null,null,null,null,null,null,null,null,null,null,null,null,null,null,null,null,null,null,null,null,null,null,null,null,null,null,null,null,null,"No","","","",3950]
[null,null,null,null,null,null,null,null,null,null,null,null,null,null,null,null,null,null,null,null,null,null,null,null,null,null,"","","","",null,null,null,null,null,null,null,null,null,null,null,null,null,null,null,null,null,null,null,null,null,null,null,null,null,null,null,null,null,null,null,"No","","","",3950]
[null,null,null,null,null,null,null,null,null,null,null,null,null,null,null,null,null,null,null,null,null,null,null,null,null,null,"","","","",null,null,null,null,null,null,null,null,null,null,null,null,null,null,null,null,null,null,null,null,null,null,null,null,null,null,null,null,null,null,null,"No","","","",3950]
[null,null,null,null,null,null,null,null,null,null,null,null,null,null,null,null,null,null,null,null,null,null,null,null,null,null,"","","","",null,null,null,null,null,null,null,null,null,null,null,null,null,null,null,null,null,null,null,null,null,null,null,null,null,null,null,null,null,null,null,"No","","","",3950]
[null,null,null,null,null,null,null,null,null,null,null,null,null,null,null,null,null,null,null,null,null,null,null,null,null,null,"","","","",null,null,null,null,null,null,null,null,null,null,null,null,null,null,null,null,null,null,null,null,null,null,null,null,null,null,null,null,null,null,null,"No","","","",3950]
[null,null,null,null,null,null,null,null,null,null,null,null,null,null,null,null,null,null,null,null,null,null,null,null,null,null,"","","","",null,null,null,null,null,null,null,null,null,null,null,null,null,null,null,null,null,null,null,null,null,null,null,null,null,null,null,null,null,null,null,"No","","","",3950]
[null,null,null,null,null,null,null,null,null,null,null,null,null,null,null,null,null,null,null,null,null,null,null,null,null,null,"","","","",null,null,null,null,null,null,null,null,null,null,null,null,null,null,null,null,null,null,null,null,null,null,null,null,null,null,null,null,null,null,null,"No","","","",3950]
[null,null,null,null,null,null,null,null,null,null,null,null,null,null,null,null,null,null,null,null,null,null,null,null,null,null,"","","","",null,null,null,null,null,null,null,null,null,null,null,null,null,null,null,null,null,null,null,null,null,null,null,null,null,null,null,null,null,null,null,"No","","","",3950]
[null,null,null,null,null,null,null,null,null,null,null,null,null,null,null,null,null,null,null,null,null,null,null,null,null,null,"","","","",null,null,null,null,null,null,null,null,null,null,null,null,null,null,null,null,null,null,null,null,null,null,null,null,null,null,null,null,null,null,null,"No","","","",3950]
[null,null,null,null,null,null,null,null,null,null,null,null,null,null,null,null,null,null,null,null,null,null,null,null,null,null,"","","","",null,null,null,null,null,null,null,null,null,null,null,null,null,null,null,null,null,null,null,null,null,null,null,null,null,null,null,null,null,null,null,"No","","","",3950]
[null,null,null,null,null,null,null,null,null,null,null,null,null,null,null,null,null,null,null,null,null,null,null,null,null,null,"","","","",null,null,null,null,null,null,null,null,null,null,null,null,null,null,null,null,null,null,null,null,null,null,null,null,null,null,null,null,null,null,null,"No","","","",3950]
[null,null,null,null,null,null,null,null,null,null,null,null,null,null,null,null,null,null,null,null,null,null,null,null,null,null,"","","","",null,null,null,null,null,null,null,null,null,null,null,null,null,null,null,null,null,null,null,null,null,null,null,null,null,null,null,null,null,null,null,"No","","","",3950]
[null,null,null,null,null,null,null,null,null,null,null,null,null,null,null,null,null,null,null,null,null,null,null,null,null,null,"","","","",null,null,null,null,null,null,null,null,null,null,null,null,null,null,null,null,null,null,null,null,null,null,null,null,null,null,null,null,null,null,null,"No","","","",3950]
[null,null,null,null,null,null,null,null,null,null,null,null,null,null,null,null,null,null,null,null,null,null,null,null,null,null,"","","","",null,null,null,null,null,null,null,null,null,null,null,null,null,null,null,null,null,null,null,null,null,null,null,null,null,null,null,null,null,null,null,"No","","","",3950]
[null,null,null,null,null,null,null,null,null,null,null,null,null,null,null,null,null,null,null,null,null,null,null,null,null,null,"","","","",null,null,null,null,null,null,null,null,null,null,null,null,null,null,null,null,null,null,null,null,null,null,null,null,null,null,null,null,null,null,null,"No","","","",3950]
[null,null,null,null,null,null,null,null,null,null,null,null,null,null,null,null,null,null,null,null,null,null,null,null,null,null,"","","","",null,null,null,null,null,null,null,null,null,null,null,null,null,null,null,null,null,null,null,null,null,null,null,null,null,null,null,null,null,null,null,"No","","","",3950]
[null,null,null,null,null,null,null,null,null,null,null,null,null,null,null,null,null,null,null,null,null,null,null,null,null,null,"","","","",null,null,null,null,null,null,null,null,null,null,null,null,null,null,null,null,null,null,null,null,null,null,null,null,null,null,null,null,null,null,null,"No","","","",3950]
[null,null,null,null,null,null,null,null,null,null,null,null,null,null,null,null,null,null,null,null,null,null,null,null,null,null,"","","","",null,null,null,null,null,null,null,null,null,null,null,null,null,null,null,null,null,null,null,null,null,null,null,null,null,null,null,null,null,null,null,"No","","","",3950]
[null,null,null,null,null,null,null,null,null,null,null,null,null,null,null,null,null,null,null,null,null,null,null,null,null,null,"","","","",null,null,null,null,null,null,null,null,null,null,null,null,null,null,null,null,null,null,null,null,null,null,null,null,null,null,null,null,null,null,null,"No","","","",3950]
[null,null,null,null,null,null,null,null,null,null,null,null,null,null,null,null,null,null,null,null,null,null,null,null,null,null,"","","","",null,null,null,null,null,null,null,null,null,null,null,null,null,null,null,null,null,null,null,null,null,null,null,null,null,null,null,null,null,null,null,"No","","","",3950]
[null,null,null,null,null,null,null,null,null,null,null,null,null,null,null,null,null,null,null,null,null,null,null,null,null,null,"","","","",null,null,null,null,null,null,null,null,null,null,null,null,null,null,null,null,null,null,null,null,null,null,null,null,null,null,null,null,null,null,null,"No","","","",3950]
[null,null,null,null,null,null,null,null,null,null,null,null,null,null,null,null,null,null,null,null,null,null,null,null,null,null,"","","","",null,null,null,null,null,null,null,null,null,null,null,null,null,null,null,null,null,null,null,null,null,null,null,null,null,null,null,null,null,null,null,"No","","","",3950]
[null,null,null,null,null,null,null,null,null,null,null,null,null,null,null,null,null,null,null,null,null,null,null,null,null,null,"","","","",null,null,null,null,null,null,null,null,null,null,null,null,null,null,null,null,null,null,null,null,null,null,null,null,null,null,null,null,null,null,null,"No","","","",3950]
[null,null,null,null,null,null,null,null,null,null,null,null,null,null,null,null,null,null,null,null,null,null,null,null,null,null,"","","","",null,null,null,null,null,null,null,null,null,null,null,null,null,null,null,null,null,null,null,null,null,null,null,null,null,null,null,null,null,null,null,"No","","","",3950]
[null,null,null,null,null,null,null,null,null,null,null,null,null,null,null,null,null,null,null,null,null,null,null,null,null,null,"","","","",null,null,null,null,null,null,null,null,null,null,null,null,null,null,null,null,null,null,null,null,null,null,null,null,null,null,null,null,null,null,null,"No","","","",3950]
[null,null,null,null,null,null,null,null,null,null,null,null,null,null,null,null,null,null,null,null,null,null,null,null,null,null,"","","","",null,null,null,null,null,null,null,null,null,null,null,null,null,null,null,null,null,null,null,null,null,null,null,null,null,null,null,null,null,null,null,"No","","","",3950]
[null,null,null,null,null,null,null,null,null,null,null,null,null,null,null,null,null,null,null,null,null,null,null,null,null,null,"","","","",null,null,null,null,null,null,null,null,null,null,null,null,null,null,null,null,null,null,null,null,null,null,null,null,null,null,null,null,null,null,null,"No","","","",3950]
[null,null,null,null,null,null,null,null,null,null,null,null,null,null,null,null,null,null,null,null,null,null,null,null,null,null,"","","","",null,null,null,null,null,null,null,null,null,null,null,null,null,null,null,null,null,null,null,null,null,null,null,null,null,null,null,null,null,null,null,"No","","","",3950]
[null,null,null,null,null,null,null,null,null,null,null,null,null,null,null,null,null,null,null,null,null,null,null,null,null,null,"","","","",null,null,null,null,null,null,null,null,null,null,null,null,null,null,null,null,null,null,null,null,null,null,null,null,null,null,null,null,null,null,null,"No","","","",3950]
[null,null,null,null,null,null,null,null,null,null,null,null,null,null,null,null,null,null,null,null,null,null,null,null,null,null,"","","","",null,null,null,null,null,null,null,null,null,null,null,null,null,null,null,null,null,null,null,null,null,null,null,null,null,null,null,null,null,null,null,"No","","","",3950]
[null,null,null,null,null,null,null,null,null,null,null,null,null,null,null,null,null,null,null,null,null,null,null,null,null,null,"","","","",null,null,null,null,null,null,null,null,null,null,null,null,null,null,null,null,null,null,null,null,null,null,null,null,null,null,null,null,null,null,null,"No","","","",3950]
[null,null,null,null,null,null,null,null,null,null,null,null,null,null,null,null,null,null,null,null,null,null,null,null,null,null,"","","","",null,null,null,null,null,null,null,null,null,null,null,null,null,null,null,null,null,null,null,null,null,null,null,null,null,null,null,null,null,null,null,"No","","","",3950]
[null,null,null,null,null,null,null,null,null,null,null,null,null,null,null,null,null,null,null,null,null,null,null,null,null,null,"","","","",null,null,null,null,null,null,null,null,null,null,null,null,null,null,null,null,null,null,null,null,null,null,null,null,null,null,null,null,null,null,null,{"$f":"IF(AND($K284=$AX$18,AND(OR($O284<=$AZ$18,$O284>=$BB$18),OR($O284>=-$AZ$18,$O284<=-$BB$18))),\"Yes\",IF(AND($K284=$AX$20,AND(OR($O284<=$AZ$20,$O284>=$BB$20),OR($O284>=-$AZ$20,$O284<=-$BB$20))),\"Yes\",IF(AND($K284=$AX$21,AND(OR($O284<=$AZ$21,$O284>=$BB$21),OR($O284>=-$AZ$21,$O284<=-$BB$21))),\"Yes\",IF(AND($K284=$AX$22,AND(OR($O284<=$AZ$22,$O284>=$BB$22),OR($O284>=-$AZ$22,$O284<=-$BB$22))),\"Yes\",IF(AND($K284=$AX$23,AND(OR($O284<=$AZ$23,$O284>=$BB$23),OR($O284>=-$AZ$23,$O284<=-$BB$23))),\"Yes\",\"No\")))))","v":"No"},{"$f":"IF(BJ272=\"Yes\",I284,\"\")","v":""},{"$f":"IF(BJ272=\"Yes\",J284,\"\")","v":""},{"$f":"IF(C284<>\"\",C284,\"\")","v":""},{"$f":"COUNTIF($BK$16:$BL$1990,BM272)","v":3950}]
[null,null,null,null,null,null,null,null,null,null,null,null,null,null,null,null,null,null,null,null,null,null,null,null,null,null,"","","","",null,null,null,null,null,null,null,null,null,null,null,null,null,null,null,null,null,null,null,null,null,null,null,null,null,null,null,null,null,null,null,"No","","","",3950]
[null,null,null,null,null,null,null,null,null,null,null,null,null,null,null,null,null,null,null,null,null,null,null,null,null,null,"","","","",null,null,null,null,null,null,null,null,null,null,null,null,null,null,null,null,null,null,null,null,null,null,null,null,null,null,null,null,null,null,null,"No","","","",3950]
[null,null,null,null,null,null,null,null,null,null,null,null,null,null,null,null,null,null,null,null,null,null,null,null,null,null,"","","","",null,null,null,null,null,null,null,null,null,null,null,null,null,null,null,null,null,null,null,null,null,null,null,null,null,null,null,null,null,null,null,"No","","","",3950]
[null,null,null,null,null,null,null,null,null,null,null,null,null,null,null,null,null,null,null,null,null,null,null,null,null,null,"","","","",null,null,null,null,null,null,null,null,null,null,null,null,null,null,null,null,null,null,null,null,null,null,null,null,null,null,null,null,null,null,null,"No","","","",3950]
[null,null,null,null,null,null,null,null,null,null,null,null,null,null,null,null,null,null,null,null,null,null,null,null,null,null,"","","","",null,null,null,null,null,null,null,null,null,null,null,null,null,null,null,null,null,null,null,null,null,null,null,null,null,null,null,null,null,null,null,"No","","","",3950]
[null,null,null,null,null,null,null,null,null,null,null,null,null,null,null,null,null,null,null,null,null,null,null,null,null,null,"","","","",null,null,null,null,null,null,null,null,null,null,null,null,null,null,null,null,null,null,null,null,null,null,null,null,null,null,null,null,null,null,null,"No","","","",3950]
[null,null,null,null,null,null,null,null,null,null,null,null,null,null,null,null,null,null,null,null,null,null,null,null,null,null,"","","","",null,null,null,null,null,null,null,null,null,null,null,null,null,null,null,null,null,null,null,null,null,null,null,null,null,null,null,null,null,null,null,"No","","","",3950]
[null,null,null,null,null,null,null,null,null,null,null,null,null,null,null,null,null,null,null,null,null,null,null,null,null,null,"","","","",null,null,null,null,null,null,null,null,null,null,null,null,null,null,null,null,null,null,null,null,null,null,null,null,null,null,null,null,null,null,null,"No","","","",3950]
[null,null,null,null,null,null,null,null,null,null,null,null,null,null,null,null,null,null,null,null,null,null,null,null,null,null,"","","","",null,null,null,null,null,null,null,null,null,null,null,null,null,null,null,null,null,null,null,null,null,null,null,null,null,null,null,null,null,null,null,"No","","","",3950]
[null,null,null,null,null,null,null,null,null,null,null,null,null,null,null,null,null,null,null,null,null,null,null,null,null,null,"","","","",null,null,null,null,null,null,null,null,null,null,null,null,null,null,null,null,null,null,null,null,null,null,null,null,null,null,null,null,null,null,null,"No","","","",3950]
[null,null,null,null,null,null,null,null,null,null,null,null,null,null,null,null,null,null,null,null,null,null,null,null,null,null,"","","","",null,null,null,null,null,null,null,null,null,null,null,null,null,null,null,null,null,null,null,null,null,null,null,null,null,null,null,null,null,null,null,"No","","","",3950]
[null,null,null,null,null,null,null,null,null,null,null,null,null,null,null,null,null,null,null,null,null,null,null,null,null,null,{"$f":"IF(C284<>\"\",C284,\"\")","v":""},"","","",null,null,null,null,null,null,null,null,null,null,null,null,null,null,null,null,null,null,null,null,null,null,null,null,null,null,null,null,null,null,null,"No","","","",3950]
[null,null,null,null,null,null,null,null,null,null,null,null,null,null,null,null,null,null,null,null,null,null,null,null,null,null,"","","","",null,null,null,null,null,null,null,null,null,null,null,null,null,null,null,null,null,null,null,null,null,null,null,null,null,null,null,null,null,null,null,"No","","","",3950]
[null,null,null,null,null,null,null,null,null,null,null,null,null,null,null,null,null,null,null,null,null,null,null,null,null,null,"","","","",null,null,null,null,null,null,null,null,null,null,null,null,null,null,null,null,null,null,null,null,null,null,null,null,null,null,null,null,null,null,null,"No","","","",3950]
[null,null,null,null,null,null,null,null,null,null,null,null,null,null,null,null,null,null,null,null,null,null,null,null,null,null,"","","","",null,null,null,null,null,null,null,null,null,null,null,null,null,null,null,null,null,null,null,null,null,null,null,null,null,null,null,null,null,null,null,"No","","","",3950]
[null,null,null,null,null,null,null,null,null,null,null,null,null,null,null,null,null,null,null,null,null,null,null,null,null,null,"","","","",null,null,null,null,null,null,null,null,null,null,null,null,null,null,null,null,null,null,null,null,null,null,null,null,null,null,null,null,null,null,null,"No","","","",3950]
[null,null,null,null,null,null,null,null,null,null,null,null,null,null,null,null,null,null,null,null,null,null,null,null,null,null,"","","","",null,null,null,null,null,null,null,null,null,null,null,null,null,null,null,null,null,null,null,null,null,null,null,null,null,null,null,null,null,null,null,"No","","","",3950]
[null,null,null,null,null,null,null,null,null,null,null,null,null,null,null,null,null,null,null,null,null,null,null,null,null,null,"","","","",null,null,null,null,null,null,null,null,null,null,null,null,null,null,null,null,null,null,null,null,null,null,null,null,null,null,null,null,null,null,null,"No","","","",3950]
[null,null,null,null,null,null,null,null,null,null,null,null,null,null,null,null,null,null,null,null,null,null,null,null,null,null,"","","","",null,null,null,null,null,null,null,null,null,null,null,null,null,null,null,null,null,null,null,null,null,null,null,null,null,null,null,null,null,null,null,"No","","","",3950]
[null,null,null,null,null,null,null,null,null,null,null,null,null,null,null,null,null,null,null,null,null,null,null,null,null,null,"","","","",null,null,null,null,null,null,null,null,null,null,null,null,null,null,null,null,null,null,null,null,null,null,null,null,null,null,null,null,null,null,null,"No","","","",3950]
[null,null,null,null,null,null,null,null,null,null,null,null,null,null,null,null,null,null,null,null,null,null,null,null,null,null,"","","","",null,null,null,null,null,null,null,null,null,null,null,null,null,null,null,null,null,null,null,null,null,null,null,null,null,null,null,null,null,null,null,"No","","","",3950]
[null,null,null,null,null,null,null,null,null,null,null,null,null,null,null,null,null,null,null,null,null,null,null,null,null,null,"","","","",null,null,null,null,null,null,null,null,null,null,null,null,null,null,null,null,null,null,null,null,null,null,null,null,null,null,null,null,null,null,null,"No","","","",3950]
[null,null,null,null,null,null,null,null,null,null,null,null,null,null,null,null,null,null,null,null,null,null,null,null,null,null,"","","","",null,null,null,null,null,null,null,null,null,null,null,null,null,null,null,null,null,null,null,null,null,null,null,null,null,null,null,null,null,null,null,"No","","","",3950]
[null,null,null,null,null,null,null,null,null,null,null,null,null,null,null,null,null,null,null,null,null,null,null,null,null,null,"","","","",null,null,null,null,null,null,null,null,null,null,null,null,null,null,null,null,null,null,null,null,null,null,null,null,null,null,null,null,null,null,null,"No","","","",3950]
[null,null,null,null,null,null,null,null,null,null,null,null,null,null,null,null,null,null,null,null,null,null,null,null,null,null,"","","","",null,null,null,null,null,null,null,null,null,null,null,null,null,null,null,null,null,null,null,null,null,null,null,null,null,null,null,null,null,null,null,"No","","","",3950]
[null,null,null,null,null,null,null,null,null,null,null,null,null,null,null,null,null,null,null,null,null,null,null,null,null,null,"","","","",null,null,null,null,null,null,null,null,null,null,null,null,null,null,null,null,null,null,null,null,null,null,null,null,null,null,null,null,null,null,null,"No","","","",3950]
[null,null,null,null,null,null,null,null,null,null,null,null,null,null,null,null,null,null,null,null,null,null,null,null,null,null,"","","","",null,null,null,null,null,null,null,null,null,null,null,null,null,null,null,null,null,null,null,null,null,null,null,null,null,null,null,null,null,null,null,"No","","","",3950]
[null,null,null,null,null,null,null,null,null,null,null,null,null,null,null,null,null,null,null,null,null,null,null,null,null,null,"","","","",null,null,null,null,null,null,null,null,null,null,null,null,null,null,null,null,null,null,null,null,null,null,null,null,null,null,null,null,null,null,null,"No","","","",3950]
[null,null,null,null,null,null,null,null,null,null,null,null,null,null,null,null,null,null,null,null,null,null,null,null,null,null,"","","","",null,null,null,null,null,null,null,null,null,null,null,null,null,null,null,null,null,null,null,null,null,null,null,null,null,null,null,null,null,null,null,"No","","","",3950]
[null,null,null,null,null,null,null,null,null,null,null,null,null,null,null,null,null,null,null,null,null,null,null,null,null,null,"","","","",null,null,null,null,null,null,null,null,null,null,null,null,null,null,null,null,null,null,null,null,null,null,null,null,null,null,null,null,null,null,null,"No","","","",3950]
[null,null,null,null,null,null,null,null,null,null,null,null,null,null,null,null,null,null,null,null,null,null,null,null,null,null,"","","","",null,null,null,null,null,null,null,null,null,null,null,null,null,null,null,null,null,null,null,null,null,null,null,null,null,null,null,null,null,null,null,"No","","","",3950]
[null,null,null,null,null,null,null,null,null,null,null,null,null,null,null,null,null,null,null,null,null,null,null,null,null,null,"","","","",null,null,null,null,null,null,null,null,null,null,null,null,null,null,null,null,null,null,null,null,null,null,null,null,null,null,null,null,null,null,null,"No","","","",3950]
[null,null,null,null,null,null,null,null,null,null,null,null,null,null,null,null,null,null,null,null,null,null,null,null,null,null,"","","","",null,null,null,null,null,null,null,null,null,null,null,null,null,null,null,null,null,null,null,null,null,null,null,null,null,null,null,null,null,null,null,"No","","","",3950]
[null,null,null,null,null,null,null,null,null,null,null,null,null,null,null,null,null,null,null,null,null,null,null,null,null,null,"","","","",null,null,null,null,null,null,null,null,null,null,null,null,null,null,null,null,null,null,null,null,null,null,null,null,null,null,null,null,null,null,null,"No","","","",3950]
[null,null,null,null,null,null,null,null,null,null,null,null,null,null,null,null,null,null,null,null,null,null,null,null,null,null,"","","","",null,null,null,null,null,null,null,null,null,null,null,null,null,null,null,null,null,null,null,null,null,null,null,null,null,null,null,null,null,null,null,"No","","","",3950]
[null,null,null,null,null,null,null,null,null,null,null,null,null,null,null,null,null,null,null,null,null,null,null,null,null,null,"","","","",null,null,null,null,null,null,null,null,null,null,null,null,null,null,null,null,null,null,null,null,null,null,null,null,null,null,null,null,null,null,null,"No","","","",3950]
[null,null,null,null,null,null,null,null,null,null,null,null,null,null,null,null,null,null,null,null,null,null,null,null,null,null,"","","","",null,null,null,null,null,null,null,null,null,null,null,null,null,null,null,null,null,null,null,null,null,null,null,null,null,null,null,null,null,null,null,"No","","","",3950]
[null,null,null,null,null,null,null,null,null,null,null,null,null,null,null,null,null,null,null,null,null,null,null,null,null,null,"","","","",null,null,null,null,null,null,null,null,null,null,null,null,null,null,null,null,null,null,null,null,null,null,null,null,null,null,null,null,null,null,null,"No","","","",3950]
[null,null,null,null,null,null,null,null,null,null,null,null,null,null,null,null,null,null,null,null,null,null,null,null,null,null,"","","","",null,null,null,null,null,null,null,null,null,null,null,null,null,null,null,null,null,null,null,null,null,null,null,null,null,null,null,null,null,null,null,"No","","","",3950]
[null,null,null,null,null,null,{"$f":"IF(I312<>\"\",VLOOKUP(I312,$C$28:$F$3000,4,FALSE),\"\")","v":""},"",null,null,null,{"$f":"IF(K312<>\"\",VLOOKUP(K312,$BE$16:$BF$23,2,FALSE),\"\")","v":""},null,{"$f":"IF(M312<>\"\",ROUND((VLOOKUP(J312,AA$28:AD$2001,4,FALSE)-VLOOKUP(I312,AA$28:AD$2001,4,FALSE)),2),\"\")","v":""},{"$f":"IF(M312<>\"\",ROUND((VLOOKUP(J312,AA$28:AD$2001,4,FALSE)-VLOOKUP(I312,AA$28:AD$2001,4,FALSE))/M312,3),\"\")","v":""},{"$f":"IF(K312<>\"\",VLOOKUP(K312,$AX$16:$BC$23,3,FALSE),\"\")","v":""},{"$f":"IF(K312<>\"\",VLOOKUP(K312,$AX$16:$BC$23,5,FALSE),\"\")","v":""},{"$f":"IF(O312<>\"\",VLOOKUP(K312,$AX$16:$BC$23,6,FALSE),\"\")","v":""},{"$f":"IF(O312<>\"\",IF(K312<>\"Match Existing Cross Slope\",IF(O312>0,VLOOKUP(K312,$AX$16:$BC$23,4,TRUE)-O312,VLOOKUP(K312,$AX$16:$BC$23,4,TRUE)+O312),\"\"),\"\")","v":""},{"$f":"IF(S312>=0,R312,IF(AND(M312>15,O312>$BB$21),\"\",VLOOKUP(K312,$AX$16:$BC$23,2,FALSE)&\" to \"&(1+ABS(O312)*100&\"%\")))","v":""},{"$f":"IF(OR(T312<>R312,V312=\"Yes\"),\"Yes\",\"\")","v":""},{"$f":"IF(AND(OR(K312=\"Ramp Running Slope\",K312=\"Sidewalk Running Slope\"),S312>=0,S312<0.01),\"Yes\",IF(AND(OR(K312=\"Ramp Cross Slope\",K312=\"Sidewalk Cross Slope\",K312=\"Landing/Turning Space\"),S312>=0,S312<0.005),\"Yes\",\"\"))","v":""},null,null,null,null,"","","","",null,null,null,null,null,null,null,null,null,null,null,null,null,null,null,null,null,null,null,null,null,null,null,null,null,null,null,null,null,null,null,"No","","","",3950]
[null,null,null,null,null,null,"","",null,null,null,"",null,"","","","","","","","","",null,null,null,null,"","","","",null,null,null,null,null,null,null,null,null,null,null,null,null,null,null,null,null,null,null,null,null,null,null,null,null,null,null,null,null,null,null,"No","","","",3950]
[null,null,null,null,null,null,"","",null,null,null,"",null,"","","","","","","","","",null,null,null,null,"","","","",null,null,null,null,null,null,null,null,null,null,null,null,null,null,null,null,null,null,null,null,null,null,null,null,null,null,null,null,null,null,null,"No","","","",3950]
[null,null,null,null,null,null,"","",null,null,null,"",null,"","","","","","","","","",null,null,null,null,"","","","",null,null,null,null,null,null,null,null,null,null,null,null,null,null,null,null,null,null,null,null,null,null,null,null,null,null,null,null,null,null,null,"No","","","",3950]
[null,null,null,null,null,null,"","",null,null,null,"",null,"","","","","","","","","",null,null,null,null,"","","","",null,null,null,null,null,null,null,null,null,null,null,null,null,null,null,null,null,null,null,null,null,null,null,null,null,null,null,null,null,null,null,"No","","","",3950]
[null,null,null,null,null,null,"","",null,null,null,"",null,"","","","","","","","","",null,null,null,null,"","","","",null,null,null,null,null,null,null,null,null,null,null,null,null,null,null,null,null,null,null,null,null,null,null,null,null,null,null,null,null,null,null,"No","","","",3950]
[null,null,null,null,null,null,"","",null,null,null,"",null,"","","","","","","","","",null,null,null,null,"","","","",null,null,null,null,null,null,null,null,null,null,null,null,null,null,null,null,null,null,null,null,null,null,null,null,null,null,null,null,null,null,null,"No","","","",3950]
[null,null,null,null,null,null,"","",null,null,null,"",null,"","","","","","","","","",null,null,null,null,"","","","",null,null,null,null,null,null,null,null,null,null,null,null,null,null,null,null,null,null,null,null,null,null,null,null,null,null,null,null,null,null,null,"No","","","",3950]
[null,null,null,null,null,null,"","",null,null,null,"",null,"","","","","","","","","",null,null,null,null,"","","","",null,null,null,null,null,null,null,null,null,null,null,null,null,null,null,null,null,null,null,null,null,null,null,null,null,null,null,null,null,null,null,"No","","","",3950]
[null,null,null,null,null,null,"","",null,null,null,"",null,"","","","","","","","","",null,null,null,null,"","","","",null,null,null,null,null,null,null,null,null,null,null,null,null,null,null,null,null,null,null,null,null,null,null,null,null,null,null,null,null,null,null,"No","","","",3950]
[null,null,null,null,null,null,"","",null,null,null,"",null,"","","","","","","","","",null,null,null,null,"","","","",null,null,null,null,null,null,null,null,null,null,null,null,null,null,null,null,null,null,null,null,null,null,null,null,null,null,null,null,null,null,null,"No","","","",3950]
[null,null,null,null,null,null,"","",null,null,null,"",null,"","","","","","","","","",null,null,null,null,"","","","",null,null,null,null,null,null,null,null,null,null,null,null,null,null,null,null,null,null,null,null,null,null,null,null,null,null,null,null,null,null,null,"No","","","",3950]
[null,null,null,null,null,null,"","",null,null,null,"",null,"","","","","","","","","",null,null,null,null,"","","","",null,null,null,null,null,null,null,null,null,null,null,null,null,null,null,null,null,null,null,null,null,null,null,null,null,null,null,null,null,null,null,"No","","","",3950]
[null,null,null,null,null,null,"","",null,null,null,"",null,"","","","","","","","","",null,null,null,null,"","","","",null,null,null,null,null,null,null,null,null,null,null,null,null,null,null,null,null,null,null,null,null,null,null,null,null,null,null,null,null,null,null,"No","","","",3950]
[null,null,null,null,null,null,"","",null,null,null,"",null,"","","","","","","","","",null,null,null,null,"","","","",null,null,null,null,null,null,null,null,null,null,null,null,null,null,null,null,null,null,null,null,null,null,null,null,null,null,null,null,null,null,null,"No","","","",3950]
[null,null,null,null,null,null,"","",null,null,null,"",null,"","","","","","","","","",null,null,null,null,"","","","",null,null,null,null,null,null,null,null,null,null,null,null,null,null,null,null,null,null,null,null,null,null,null,null,null,null,null,null,null,null,null,"No","","","",3950]
[null,null,null,null,null,null,"","",null,null,null,"",null,"","","","","","","","","",null,null,null,null,"","","","",null,null,null,null,null,null,null,null,null,null,null,null,null,null,null,null,null,null,null,null,null,null,null,null,null,null,null,null,null,null,null,"No","","","",3950]
[null,null,null,null,null,null,"","",null,null,null,"",null,"","","","","","","","","",null,null,null,null,"","","","",null,null,null,null,null,null,null,null,null,null,null,null,null,null,null,null,null,null,null,null,null,null,null,null,null,null,null,null,null,null,null,"No","","","",3950]
[null,null,null,null,null,null,"","",null,null,null,"",null,"","","","","","","","","",null,null,null,null,"","","","",null,null,null,null,null,null,null,null,null,null,null,null,null,null,null,null,null,null,null,null,null,null,null,null,null,null,null,null,null,null,null,"No","","","",3950]
[null,null,null,null,null,null,"","",null,null,null,"",null,"","","","","","","","","",null,null,null,null,"","","","",null,null,null,null,null,null,null,null,null,null,null,null,null,null,null,null,null,null,null,null,null,null,null,null,null,null,null,null,null,null,null,"No","","","",3950]
[null,null,null,null,null,null,"","",null,null,null,"",null,"","","","","","","","","",null,null,null,null,"","","","",null,null,null,null,null,null,null,null,null,null,null,null,null,null,null,null,null,null,null,null,null,null,null,null,null,null,null,null,null,null,null,"No","","","",3950]
[null,null,null,null,null,null,"","",null,null,null,"",null,"","","","","","","","","",null,null,null,null,"","","","",null,null,null,null,null,null,null,null,null,null,null,null,null,null,null,null,null,null,null,null,null,null,null,null,null,null,null,null,null,null,null,"No","","","",3950]
[null,null,null,null,null,null,"","",null,null,null,"",null,"","","","","","","","","",null,null,null,null,"","","","",null,null,null,null,null,null,null,null,null,null,null,null,null,null,null,null,null,null,null,null,null,null,null,null,null,null,null,null,null,null,null,"No","","","",3950]
[null,null,null,null,null,null,"","",null,null,null,"",null,"","","","","","","","","",null,null,null,null,"","","","",null,null,null,null,null,null,null,null,null,null,null,null,null,null,null,null,null,null,null,null,null,null,null,null,null,null,null,null,null,null,null,"No","","","",3950]
[null,null,null,null,null,null,"","",null,null,null,"",null,"","","","","","","","","",null,null,null,null,"","","","",null,null,null,null,null,null,null,null,null,null,null,null,null,null,null,null,null,null,null,null,null,null,null,null,null,null,null,null,null,null,null,{"$f":"IF(AND($K348=$AX$18,AND(OR($O348<=$AZ$18,$O348>=$BB$18),OR($O348>=-$AZ$18,$O348<=-$BB$18))),\"Yes\",IF(AND($K348=$AX$20,AND(OR($O348<=$AZ$20,$O348>=$BB$20),OR($O348>=-$AZ$20,$O348<=-$BB$20))),\"Yes\",IF(AND($K348=$AX$21,AND(OR($O348<=$AZ$21,$O348>=$BB$21),OR($O348>=-$AZ$21,$O348<=-$BB$21))),\"Yes\",IF(AND($K348=$AX$22,AND(OR($O348<=$AZ$22,$O348>=$BB$22),OR($O348>=-$AZ$22,$O348<=-$BB$22))),\"Yes\",IF(AND($K348=$AX$23,AND(OR($O348<=$AZ$23,$O348>=$BB$23),OR($O348>=-$AZ$23,$O348<=-$BB$23))),\"Yes\",\"No\")))))","v":"No"},{"$f":"IF(BJ336=\"Yes\",I348,\"\")","v":""},{"$f":"IF(BJ336=\"Yes\",J348,\"\")","v":""},{"$f":"IF(C348<>\"\",C348,\"\")","v":""},{"$f":"COUNTIF($BK$16:$BL$1990,BM336)","v":3950}]
[null,null,null,null,null,null,"","",null,null,null,"",null,"","","","","","","","","",null,null,null,null,"","","","",null,null,null,null,null,null,null,null,null,null,null,null,null,null,null,null,null,null,null,null,null,null,null,null,null,null,null,null,null,null,null,"No","","","",3950]
[null,null,null,null,null,null,"","",null,null,null,"",null,"","","","","","","","","",null,null,null,null,"","","","",null,null,null,null,null,null,null,null,null,null,null,null,null,null,null,null,null,null,null,null,null,null,null,null,null,null,null,null,null,null,null,"No","","","",3950]
[null,null,null,null,null,null,"","",null,null,null,"",null,"","","","","","","","","",null,null,null,null,"","","","",null,null,null,null,null,null,null,null,null,null,null,null,null,null,null,null,null,null,null,null,null,null,null,null,null,null,null,null,null,null,null,"No","","","",3950]
[null,null,null,null,null,null,"","",null,null,null,"",null,"","","","","","","","","",null,null,null,null,"","","","",null,null,null,null,null,null,null,null,null,null,null,null,null,null,null,null,null,null,null,null,null,null,null,null,null,null,null,null,null,null,null,"No","","","",3950]
[null,null,null,null,null,null,"","",null,null,null,"",null,"","","","","","","","","",null,null,null,null,"","","","",null,null,null,null,null,null,null,null,null,null,null,null,null,null,null,null,null,null,null,null,null,null,null,null,null,null,null,null,null,null,null,"No","","","",3950]
[null,null,null,null,null,null,"","",null,null,null,"",null,"","","","","","","","","",null,null,null,null,"","","","",null,null,null,null,null,null,null,null,null,null,null,null,null,null,null,null,null,null,null,null,null,null,null,null,null,null,null,null,null,null,null,"No","","","",3950]
[null,null,null,null,null,null,"","",null,null,null,"",null,"","","","","","","","","",null,null,null,null,"","","","",null,null,null,null,null,null,null,null,null,null,null,null,null,null,null,null,null,null,null,null,null,null,null,null,null,null,null,null,null,null,null,"No","","","",3950]
[null,null,null,null,null,null,"","",null,null,null,"",null,"","","","","","","","","",null,null,null,null,"","","","",null,null,null,null,null,null,null,null,null,null,null,null,null,null,null,null,null,null,null,null,null,null,null,null,null,null,null,null,null,null,null,"No","","","",3950]
[null,null,null,null,null,null,"","",null,null,null,"",null,"","","","","","","","","",null,null,null,null,"","","","",null,null,null,null,null,null,null,null,null,null,null,null,null,null,null,null,null,null,null,null,null,null,null,null,null,null,null,null,null,null,null,"No","","","",3950]
[null,null,null,null,null,null,"","",null,null,null,"",null,"","","","","","","","","",null,null,null,null,"","","","",null,null,null,null,null,null,null,null,null,null,null,null,null,null,null,null,null,null,null,null,null,null,null,null,null,null,null,null,null,null,null,"No","","","",3950]
[null,null,null,null,null,null,"","",null,null,null,"",null,"","","","","","","","","",null,null,null,null,"","","",{"$f":"IF(F347<>\"\",F347,\"\")","v":""},null,null,null,null,null,null,null,null,null,null,null,null,null,null,null,null,null,null,null,null,null,null,null,null,null,null,null,null,null,null,null,"No","","","",3950]
[null,null,null,null,null,null,"","",null,null,null,"",null,"","","","","","","","","",null,null,null,null,{"$f":"IF(C348<>\"\",C348,\"\")","v":""},"","","",null,null,null,null,null,null,null,null,null,null,null,null,null,null,null,null,null,null,null,null,null,null,null,null,null,null,null,null,null,null,null,"No","","","",3950]
[null,null,null,null,null,null,{"$f":"IF(I349<>\"\",VLOOKUP(I349,$C$28:$F$3000,4,FALSE),\"\")","v":""},"",null,null,null,"",null,"","","","","","","","","",null,null,null,null,"","","","",null,null,null,null,null,null,null,null,null,null,null,null,null,null,null,null,null,null,null,null,null,null,null,null,null,null,null,null,null,null,null,"No","","","",3950]
[null,null,null,null,null,null,"","",null,null,null,"",null,"","","","","","","","","",null,null,null,null,"","","","",null,null,null,null,null,null,null,null,null,null,null,null,null,null,null,null,null,null,null,null,null,null,null,null,null,null,null,null,null,null,null,"No","","","",3950]
[null,null,null,null,null,null,"","",null,null,null,"",null,"","","","","","","","","",null,null,null,null,"","","","",null,null,null,null,null,null,null,null,null,null,null,null,null,null,null,null,null,null,null,null,null,null,null,null,null,null,null,null,null,null,null,"No","","","",3950]
[null,null,null,null,null,null,"","",null,null,null,"",null,"","","","","","","","","",null,null,null,null,"","","","",null,null,null,null,null,null,null,null,null,null,null,null,null,null,null,null,null,null,null,null,null,null,null,null,null,null,null,null,null,null,null,"No","","","",3950]
[null,null,null,null,null,null,"","",null,null,null,"",null,"","","","","","","","","",null,null,null,null,"","","","",null,null,null,null,null,null,null,null,null,null,null,null,null,null,null,null,null,null,null,null,null,null,null,null,null,null,null,null,null,null,null,"No","","","",3950]
[null,null,null,null,null,null,"","",null,null,null,"",null,"","","","","","","","","",null,null,null,null,"","","","",null,null,null,null,null,null,null,null,null,null,null,null,null,null,null,null,null,null,null,null,null,null,null,null,null,null,null,null,null,null,null,"No","","","",3950]
[null,null,null,null,null,null,"","",null,null,null,"",null,"","","","","","","","","",null,null,null,null,"","","","",null,null,null,null,null,null,null,null,null,null,null,null,null,null,null,null,null,null,null,null,null,null,null,null,null,null,null,null,null,null,null,"No","","","",3950]
[null,null,null,null,null,null,"","",null,null,null,"",null,"","","","","","","","","",null,null,null,null,"","","","",null,null,null,null,null,null,null,null,null,null,null,null,null,null,null,null,null,null,null,null,null,null,null,null,null,null,null,null,null,null,null,"No","","","",3950]
[null,null,null,null,null,null,"","",null,null,null,"",null,"","","","","","","","","",null,null,null,null,"","","","",null,null,null,null,null,null,null,null,null,null,null,null,null,null,null,null,null,null,null,null,null,null,null,null,null,null,null,null,null,null,null,"No","","","",3950]
[null,null,null,null,null,null,"","",null,null,null,"",null,"","","","","","","","","",null,null,null,null,"","","","",null,null,null,null,null,null,null,null,null,null,null,null,null,null,null,null,null,null,null,null,null,null,null,null,null,null,null,null,null,null,null,"No","","","",3950]
[null,null,null,null,null,null,"","",null,null,null,"",null,"","","","","","","","","",null,null,null,null,"","","","",null,null,null,null,null,null,null,null,null,null,null,null,null,null,null,null,null,null,null,null,null,null,null,null,null,null,null,null,null,null,null,"No","","","",3950]
[null,null,null,null,null,null,"","",null,null,null,"",null,"","","","","","","","","",null,null,null,null,"","","","",null,null,null,null,null,null,null,null,null,null,null,null,null,null,null,null,null,null,null,null,null,null,null,null,null,null,null,null,null,null,null,"No","","","",3950]
[null,null,null,null,null,null,"","",null,null,null,"",null,"","","","","","","","","",null,null,null,null,"","","","",null,null,null,null,null,null,null,null,null,null,null,null,null,null,null,null,null,null,null,null,null,null,null,null,null,null,null,null,null,null,null,"No","","","",3950]
[null,null,null,null,null,null,"","",null,null,null,"",null,"","","","","","","","","",null,null,null,null,"","","","",null,null,null,null,null,null,null,null,null,null,null,null,null,null,null,null,null,null,null,null,null,null,null,null,null,null,null,null,null,null,null,"No","","","",3950]
[null,null,null,null,null,null,"","",null,null,null,"",null,"","","","","","","","","",null,null,null,null,"","","","",null,null,null,null,null,null,null,null,null,null,null,null,null,null,null,null,null,null,null,null,null,null,null,null,null,null,null,null,null,null,null,"No","","","",3950]
[null,null,null,null,null,null,"","",null,null,null,"",null,"","","","","","","","","",null,null,null,null,"","","","",null,null,null,null,null,null,null,null,null,null,null,null,null,null,null,null,null,null,null,null,null,null,null,null,null,null,null,null,null,null,null,"No","","","",3950]
[null,null,null,null,null,null,"","",null,null,null,"",null,"","","","","","","","","",null,null,null,null,"","","","",null,null,null,null,null,null,null,null,null,null,null,null,null,null,null,null,null,null,null,null,null,null,null,null,null,null,null,null,null,null,null,"No","","","",3950]
[null,null,null,null,null,null,"","",null,null,null,"",null,"","","","","","","","","",null,null,null,null,"","","","",null,null,null,null,null,null,null,null,null,null,null,null,null,null,null,null,null,null,null,null,null,null,null,null,null,null,null,null,null,null,null,"No","","","",3950]
[null,null,null,null,null,null,"","",null,null,null,"",null,"","","","","","","","","",null,null,null,null,"","","","",null,null,null,null,null,null,null,null,null,null,null,null,null,null,null,null,null,null,null,null,null,null,null,null,null,null,null,null,null,null,null,"No","","","",3950]
[null,null,null,null,null,null,"","",null,null,null,"",null,"","","","","","","","","",null,null,null,null,"","","","",null,null,null,null,null,null,null,null,null,null,null,null,null,null,null,null,null,null,null,null,null,null,null,null,null,null,null,null,null,null,null,"No","","","",3950]
[null,null,null,null,null,null,"","",null,null,null,"",null,"","","","","","","","","",null,null,null,null,"","","","",null,null,null,null,null,null,null,null,null,null,null,null,null,null,null,null,null,null,null,null,null,null,null,null,null,null,null,null,null,null,null,"No","","","",3950]
[null,null,null,null,null,null,"","",null,null,null,"",null,"","","","","","","","","",null,null,null,null,"","","","",null,null,null,null,null,null,null,null,null,null,null,null,null,null,null,null,null,null,null,null,null,null,null,null,null,null,null,null,null,null,null,"No","","","",3950]
[null,null,null,null,null,null,"","",null,null,null,"",null,"","","","","","","","","",null,null,null,null,"","","","",null,null,null,null,null,null,null,null,null,null,null,null,null,null,null,null,null,null,null,null,null,null,null,null,null,null,null,null,null,null,null,"No","","","",3950]
[null,null,null,null,null,null,"","",null,null,null,"",null,"","","","","","","","","",null,null,null,null,"","","","",null,null,null,null,null,null,null,null,null,null,null,null,null,null,null,null,null,null,null,null,null,null,null,null,null,null,null,null,null,null,null,"No","","","",3950]
[null,null,null,null,null,null,"","",null,null,null,"",null,"","","","","","","","","",null,null,null,null,"","","","",null,null,null,null,null,null,null,null,null,null,null,null,null,null,null,null,null,null,null,null,null,null,null,null,null,null,null,null,null,null,null,"No","","","",3950]
[null,null,null,null,null,null,"","",null,null,null,"",null,"","","","","","","","","",null,null,null,null,"","","","",null,null,null,null,null,null,null,null,null,null,null,null,null,null,null,null,null,null,null,null,null,null,null,null,null,null,null,null,null,null,null,"No","","","",3950]
[null,null,null,null,null,null,"","",null,null,null,"",null,"","","","","","","","","",null,null,null,null,"","","","",null,null,null,null,null,null,null,null,null,null,null,null,null,null,null,null,null,null,null,null,null,null,null,null,null,null,null,null,null,null,null,"No","","","",3950]
[null,null,null,null,null,null,"","",null,null,null,{"$f":"IF(K376<>\"\",VLOOKUP(K376,$BE$16:$BF$23,2,FALSE),\"\")","v":""},null,{"$f":"IF(M376<>\"\",ROUND((VLOOKUP(J376,AA$28:AD$2001,4,FALSE)-VLOOKUP(I376,AA$28:AD$2001,4,FALSE)),2),\"\")","v":""},{"$f":"IF(M376<>\"\",ROUND((VLOOKUP(J376,AA$28:AD$2001,4,FALSE)-VLOOKUP(I376,AA$28:AD$2001,4,FALSE))/M376,3),\"\")","v":""},{"$f":"IF(K376<>\"\",VLOOKUP(K376,$AX$16:$BC$23,3,FALSE),\"\")","v":""},{"$f":"IF(K376<>\"\",VLOOKUP(K376,$AX$16:$BC$23,5,FALSE),\"\")","v":""},{"$f":"IF(O376<>\"\",VLOOKUP(K376,$AX$16:$BC$23,6,FALSE),\"\")","v":""},{"$f":"IF(O376<>\"\",IF(K376<>\"Match Existing Cross Slope\",IF(O376>0,VLOOKUP(K376,$AX$16:$BC$23,4,TRUE)-O376,VLOOKUP(K376,$AX$16:$BC$23,4,TRUE)+O376),\"\"),\"\")","v":""},{"$f":"IF(S376>=0,R376,IF(AND(M376>15,O376>$BB$21),\"\",VLOOKUP(K376,$AX$16:$BC$23,2,FALSE)&\" to \"&(1+ABS(O376)*100&\"%\")))","v":""},{"$f":"IF(OR(T376<>R376,V376=\"Yes\"),\"Yes\",\"\")","v":""},{"$f":"IF(AND(OR(K376=\"Ramp Running Slope\",K376=\"Sidewalk Running Slope\"),S376>=0,S376<0.01),\"Yes\",IF(AND(OR(K376=\"Ramp Cross Slope\",K376=\"Sidewalk Cross Slope\",K376=\"Landing/Turning Space\"),S376>=0,S376<0.005),\"Yes\",\"\"))","v":""},null,null,null,null,"","","","",null,null,null,null,null,null,null,null,null,null,null,null,null,null,null,null,null,null,null,null,null,null,null,null,null,null,null,null,null,null,null,"No","","","",3950]
[null,null,null,null,null,null,"","",null,null,null,"",null,"","","","","","","","","",null,null,null,null,"","","","",null,null,null,null,null,null,null,null,null,null,null,null,null,null,null,null,null,null,null,null,null,null,null,null,null,null,null,null,null,null,null,"No","","","",3950]
[null,null,null,null,null,null,"","",null,null,null,"",null,"","","","","","","","","",null,null,null,null,"","","","",null,null,null,null,null,null,null,null,null,null,null,null,null,null,null,null,null,null,null,null,null,null,null,null,null,null,null,null,null,null,null,"No","","","",3950]
[null,null,null,null,null,null,"","",null,null,null,"",null,"","","","","","","","","",null,null,null,null,"","","","",null,null,null,null,null,null,null,null,null,null,null,null,null,null,null,null,null,null,null,null,null,null,null,null,null,null,null,null,null,null,null,"No","","","",3950]
[null,null,null,null,null,null,"","",null,null,null,"",null,"","","","","","","","","",null,null,null,null,"","","","",null,null,null,null,null,null,null,null,null,null,null,null,null,null,null,null,null,null,null,null,null,null,null,null,null,null,null,null,null,null,null,"No","","","",3950]
[null,null,null,null,null,null,"","",null,null,null,"",null,"","","","","","","","","",null,null,null,null,"","","","",null,null,null,null,null,null,null,null,null,null,null,null,null,null,null,null,null,null,null,null,null,null,null,null,null,null,null,null,null,null,null,"No","","","",3950]
[null,null,null,null,null,null,"","",null,null,null,"",null,"","","","","","","","","",null,null,null,null,"","","","",null,null,null,null,null,null,null,null,null,null,null,null,null,null,null,null,null,null,null,null,null,null,null,null,null,null,null,null,null,null,null,"No","","","",3950]
[null,null,null,null,null,null,"","",null,null,null,"",null,"","","","","","","","","",null,null,null,null,"","","","",null,null,null,null,null,null,null,null,null,null,null,null,null,null,null,null,null,null,null,null,null,null,null,null,null,null,null,null,null,null,null,"No","","","",3950]
[null,null,null,null,null,null,"","",null,null,null,"",null,"","","","","","","","","",null,null,null,null,"","","","",null,null,null,null,null,null,null,null,null,null,null,null,null,null,null,null,null,null,null,null,null,null,null,null,null,null,null,null,null,null,null,"No","","","",3950]
[null,null,null,null,null,null,"","",null,null,null,"",null,"","","","","","","","","",null,null,null,null,"","","","",null,null,null,null,null,null,null,null,null,null,null,null,null,null,null,null,null,null,null,null,null,null,null,null,null,null,null,null,null,null,null,"No","","","",3950]
[null,null,null,null,null,null,"","",null,null,null,"",null,"","","","","","","","","",null,null,null,null,"","","","",null,null,null,null,null,null,null,null,null,null,null,null,null,null,null,null,null,null,null,null,null,null,null,null,null,null,null,null,null,null,null,"No","","","",3950]
[null,null,null,null,null,null,"","",null,null,null,"",null,"","","","","","","","","",null,null,null,null,"","","","",null,null,null,null,null,null,null,null,null,null,null,null,null,null,null,null,null,null,null,null,null,null,null,null,null,null,null,null,null,null,null,"No","","","",3950]
[null,null,null,null,null,null,"","",null,null,null,"",null,"","","","","","","","","",null,null,null,null,"","","","",null,null,null,null,null,null,null,null,null,null,null,null,null,null,null,null,null,null,null,null,null,null,null,null,null,null,null,null,null,null,null,"No","","","",3950]
[null,null,null,null,null,null,"","",null,null,null,"",null,"","","","","","","","","",null,null,null,null,"","","","",null,null,null,null,null,null,null,null,null,null,null,null,null,null,null,null,null,null,null,null,null,null,null,null,null,null,null,null,null,null,null,"No","","","",3950]
[null,null,null,null,null,null,"","",null,null,null,"",null,"","","","","","","","","",null,null,null,null,"","","","",null,null,null,null,null,null,null,null,null,null,null,null,null,null,null,null,null,null,null,null,null,null,null,null,null,null,null,null,null,null,null,"No","","","",3950]
[null,null,null,null,null,null,"","",null,null,null,"",null,"","","","","","","","","",null,null,null,null,"","","","",null,null,null,null,null,null,null,null,null,null,null,null,null,null,null,null,null,null,null,null,null,null,null,null,null,null,null,null,null,null,null,"No","","","",3950]
[null,null,null,null,null,null,"","",null,null,null,"",null,"","","","","","","","","",null,null,null,null,"","","","",null,null,null,null,null,null,null,null,null,null,null,null,null,null,null,null,null,null,null,null,null,null,null,null,null,null,null,null,null,null,null,"No","","","",3950]
[null,null,null,null,null,null,"","",null,null,null,"",null,"","","","","","","","","",null,null,null,null,"","","","",null,null,null,null,null,null,null,null,null,null,null,null,null,null,null,null,null,null,null,null,null,null,null,null,null,null,null,null,null,null,null,"No","","","",3950]
[null,null,null,null,null,null,"","",null,null,null,"",null,"","","","","","","","","",null,null,null,null,"","","","",null,null,null,null,null,null,null,null,null,null,null,null,null,null,null,null,null,null,null,null,null,null,null,null,null,null,null,null,null,null,null,"No","","","",3950]
[null,null,null,null,null,null,"","",null,null,null,"",null,"","","","","","","","","",null,null,null,null,"","","","",null,null,null,null,null,null,null,null,null,null,null,null,null,null,null,null,null,null,null,null,null,null,null,null,null,null,null,null,null,null,null,"No","","","",3950]
[null,null,null,null,null,null,"","",null,null,null,"",null,"","","","","","","","","",null,null,null,null,"","","","",null,null,null,null,null,null,null,null,null,null,null,null,null,null,null,null,null,null,null,null,null,null,null,null,null,null,null,null,null,null,null,"No","","","",3950]
[null,null,null,null,null,null,"","",null,null,null,"",null,"","","","","","","","","",null,null,null,null,"","","","",null,null,null,null,null,null,null,null,null,null,null,null,null,null,null,null,null,null,null,null,null,null,null,null,null,null,null,null,null,null,null,"No","","","",3950]
[null,null,null,null,null,null,"","",null,null,null,"",null,"","","","","","","","","",null,null,null,null,"","","","",null,null,null,null,null,null,null,null,null,null,null,null,null,null,null,null,null,null,null,null,null,null,null,null,null,null,null,null,null,null,null,"No","","","",3950]
[null,null,null,null,null,null,"","",null,null,null,"",null,"","","","","","","","","",null,null,null,null,"","","","",null,null,null,null,null,null,null,null,null,null,null,null,null,null,null,null,null,null,null,null,null,null,null,null,null,null,null,null,null,null,null,"No","","","",3950]
[null,null,null,null,null,null,"","",null,null,null,"",null,"","","","","","","","","",null,null,null,null,"","","","",null,null,null,null,null,null,null,null,null,null,null,null,null,null,null,null,null,null,null,null,null,null,null,null,null,null,null,null,null,null,null,{"$f":"IF(AND($K412=$AX$18,AND(OR($O412<=$AZ$18,$O412>=$BB$18),OR($O412>=-$AZ$18,$O412<=-$BB$18))),\"Yes\",IF(AND($K412=$AX$20,AND(OR($O412<=$AZ$20,$O412>=$BB$20),OR($O412>=-$AZ$20,$O412<=-$BB$20))),\"Yes\",IF(AND($K412=$AX$21,AND(OR($O412<=$AZ$21,$O412>=$BB$21),OR($O412>=-$AZ$21,$O412<=-$BB$21))),\"Yes\",IF(AND($K412=$AX$22,AND(OR($O412<=$AZ$22,$O412>=$BB$22),OR($O412>=-$AZ$22,$O412<=-$BB$22))),\"Yes\",IF(AND($K412=$AX$23,AND(OR($O412<=$AZ$23,$O412>=$BB$23),OR($O412>=-$AZ$23,$O412<=-$BB$23))),\"Yes\",\"No\")))))","v":"No"},{"$f":"IF(BJ400=\"Yes\",I412,\"\")","v":""},{"$f":"IF(BJ400=\"Yes\",J412,\"\")","v":""},{"$f":"IF(C412<>\"\",C412,\"\")","v":""},{"$f":"COUNTIF($BK$16:$BL$1990,BM400)","v":3950}]
[null,null,null,null,null,null,"","",null,null,null,"",null,"","","","","","","","","",null,null,null,null,"","","","",null,null,null,null,null,null,null,null,null,null,null,null,null,null,null,null,null,null,null,null,null,null,null,null,null,null,null,null,null,null,null,"No","","","",3950]
[null,null,null,null,null,null,"","",null,null,null,"",null,"","","","","","","","","",null,null,null,null,"","","","",null,null,null,null,null,null,null,null,null,null,null,null,null,null,null,null,null,null,null,null,null,null,null,null,null,null,null,null,null,null,null,"No","","","",3950]
[null,null,null,null,null,null,"","",null,null,null,"",null,"","","","","","","","","",null,null,null,null,"","","","",null,null,null,null,null,null,null,null,null,null,null,null,null,null,null,null,null,null,null,null,null,null,null,null,null,null,null,null,null,null,null,"No","","","",3950]
[null,null,null,null,null,null,"","",null,null,null,"",null,"","","","","","","","","",null,null,null,null,"","","","",null,null,null,null,null,null,null,null,null,null,null,null,null,null,null,null,null,null,null,null,null,null,null,null,null,null,null,null,null,null,null,"No","","","",3950]
[null,null,null,null,null,null,"","",null,null,null,"",null,"","","","","","","","","",null,null,null,null,"","","","",null,null,null,null,null,null,null,null,null,null,null,null,null,null,null,null,null,null,null,null,null,null,null,null,null,null,null,null,null,null,null,"No","","","",3950]
[null,null,null,null,null,null,"","",null,null,null,"",null,"","","","","","","","","",null,null,null,null,"","","","",null,null,null,null,null,null,null,null,null,null,null,null,null,null,null,null,null,null,null,null,null,null,null,null,null,null,null,null,null,null,null,"No","","","",3950]
[null,null,null,null,null,null,"","",null,null,null,"",null,"","","","","","","","","",null,null,null,null,"","","","",null,null,null,null,null,null,null,null,null,null,null,null,null,null,null,null,null,null,null,null,null,null,null,null,null,null,null,null,null,null,null,"No","","","",3950]
[null,null,null,null,null,null,"","",null,null,null,"",null,"","","","","","","","","",null,null,null,null,"","","","",null,null,null,null,null,null,null,null,null,null,null,null,null,null,null,null,null,null,null,null,null,null,null,null,null,null,null,null,null,null,null,"No","","","",3950]
[null,null,null,null,null,null,"","",null,null,null,"",null,"","","","","","","","","",null,null,null,null,"","","","",null,null,null,null,null,null,null,null,null,null,null,null,null,null,null,null,null,null,null,null,null,null,null,null,null,null,null,null,null,null,null,"No","","","",3950]
[null,null,null,null,null,null,"","",null,null,null,"",null,"","","","","","","","","",null,null,null,null,"","","","",null,null,null,null,null,null,null,null,null,null,null,null,null,null,null,null,null,null,null,null,null,null,null,null,null,null,null,null,null,null,null,"No","","","",3950]
[null,null,null,null,null,null,"","",null,null,null,"",null,"","","","","","","","","",null,null,null,null,"","","","",null,null,null,null,null,null,null,null,null,null,null,null,null,null,null,null,null,null,null,null,null,null,null,null,null,null,null,null,null,null,null,"No","","","",3950]
[null,null,null,null,null,null,"","",null,null,null,"",null,"","","","","","","","","",null,null,null,null,{"$f":"IF(C412<>\"\",C412,\"\")","v":""},"","","",null,null,null,null,null,null,null,null,null,null,null,null,null,null,null,null,null,null,null,null,null,null,null,null,null,null,null,null,null,null,null,"No","","","",3950]
[null,null,null,null,null,null,{"$f":"IF(I413<>\"\",VLOOKUP(I413,$C$28:$F$3000,4,FALSE),\"\")","v":""},"",null,null,null,"",null,"","","","","","","","","",null,null,null,null,"","","","",null,null,null,null,null,null,null,null,null,null,null,null,null,null,null,null,null,null,null,null,null,null,null,null,null,null,null,null,null,null,null,"No","","","",3950]
[null,null,null,null,null,null,"","",null,null,null,"",null,"","","","","","","","","",null,null,null,null,"","","","",null,null,null,null,null,null,null,null,null,null,null,null,null,null,null,null,null,null,null,null,null,null,null,null,null,null,null,null,null,null,null,"No","","","",3950]
[null,null,null,null,null,null,"","",null,null,null,"",null,"","","","","","","","","",null,null,null,null,"","","","",null,null,null,null,null,null,null,null,null,null,null,null,null,null,null,null,null,null,null,null,null,null,null,null,null,null,null,null,null,null,null,"No","","","",3950]
[null,null,null,null,null,null,"","",null,null,null,"",null,"","","","","","","","","",null,null,null,null,"","","","",null,null,null,null,null,null,null,null,null,null,null,null,null,null,null,null,null,null,null,null,null,null,null,null,null,null,null,null,null,null,null,"No","","","",3950]
[null,null,null,null,null,null,"","",null,null,null,"",null,"","","","","","","","","",null,null,null,null,"","","","",null,null,null,null,null,null,null,null,null,null,null,null,null,null,null,null,null,null,null,null,null,null,null,null,null,null,null,null,null,null,null,"No","","","",3950]
[null,null,null,null,null,null,"","",null,null,null,"",null,"","","","","","","","","",null,null,null,null,"","","","",null,null,null,null,null,null,null,null,null,null,null,null,null,null,null,null,null,null,null,null,null,null,null,null,null,null,null,null,null,null,null,"No","","","",3950]
[null,null,null,null,null,null,"","",null,null,null,"",null,"","","","","","","","","",null,null,null,null,"","","","",null,null,null,null,null,null,null,null,null,null,null,null,null,null,null,null,null,null,null,null,null,null,null,null,null,null,null,null,null,null,null,"No","","","",3950]
[null,null,null,null,null,null,"","",null,null,null,"",null,"","","","","","","","","",null,null,null,null,"","","","",null,null,null,null,null,null,null,null,null,null,null,null,null,null,null,null,null,null,null,null,null,null,null,null,null,null,null,null,null,null,null,"No","","","",3950]
[null,null,null,null,null,null,"","",null,null,null,"",null,"","","","","","","","","",null,null,null,null,"","","","",null,null,null,null,null,null,null,null,null,null,null,null,null,null,null,null,null,null,null,null,null,null,null,null,null,null,null,null,null,null,null,"No","","","",3950]
[null,null,null,null,null,null,"","",null,null,null,"",null,"","","","","","","","","",null,null,null,null,"","","","",null,null,null,null,null,null,null,null,null,null,null,null,null,null,null,null,null,null,null,null,null,null,null,null,null,null,null,null,null,null,null,"No","","","",3950]
[null,null,null,null,null,null,"","",null,null,null,"",null,"","","","","","","","","",null,null,null,null,"","","","",null,null,null,null,null,null,null,null,null,null,null,null,null,null,null,null,null,null,null,null,null,null,null,null,null,null,null,null,null,null,null,"No","","","",3950]
[null,null,null,null,null,null,"","",null,null,null,"",null,"","","","","","","","","",null,null,null,null,"","","","",null,null,null,null,null,null,null,null,null,null,null,null,null,null,null,null,null,null,null,null,null,null,null,null,null,null,null,null,null,null,null,"No","","","",3950]
[null,null,null,null,null,null,"","",null,null,null,"",null,"","","","","","","","","",null,null,null,null,"","","","",null,null,null,null,null,null,null,null,null,null,null,null,null,null,null,null,null,null,null,null,null,null,null,null,null,null,null,null,null,null,null,"No","","","",3950]
[null,null,null,null,null,null,"","",null,null,null,"",null,"","","","","","","","","",null,null,null,null,"","","","",null,null,null,null,null,null,null,null,null,null,null,null,null,null,null,null,null,null,null,null,null,null,null,null,null,null,null,null,null,null,null,"No","","","",3950]
[null,null,null,null,null,null,"","",null,null,null,"",null,"","","","","","","","","",null,null,null,null,"","","","",null,null,null,null,null,null,null,null,null,null,null,null,null,null,null,null,null,null,null,null,null,null,null,null,null,null,null,null,null,null,null,"No","","","",3950]
[null,null,null,null,null,null,"","",null,null,null,"",null,"","","","","","","","","",null,null,null,null,"","","","",null,null,null,null,null,null,null,null,null,null,null,null,null,null,null,null,null,null,null,null,null,null,null,null,null,null,null,null,null,null,null,"No","","","",3950]
[null,null,null,null,null,null,"","",null,null,null,"",null,"","","","","","","","","",null,null,null,null,"","","","",null,null,null,null,null,null,null,null,null,null,null,null,null,null,null,null,null,null,null,null,null,null,null,null,null,null,null,null,null,null,null,"No","","","",3950]
[null,null,null,null,null,null,"","",null,null,null,"",null,"","","","","","","","","",null,null,null,null,"","","","",null,null,null,null,null,null,null,null,null,null,null,null,null,null,null,null,null,null,null,null,null,null,null,null,null,null,null,null,null,null,null,"No","","","",3950]
[null,null,null,null,null,null,"","",null,null,null,"",null,"","","","","","","","","",null,null,null,null,"","","","",null,null,null,null,null,null,null,null,null,null,null,null,null,null,null,null,null,null,null,null,null,null,null,null,null,null,null,null,null,null,null,"No","","","",3950]
[null,null,null,null,null,null,"","",null,null,null,"",null,"","","","","","","","","",null,null,null,null,"","","","",null,null,null,null,null,null,null,null,null,null,null,null,null,null,null,null,null,null,null,null,null,null,null,null,null,null,null,null,null,null,null,"No","","","",3950]
[null,null,null,null,null,null,"","",null,null,null,"",null,"","","","","","","","","",null,null,null,null,"","","","",null,null,null,null,null,null,null,null,null,null,null,null,null,null,null,null,null,null,null,null,null,null,null,null,null,null,null,null,null,null,null,"No","","","",3950]
[null,null,null,null,null,null,"","",null,null,null,"",null,"","","","","","","","","",null,null,null,null,"","","","",null,null,null,null,null,null,null,null,null,null,null,null,null,null,null,null,null,null,null,null,null,null,null,null,null,null,null,null,null,null,null,"No","","","",3950]
[null,null,null,null,null,null,"","",null,null,null,"",null,"","","","","","","","","",null,null,null,null,"","","","",null,null,null,null,null,null,null,null,null,null,null,null,null,null,null,null,null,null,null,null,null,null,null,null,null,null,null,null,null,null,null,"No","","","",3950]
[null,null,null,null,null,null,"","",null,null,null,"",null,"","","","","","","","","",null,null,null,null,"","","","",null,null,null,null,null,null,null,null,null,null,null,null,null,null,null,null,null,null,null,null,null,null,null,null,null,null,null,null,null,null,null,"No","","","",3950]
[null,null,null,null,null,null,"","",null,null,null,"",null,"","","","","","","","","",null,null,null,null,"","","","",null,null,null,null,null,null,null,null,null,null,null,null,null,null,null,null,null,null,null,null,null,null,null,null,null,null,null,null,null,null,null,"No","","","",3950]
[null,null,null,null,null,null,"","",null,null,null,"",null,"","","","","","","","","",null,null,null,null,"","","","",null,null,null,null,null,null,null,null,null,null,null,null,null,null,null,null,null,null,null,null,null,null,null,null,null,null,null,null,null,null,null,"No","","","",3950]
[null,null,null,null,null,null,"","",null,null,null,"",null,"","","","","","","","","",null,null,null,null,"","","","",null,null,null,null,null,null,null,null,null,null,null,null,null,null,null,null,null,null,null,null,null,null,null,null,null,null,null,null,null,null,null,"No","","","",3950]
[null,null,null,null,null,null,"","",null,null,null,{"$f":"IF(K440<>\"\",VLOOKUP(K440,$BE$16:$BF$23,2,FALSE),\"\")","v":""},null,{"$f":"IF(M440<>\"\",ROUND((VLOOKUP(J440,AA$28:AD$2001,4,FALSE)-VLOOKUP(I440,AA$28:AD$2001,4,FALSE)),2),\"\")","v":""},{"$f":"IF(M440<>\"\",ROUND((VLOOKUP(J440,AA$28:AD$2001,4,FALSE)-VLOOKUP(I440,AA$28:AD$2001,4,FALSE))/M440,3),\"\")","v":""},{"$f":"IF(K440<>\"\",VLOOKUP(K440,$AX$16:$BC$23,3,FALSE),\"\")","v":""},{"$f":"IF(K440<>\"\",VLOOKUP(K440,$AX$16:$BC$23,5,FALSE),\"\")","v":""},{"$f":"IF(O440<>\"\",VLOOKUP(K440,$AX$16:$BC$23,6,FALSE),\"\")","v":""},{"$f":"IF(O440<>\"\",IF(K440<>\"Match Existing Cross Slope\",IF(O440>0,VLOOKUP(K440,$AX$16:$BC$23,4,TRUE)-O440,VLOOKUP(K440,$AX$16:$BC$23,4,TRUE)+O440),\"\"),\"\")","v":""},{"$f":"IF(S440>=0,R440,IF(AND(M440>15,O440>$BB$21),\"\",VLOOKUP(K440,$AX$16:$BC$23,2,FALSE)&\" to \"&(1+ABS(O440)*100&\"%\")))","v":""},{"$f":"IF(OR(T440<>R440,V440=\"Yes\"),\"Yes\",\"\")","v":""},{"$f":"IF(AND(OR(K440=\"Ramp Running Slope\",K440=\"Sidewalk Running Slope\"),S440>=0,S440<0.01),\"Yes\",IF(AND(OR(K440=\"Ramp Cross Slope\",K440=\"Sidewalk Cross Slope\",K440=\"Landing/Turning Space\"),S440>=0,S440<0.005),\"Yes\",\"\"))","v":""},null,null,null,null,"","","","",null,null,null,null,null,null,null,null,null,null,null,null,null,null,null,null,null,null,null,null,null,null,null,null,null,null,null,null,null,null,null,"No","","","",3950]
[null,null,null,null,null,null,"","",null,null,null,"",null,"","","","","","","","","",null,null,null,null,"","","","",null,null,null,null,null,null,null,null,null,null,null,null,null,null,null,null,null,null,null,null,null,null,null,null,null,null,null,null,null,null,null,"No","","","",3950]
[null,null,null,null,null,null,"","",null,null,null,"",null,"","","","","","","","","",null,null,null,null,"","","","",null,null,null,null,null,null,null,null,null,null,null,null,null,null,null,null,null,null,null,null,null,null,null,null,null,null,null,null,null,null,null,"No","","","",3950]
[null,null,null,null,null,null,"","",null,null,null,"",null,"","","","","","","","","",null,null,null,null,"","","","",null,null,null,null,null,null,null,null,null,null,null,null,null,null,null,null,null,null,null,null,null,null,null,null,null,null,null,null,null,null,null,"No","","","",3950]
[null,null,null,null,null,null,"","",null,null,null,"",null,"","","","","","","","","",null,null,null,null,"","","","",null,null,null,null,null,null,null,null,null,null,null,null,null,null,null,null,null,null,null,null,null,null,null,null,null,null,null,null,null,null,null,"No","","","",3950]
[null,null,null,null,null,null,"","",null,null,null,"",null,"","","","","","","","","",null,null,null,null,"","","","",null,null,null,null,null,null,null,null,null,null,null,null,null,null,null,null,null,null,null,null,null,null,null,null,null,null,null,null,null,null,null,"No","","","",3950]
[null,null,null,null,null,null,"","",null,null,null,"",null,"","","","","","","","","",null,null,null,null,"","","","",null,null,null,null,null,null,null,null,null,null,null,null,null,null,null,null,null,null,null,null,null,null,null,null,null,null,null,null,null,null,null,"No","","","",3950]
[null,null,null,null,null,null,"","",null,null,null,"",null,"","","","","","","","","",null,null,null,null,"","","","",null,null,null,null,null,null,null,null,null,null,null,null,null,null,null,null,null,null,null,null,null,null,null,null,null,null,null,null,null,null,null,"No","","","",3950]
[null,null,null,null,null,null,"","",null,null,null,"",null,"","","","","","","","","",null,null,null,null,"","","","",null,null,null,null,null,null,null,null,null,null,null,null,null,null,null,null,null,null,null,null,null,null,null,null,null,null,null,null,null,null,null,"No","","","",3950]
[null,null,null,null,null,null,"","",null,null,null,"",null,"","","","","","","","","",null,null,null,null,"","","","",null,null,null,null,null,null,null,null,null,null,null,null,null,null,null,null,null,null,null,null,null,null,null,null,null,null,null,null,null,null,null,"No","","","",3950]
[null,null,null,null,null,null,"","",null,null,null,"",null,"","","","","","","","","",null,null,null,null,"","","","",null,null,null,null,null,null,null,null,null,null,null,null,null,null,null,null,null,null,null,null,null,null,null,null,null,null,null,null,null,null,null,"No","","","",3950]
[null,null,null,null,null,null,"","",null,null,null,"",null,"","","","","","","","","",null,null,null,null,"","","","",null,null,null,null,null,null,null,null,null,null,null,null,null,null,null,null,null,null,null,null,null,null,null,null,null,null,null,null,null,null,null,"No","","","",3950]
[null,null,null,null,null,null,"","",null,null,null,"",null,"","","","","","","","","",null,null,null,null,"","","","",null,null,null,null,null,null,null,null,null,null,null,null,null,null,null,null,null,null,null,null,null,null,null,null,null,null,null,null,null,null,null,"No","","","",3950]
[null,null,null,null,null,null,"","",null,null,null,"",null,"","","","","","","","","",null,null,null,null,"","","","",null,null,null,null,null,null,null,null,null,null,null,null,null,null,null,null,null,null,null,null,null,null,null,null,null,null,null,null,null,null,null,"No","","","",3950]
[null,null,null,null,null,null,"","",null,null,null,"",null,"","","","","","","","","",null,null,null,null,"","","","",null,null,null,null,null,null,null,null,null,null,null,null,null,null,null,null,null,null,null,null,null,null,null,null,null,null,null,null,null,null,null,"No","","","",3950]
[null,null,null,null,null,null,"","",null,null,null,"",null,"","","","","","","","","",null,null,null,null,"","","","",null,null,null,null,null,null,null,null,null,null,null,null,null,null,null,null,null,null,null,null,null,null,null,null,null,null,null,null,null,null,null,"No","","","",3950]
[null,null,null,null,null,null,"","",null,null,null,"",null,"","","","","","","","","",null,null,null,null,"","","","",null,null,null,null,null,null,null,null,null,null,null,null,null,null,null,null,null,null,null,null,null,null,null,null,null,null,null,null,null,null,null,"No","","","",3950]
[null,null,null,null,null,null,"","",null,null,null,"",null,"","","","","","","","","",null,null,null,null,"","","","",null,null,null,null,null,null,null,null,null,null,null,null,null,null,null,null,null,null,null,null,null,null,null,null,null,null,null,null,null,null,null,"No","","","",3950]
[null,null,null,null,null,null,"","",null,null,null,"",null,"","","","","","","","","",null,null,null,null,"","","","",null,null,null,null,null,null,null,null,null,null,null,null,null,null,null,null,null,null,null,null,null,null,null,null,null,null,null,null,null,null,null,"No","","","",3950]
[null,null,null,null,null,null,"","",null,null,null,"",null,"","","","","","","","","",null,null,null,null,"","","","",null,null,null,null,null,null,null,null,null,null,null,null,null,null,null,null,null,null,null,null,null,null,null,null,null,null,null,null,null,null,null,"No","","","",3950]
[null,null,null,null,null,null,"","",null,null,null,"",null,"","","","","","","","","",null,null,null,null,"","","","",null,null,null,null,null,null,null,null,null,null,null,null,null,null,null,null,null,null,null,null,null,null,null,null,null,null,null,null,null,null,null,"No","","","",3950]
[null,null,null,null,null,null,"","",null,null,null,"",null,"","","","","","","","","",null,null,null,null,"","","","",null,null,null,null,null,null,null,null,null,null,null,null,null,null,null,null,null,null,null,null,null,null,null,null,null,null,null,null,null,null,null,"No","","","",3950]
[null,null,null,null,null,null,"","",null,null,null,"",null,"","","","","","","","","",null,null,null,null,"","","","",null,null,null,null,null,null,null,null,null,null,null,null,null,null,null,null,null,null,null,null,null,null,null,null,null,null,null,null,null,null,null,"No","","","",3950]
[null,null,null,null,null,null,"","",null,null,null,"",null,"","","","","","","","","",null,null,null,null,"","","","",null,null,null,null,null,null,null,null,null,null,null,null,null,null,null,null,null,null,null,null,null,null,null,null,null,null,null,null,null,null,null,"No","","","",3950]
[null,null,null,null,null,null,"","",null,null,null,"",null,"","","","","","","","","",null,null,null,null,"","","","",null,null,null,null,null,null,null,null,null,null,null,null,null,null,null,null,null,null,null,null,null,null,null,null,null,null,null,null,null,null,null,{"$f":"IF(AND($K476=$AX$18,AND(OR($O476<=$AZ$18,$O476>=$BB$18),OR($O476>=-$AZ$18,$O476<=-$BB$18))),\"Yes\",IF(AND($K476=$AX$20,AND(OR($O476<=$AZ$20,$O476>=$BB$20),OR($O476>=-$AZ$20,$O476<=-$BB$20))),\"Yes\",IF(AND($K476=$AX$21,AND(OR($O476<=$AZ$21,$O476>=$BB$21),OR($O476>=-$AZ$21,$O476<=-$BB$21))),\"Yes\",IF(AND($K476=$AX$22,AND(OR($O476<=$AZ$22,$O476>=$BB$22),OR($O476>=-$AZ$22,$O476<=-$BB$22))),\"Yes\",IF(AND($K476=$AX$23,AND(OR($O476<=$AZ$23,$O476>=$BB$23),OR($O476>=-$AZ$23,$O476<=-$BB$23))),\"Yes\",\"No\")))))","v":"No"},{"$f":"IF(BJ464=\"Yes\",I476,\"\")","v":""},{"$f":"IF(BJ464=\"Yes\",J476,\"\")","v":""},{"$f":"IF(C476<>\"\",C476,\"\")","v":""},{"$f":"COUNTIF($BK$16:$BL$1990,BM464)","v":3950}]
[null,null,null,null,null,null,"","",null,null,null,"",null,"","","","","","","","","",null,null,null,null,"","","","",null,null,null,null,null,null,null,null,null,null,null,null,null,null,null,null,null,null,null,null,null,null,null,null,null,null,null,null,null,null,null,"No","","","",3950]
[null,null,null,null,null,null,"","",null,null,null,"",null,"","","","","","","","","",null,null,null,null,"","","","",null,null,null,null,null,null,null,null,null,null,null,null,null,null,null,null,null,null,null,null,null,null,null,null,null,null,null,null,null,null,null,"No","","","",3950]
[null,null,null,null,null,null,"","",null,null,null,"",null,"","","","","","","","","",null,null,null,null,"","","","",null,null,null,null,null,null,null,null,null,null,null,null,null,null,null,null,null,null,null,null,null,null,null,null,null,null,null,null,null,null,null,"No","","","",3950]
[null,null,null,null,null,null,"","",null,null,null,"",null,"","","","","","","","","",null,null,null,null,"","","","",null,null,null,null,null,null,null,null,null,null,null,null,null,null,null,null,null,null,null,null,null,null,null,null,null,null,null,null,null,null,null,"No","","","",3950]
[null,null,null,null,null,null,"","",null,null,null,"",null,"","","","","","","","","",null,null,null,null,"","","","",null,null,null,null,null,null,null,null,null,null,null,null,null,null,null,null,null,null,null,null,null,null,null,null,null,null,null,null,null,null,null,"No","","","",3950]
[null,null,null,null,null,null,"","",null,null,null,"",null,"","","","","","","","","",null,null,null,null,"","","","",null,null,null,null,null,null,null,null,null,null,null,null,null,null,null,null,null,null,null,null,null,null,null,null,null,null,null,null,null,null,null,"No","","","",3950]
[null,null,null,null,null,null,"","",null,null,null,"",null,"","","","","","","","","",null,null,null,null,"","","","",null,null,null,null,null,null,null,null,null,null,null,null,null,null,null,null,null,null,null,null,null,null,null,null,null,null,null,null,null,null,null,"No","","","",3950]
[null,null,null,null,null,null,"","",null,null,null,"",null,"","","","","","","","","",null,null,null,null,"","","","",null,null,null,null,null,null,null,null,null,null,null,null,null,null,null,null,null,null,null,null,null,null,null,null,null,null,null,null,null,null,null,"No","","","",3950]
[null,null,null,null,null,null,"","",null,null,null,"",null,"","","","","","","","","",null,null,null,null,"","","","",null,null,null,null,null,null,null,null,null,null,null,null,null,null,null,null,null,null,null,null,null,null,null,null,null,null,null,null,null,null,null,"No","","","",3950]
[null,null,null,null,null,null,"","",null,null,null,"",null,"","","","","","","","","",null,null,null,null,"","","","",null,null,null,null,null,null,null,null,null,null,null,null,null,null,null,null,null,null,null,null,null,null,null,null,null,null,null,null,null,null,null,"No","","","",3950]
[null,null,null,null,null,null,"","",null,null,null,"",null,"","","","","","","","","",null,null,null,null,"","","",{"$f":"IF(F475<>\"\",F475,\"\")","v":""},null,null,null,null,null,null,null,null,null,null,null,null,null,null,null,null,null,null,null,null,null,null,null,null,null,null,null,null,null,null,null,"No","","","",3950]
[null,null,null,null,null,null,"","",null,null,null,"",null,"","","","","","","","","",null,null,null,null,{"$f":"IF(C476<>\"\",C476,\"\")","v":""},"","","",null,null,null,null,null,null,null,null,null,null,null,null,null,null,null,null,null,null,null,null,null,null,null,null,null,null,null,null,null,null,null,"No","","","",3950]
[null,null,null,null,null,null,{"$f":"IF(I477<>\"\",VLOOKUP(I477,$C$28:$F$3000,4,FALSE),\"\")","v":""},"",null,null,null,"",null,"","","","","","","","","",null,null,null,null,"","","","",null,null,null,null,null,null,null,null,null,null,null,null,null,null,null,null,null,null,null,null,null,null,null,null,null,null,null,null,null,null,null,"No","","","",3950]
[null,null,null,null,null,null,"","",null,null,null,"",null,"","","","","","","","","",null,null,null,null,"","","","",null,null,null,null,null,null,null,null,null,null,null,null,null,null,null,null,null,null,null,null,null,null,null,null,null,null,null,null,null,null,null,"No","","","",3950]
[null,null,null,null,null,null,"","",null,null,null,"",null,"","","","","","","","","",null,null,null,null,"","","","",null,null,null,null,null,null,null,null,null,null,null,null,null,null,null,null,null,null,null,null,null,null,null,null,null,null,null,null,null,null,null,"No","","","",3950]
[null,null,null,null,null,null,"","",null,null,null,"",null,"","","","","","","","","",null,null,null,null,"","","","",null,null,null,null,null,null,null,null,null,null,null,null,null,null,null,null,null,null,null,null,null,null,null,null,null,null,null,null,null,null,null,"No","","","",3950]
[null,null,null,null,null,null,"","",null,null,null,"",null,"","","","","","","","","",null,null,null,null,"","","","",null,null,null,null,null,null,null,null,null,null,null,null,null,null,null,null,null,null,null,null,null,null,null,null,null,null,null,null,null,null,null,"No","","","",3950]
[null,null,null,null,null,null,"","",null,null,null,"",null,"","","","","","","","","",null,null,null,null,"","","","",null,null,null,null,null,null,null,null,null,null,null,null,null,null,null,null,null,null,null,null,null,null,null,null,null,null,null,null,null,null,null,"No","","","",3950]
[null,null,null,null,null,null,"","",null,null,null,"",null,"","","","","","","","","",null,null,null,null,"","","","",null,null,null,null,null,null,null,null,null,null,null,null,null,null,null,null,null,null,null,null,null,null,null,null,null,null,null,null,null,null,null,"No","","","",3950]
[null,null,null,null,null,null,"","",null,null,null,"",null,"","","","","","","","","",null,null,null,null,"","","","",null,null,null,null,null,null,null,null,null,null,null,null,null,null,null,null,null,null,null,null,null,null,null,null,null,null,null,null,null,null,null,"No","","","",3950]
[null,null,null,null,null,null,"","",null,null,null,"",null,"","","","","","","","","",null,null,null,null,"","","","",null,null,null,null,null,null,null,null,null,null,null,null,null,null,null,null,null,null,null,null,null,null,null,null,null,null,null,null,null,null,null,"No","","","",3950]
[null,null,null,null,null,null,"","",null,null,null,"",null,"","","","","","","","","",null,null,null,null,"","","","",null,null,null,null,null,null,null,null,null,null,null,null,null,null,null,null,null,null,null,null,null,null,null,null,null,null,null,null,null,null,null,"No","","","",3950]
[null,null,null,null,null,null,"","",null,null,null,"",null,"","","","","","","","","",null,null,null,null,"","","","",null,null,null,null,null,null,null,null,null,null,null,null,null,null,null,null,null,null,null,null,null,null,null,null,null,null,null,null,null,null,null,"No","","","",3950]
[null,null,null,null,null,null,"","",null,null,null,"",null,"","","","","","","","","",null,null,null,null,"","","","",null,null,null,null,null,null,null,null,null,null,null,null,null,null,null,null,null,null,null,null,null,null,null,null,null,null,null,null,null,null,null,"No","","","",3950]
[null,null,null,null,null,null,"","",null,null,null,"",null,"","","","","","","","","",null,null,null,null,"","","","",null,null,null,null,null,null,null,null,null,null,null,null,null,null,null,null,null,null,null,null,null,null,null,null,null,null,null,null,null,null,null,"No","","","",3950]
[null,null,null,null,null,null,"","",null,null,null,"",null,"","","","","","","","","",null,null,null,null,"","","","",null,null,null,null,null,null,null,null,null,null,null,null,null,null,null,null,null,null,null,null,null,null,null,null,null,null,null,null,null,null,null,"No","","","",3950]
[null,null,null,null,null,null,"","",null,null,null,"",null,"","","","","","","","","",null,null,null,null,"","","","",null,null,null,null,null,null,null,null,null,null,null,null,null,null,null,null,null,null,null,null,null,null,null,null,null,null,null,null,null,null,null,"No","","","",3950]
[null,null,null,null,null,null,"","",null,null,null,"",null,"","","","","","","","","",null,null,null,null,"","","","",null,null,null,null,null,null,null,null,null,null,null,null,null,null,null,null,null,null,null,null,null,null,null,null,null,null,null,null,null,null,null,"No","","","",3950]
[null,null,null,null,null,null,"","",null,null,null,"",null,"","","","","","","","","",null,null,null,null,"","","","",null,null,null,null,null,null,null,null,null,null,null,null,null,null,null,null,null,null,null,null,null,null,null,null,null,null,null,null,null,null,null,"No","","","",3950]
[null,null,null,null,null,null,"","",null,null,null,"",null,"","","","","","","","","",null,null,null,null,"","","","",null,null,null,null,null,null,null,null,null,null,null,null,null,null,null,null,null,null,null,null,null,null,null,null,null,null,null,null,null,null,null,"No","","","",3950]
[null,null,null,null,null,null,"","",null,null,null,"",null,"","","","","","","","","",null,null,null,null,"","","","",null,null,null,null,null,null,null,null,null,null,null,null,null,null,null,null,null,null,null,null,null,null,null,null,null,null,null,null,null,null,null,"No","","","",3950]
[null,null,null,null,null,null,"","",null,null,null,"",null,"","","","","","","","","",null,null,null,null,"","","","",null,null,null,null,null,null,null,null,null,null,null,null,null,null,null,null,null,null,null,null,null,null,null,null,null,null,null,null,null,null,null,"No","","","",3950]
[null,null,null,null,null,null,"","",null,null,null,"",null,"","","","","","","","","",null,null,null,null,"","","","",null,null,null,null,null,null,null,null,null,null,null,null,null,null,null,null,null,null,null,null,null,null,null,null,null,null,null,null,null,null,null,"No","","","",3950]
[null,null,null,null,null,null,"","",null,null,null,"",null,"","","","","","","","","",null,null,null,null,"","","","",null,null,null,null,null,null,null,null,null,null,null,null,null,null,null,null,null,null,null,null,null,null,null,null,null,null,null,null,null,null,null,"No","","","",3950]
[null,null,null,null,null,null,"","",null,null,null,"",null,"","","","","","","","","",null,null,null,null,"","","","",null,null,null,null,null,null,null,null,null,null,null,null,null,null,null,null,null,null,null,null,null,null,null,null,null,null,null,null,null,null,null,"No","","","",3950]
[null,null,null,null,null,null,"","",null,null,null,"",null,"","","","","","","","","",null,null,null,null,"","","","",null,null,null,null,null,null,null,null,null,null,null,null,null,null,null,null,null,null,null,null,null,null,null,null,null,null,null,null,null,null,null,"No","","","",3950]
[null,null,null,null,null,null,"","",null,null,null,"",null,"","","","","","","","","",null,null,null,null,"","","","",null,null,null,null,null,null,null,null,null,null,null,null,null,null,null,null,null,null,null,null,null,null,null,null,null,null,null,null,null,null,null,"No","","","",3950]
[null,null,null,null,null,null,"","",null,null,null,"",null,"","","","","","","","","",null,null,null,null,"","","","",null,null,null,null,null,null,null,null,null,null,null,null,null,null,null,null,null,null,null,null,null,null,null,null,null,null,null,null,null,null,null,"No","","","",3950]
[null,null,null,null,null,null,"","",null,null,null,"",null,"","","","","","","","","",null,null,null,null,"","","","",null,null,null,null,null,null,null,null,null,null,null,null,null,null,null,null,null,null,null,null,null,null,null,null,null,null,null,null,null,null,null,"No","","","",3950]
[null,null,null,null,null,null,"","",null,null,null,"",null,"","","","","","","","","",null,null,null,null,{"$f":"IF(C540<>\"\",C540,\"\")","v":""},"","","",null,null,null,null,null,null,null,null,null,null,null,null,null,null,null,null,null,null,null,null,null,null,null,null,null,null,null,null,null,null,null,"No","","","",3950]
[null,null,null,null,null,null,"","",null,null,null,"",null,"","","","","","","","","",null,null,null,null,"","","","",null,null,null,null,null,null,null,null,null,null,null,null,null,null,null,null,null,null,null,null,null,null,null,null,null,null,null,null,null,null,null,"No","","","",3950]
[null,null,null,null,null,null,"","",null,null,null,"",null,"","","","","","","","","",null,null,null,null,"","","","",null,null,null,null,null,null,null,null,null,null,null,null,null,null,null,null,null,null,null,null,null,null,null,null,null,null,null,null,null,null,null,"No","","","",3950]
[null,null,null,null,null,null,"","",null,null,null,"",null,"","","","","","","","","",null,null,null,null,"","","","",null,null,null,null,null,null,null,null,null,null,null,null,null,null,null,null,null,null,null,null,null,null,null,null,null,null,null,null,null,null,null,"No","","","",3950]
[null,null,null,null,null,null,"","",null,null,null,"",null,"","","","","","","","","",null,null,null,null,"","","","",null,null,null,null,null,null,null,null,null,null,null,null,null,null,null,null,null,null,null,null,null,null,null,null,null,null,null,null,null,null,null,"No","","","",3950]
[null,null,null,null,null,null,"","",null,null,null,"",null,"","","","","","","","","",null,null,null,null,"","","","",null,null,null,null,null,null,null,null,null,null,null,null,null,null,null,null,null,null,null,null,null,null,null,null,null,null,null,null,null,null,null,"No","","","",3950]
[null,null,null,null,null,null,"","",null,null,null,"",null,"","","","","","","","","",null,null,null,null,{"$f":"IF(C604<>\"\",C604,\"\")","v":""},"","","",null,null,null,null,null,null,null,null,null,null,null,null,null,null,null,null,null,null,null,null,null,null,null,null,null,null,null,null,null,null,null,"No","","","",3950]
[null,null,null,null,null,null,"","",null,null,null,"",null,"","","","","","","","","",null,null,null,null,"","","","",null,null,null,null,null,null,null,null,null,null,null,null,null,null,null,null,null,null,null,null,null,null,null,null,null,null,null,null,null,null,null,"No","","","",3950]
[null,null,null,null,null,null,"","",null,null,null,"",null,"","","","","","","","","",null,null,null,null,"","","","",null,null,null,null,null,null,null,null,null,null,null,null,null,null,null,null,null,null,null,null,null,null,null,null,null,null,null,null,null,null,null,"No","","","",3950]
[null,null,null,null,null,null,"","",null,null,null,"",null,"","","","","","","","","",null,null,null,null,"","","","",null,null,null,null,null,null,null,null,null,null,null,null,null,null,null,null,null,null,null,null,null,null,null,null,null,null,null,null,null,null,null,"No","","","",3950]
[null,null,null,null,null,null,"","",null,null,null,"",null,"","","","","","","","","",null,null,null,null,"","","","",null,null,null,null,null,null,null,null,null,null,null,null,null,null,null,null,null,null,null,null,null,null,null,null,null,null,null,null,null,null,null,"No","","","",3950]
[null,null,null,null,null,null,"","",null,null,null,"",null,"","","","","","","","","",null,null,null,null,"","","","",null,null,null,null,null,null,null,null,null,null,null,null,null,null,null,null,null,null,null,null,null,null,null,null,null,null,null,null,null,null,null,"No","","","",3950]
[null,null,null,null,null,null,{"$f":"IF(I669<>\"\",VLOOKUP(I669,$C$28:$F$3000,4,FALSE),\"\")","v":""},"",null,null,null,"",null,"","","","","","","","","",null,null,null,null,"","","","",null,null,null,null,null,null,null,null,null,null,null,null,null,null,null,null,null,null,null,null,null,null,null,null,null,null,null,null,null,null,null,"No","","","",3950]
[null,null,null,null,null,null,"","",null,null,null,"",null,"","","","","","","","","",null,null,null,null,"","","","",null,null,null,null,null,null,null,null,null,null,null,null,null,null,null,null,null,null,null,null,null,null,null,null,null,null,null,null,null,null,null,"No","","","",3950]
[null,null,null,null,null,null,"","",null,null,null,"",null,"","","","","","","","","",null,null,null,null,"","","","",null,null,null,null,null,null,null,null,null,null,null,null,null,null,null,null,null,null,null,null,null,null,null,null,null,null,null,null,null,null,null,"No","","","",3950]
[null,null,null,null,null,null,"","",null,null,null,"",null,"","","","","","","","","",null,null,null,null,"","","","",null,null,null,null,null,null,null,null,null,null,null,null,null,null,null,null,null,null,null,null,null,null,null,null,null,null,null,null,null,null,null,"No","","","",3950]
[null,null,null,null,null,null,"","",null,null,null,"",null,"","","","","","","","","",null,null,null,null,"","","","",null,null,null,null,null,null,null,null,null,null,null,null,null,null,null,null,null,null,null,null,null,null,null,null,null,null,null,null,null,null,null,"No","","","",3950]
[null,null,null,null,null,null,"","",null,null,null,"",null,"","","","","","","","","",null,null,null,null,"","","","",null,null,null,null,null,null,null,null,null,null,null,null,null,null,null,null,null,null,null,null,null,null,null,null,null,null,null,null,null,null,null,"No","","","",3950]
[null,null,null,null,null,null,"","",null,null,null,"",null,"","","","","","","","","",null,null,null,null,"","","","",null,null,null,null,null,null,null,null,null,null,null,null,null,null,null,null,null,null,null,null,null,null,null,null,null,null,null,null,null,null,null,"No","","","",3950]
[null,null,null,null,null,null,"","",null,null,null,"",null,"","","","","","","","","",null,null,null,null,"","","","",null,null,null,null,null,null,null,null,null,null,null,null,null,null,null,null,null,null,null,null,null,null,null,null,null,null,null,null,null,null,null,"No","","","",3950]
[null,null,null,null,null,null,"","",null,null,null,"",null,"","","","","","","","","",null,null,null,null,"","","","",null,null,null,null,null,null,null,null,null,null,null,null,null,null,null,null,null,null,null,null,null,null,null,null,null,null,null,null,null,null,null,"No","","","",3950]
[null,null,null,null,null,null,"","",null,null,null,"",null,"","","","","","","","","",null,null,null,null,"","","","",null,null,null,null,null,null,null,null,null,null,null,null,null,null,null,null,null,null,null,null,null,null,null,null,null,null,null,null,null,null,null,"No","","","",3950]
[null,null,null,null,null,null,"","",null,null,null,"",null,"","","","","","","","","",null,null,null,null,"","","","",null,null,null,null,null,null,null,null,null,null,null,null,null,null,null,null,null,null,null,null,null,null,null,null,null,null,null,null,null,null,null,"No","","","",3950]
[null,null,null,null,null,null,"","",null,null,null,"",null,"","","","","","","","","",null,null,null,null,"","","","",null,null,null,null,null,null,null,null,null,null,null,null,null,null,null,null,null,null,null,null,null,null,null,null,null,null,null,null,null,null,null,"No","","","",3950]
[null,null,null,null,null,null,"","",null,null,null,"",null,"","","","","","","","","",null,null,null,null,"","","","",null,null,null,null,null,null,null,null,null,null,null,null,null,null,null,null,null,null,null,null,null,null,null,null,null,null,null,null,null,null,null,"No","","","",3950]
[null,null,null,null,null,null,"","",null,null,null,"",null,"","","","","","","","","",null,null,null,null,"","","","",null,null,null,null,null,null,null,null,null,null,null,null,null,null,null,null,null,null,null,null,null,null,null,null,null,null,null,null,null,null,null,"No","","","",3950]
[null,null,null,null,null,null,"","",null,null,null,"",null,"","","","","","","","","",null,null,null,null,"","","","",null,null,null,null,null,null,null,null,null,null,null,null,null,null,null,null,null,null,null,null,null,null,null,null,null,null,null,null,null,null,null,"No","","","",3950]
[null,null,null,null,null,null,"","",null,null,null,"",null,"","","","","","","","","",null,null,null,null,"","","","",null,null,null,null,null,null,null,null,null,null,null,null,null,null,null,null,null,null,null,null,null,null,null,null,null,null,null,null,null,null,null,"No","","","",3950]
[null,null,null,null,null,null,"","",null,null,null,"",null,"","","","","","","","","",null,null,null,null,"","","","",null,null,null,null,null,null,null,null,null,null,null,null,null,null,null,null,null,null,null,null,null,null,null,null,null,null,null,null,null,null,null,"No","","","",3950]
[null,null,null,null,null,null,"","",null,null,null,"",null,"","","","","","","","","",null,null,null,null,"","","","",null,null,null,null,null,null,null,null,null,null,null,null,null,null,null,null,null,null,null,null,null,null,null,null,null,null,null,null,null,null,null,{"$f":"IF(AND($K860=$AX$18,AND(OR($O860<=$AZ$18,$O860>=$BB$18),OR($O860>=-$AZ$18,$O860<=-$BB$18))),\"Yes\",IF(AND($K860=$AX$20,AND(OR($O860<=$AZ$20,$O860>=$BB$20),OR($O860>=-$AZ$20,$O860<=-$BB$20))),\"Yes\",IF(AND($K860=$AX$21,AND(OR($O860<=$AZ$21,$O860>=$BB$21),OR($O860>=-$AZ$21,$O860<=-$BB$21))),\"Yes\",IF(AND($K860=$AX$22,AND(OR($O860<=$AZ$22,$O860>=$BB$22),OR($O860>=-$AZ$22,$O860<=-$BB$22))),\"Yes\",IF(AND($K860=$AX$23,AND(OR($O860<=$AZ$23,$O860>=$BB$23),OR($O860>=-$AZ$23,$O860<=-$BB$23))),\"Yes\",\"No\")))))","v":"No"},{"$f":"IF(BJ848=\"Yes\",I860,\"\")","v":""},{"$f":"IF(BJ848=\"Yes\",J860,\"\")","v":""},{"$f":"IF(C860<>\"\",C860,\"\")","v":""},{"$f":"COUNTIF($BK$16:$BL$1990,BM848)","v":3950}]
[null,null,null,null,null,null,"","",null,null,null,"",null,"","","","","","","","","",null,null,null,null,"","","","",null,null,null,null,null,null,null,null,null,null,null,null,null,null,null,null,null,null,null,null,null,null,null,null,null,null,null,null,null,null,null,"No","","","",3950]
[null,null,null,null,null,null,"","",null,null,null,"",null,"","","","","","","","","",null,null,null,null,"","","","",null,null,null,null,null,null,null,null,null,null,null,null,null,null,null,null,null,null,null,null,null,null,null,null,null,null,null,null,null,null,null,"No","","","",3950]
[null,null,null,null,null,null,"","",null,null,null,"",null,"","","","","","","","","",null,null,null,null,"","","","",null,null,null,null,null,null,null,null,null,null,null,null,null,null,null,null,null,null,null,null,null,null,null,null,null,null,null,null,null,null,null,"No","","","",3950]
[null,null,null,null,null,null,"","",null,null,null,"",null,"","","","","","","","","",null,null,null,null,"","","","",null,null,null,null,null,null,null,null,null,null,null,null,null,null,null,null,null,null,null,null,null,null,null,null,null,null,null,null,null,null,null,"No","","","",3950]
[null,null,null,null,null,null,"","",null,null,null,"",null,"","","","","","","","","",null,null,null,null,"","","","",null,null,null,null,null,null,null,null,null,null,null,null,null,null,null,null,null,null,null,null,null,null,null,null,null,null,null,null,null,null,null,"No","","","",3950]
[null,null,null,null,null,null,"","",null,null,null,"",null,"","","","","","","","","",null,null,null,null,"","","","",null,null,null,null,null,null,null,null,null,null,null,null,null,null,null,null,null,null,null,null,null,null,null,null,null,null,null,null,null,null,null,"No","","","",3950]
[null,null,null,null,null,null,"","",null,null,null,"",null,"","","","","","","","","",null,null,null,null,"","","","",null,null,null,null,null,null,null,null,null,null,null,null,null,null,null,null,null,null,null,null,null,null,null,null,null,null,null,null,null,null,null,"No","","","",3950]
[null,null,null,null,null,null,"","",null,null,null,"",null,"","","","","","","","","",null,null,null,null,"","","","",null,null,null,null,null,null,null,null,null,null,null,null,null,null,null,null,null,null,null,null,null,null,null,null,null,null,null,null,null,null,null,"No","","","",3950]
[null,null,null,null,null,null,"","",null,null,null,"",null,"","","","","","","","","",null,null,null,null,"","","","",null,null,null,null,null,null,null,null,null,null,null,null,null,null,null,null,null,null,null,null,null,null,null,null,null,null,null,null,null,null,null,"No","","","",3950]
[null,null,null,null,null,null,"","",null,null,null,"",null,"","","","","","","","","",null,null,null,null,"","","","",null,null,null,null,null,null,null,null,null,null,null,null,null,null,null,null,null,null,null,null,null,null,null,null,null,null,null,null,null,null,null,"No","","","",3950]
[null,null,null,null,null,null,"","",null,null,null,"",null,"","","","","","","","","",null,null,null,null,"","","","",null,null,null,null,null,null,null,null,null,null,null,null,null,null,null,null,null,null,null,null,null,null,null,null,null,null,null,null,null,null,null,"No","","","",3950]
[null,null,null,null,null,null,"","",null,null,null,"",null,"","","","","","","","","",null,null,null,null,"","","","",null,null,null,null,null,null,null,null,null,null,null,null,null,null,null,null,null,null,null,null,null,null,null,null,null,null,null,null,null,null,null,"No","","","",3950]
[null,null,null,null,null,null,"","",null,null,null,"",null,"","","","","","","","","",null,null,null,null,{"$f":"IF(C988<>\"\",C988,\"\")","v":""},"","","",null,null,null,null,null,null,null,null,null,null,null,null,null,null,null,null,null,null,null,null,null,null,null,null,null,null,null,null,null,null,null,"No","","","",3950]
[null,null,null,null,null,null,"","",null,null,null,"",null,"","","","","","","","","",null,null,null,null,"","","","",null,null,null,null,null,null,null,null,null,null,null,null,null,null,null,null,null,null,null,null,null,null,null,null,null,null,null,null,null,null,null,"No","","","",3950]
[null,null,null,null,null,null,"","",null,null,null,"",null,"","","","","","","","","",null,null,null,null,"","","","",null,null,null,null,null,null,null,null,null,null,null,null,null,null,null,null,null,null,null,null,null,null,null,null,null,null,null,null,null,null,null,"No","","","",3950]
[null,null,null,null,null,null,"","",null,null,null,"",null,"","","","","","","","","",null,null,null,null,"","","","",null,null,null,null,null,null,null,null,null,null,null,null,null,null,null,null,null,null,null,null,null,null,null,null,null,null,null,null,null,null,null,"No","","","",3950]
[null,null,null,null,null,null,"","",null,null,null,"",null,"","","","","","","","","",null,null,null,null,"","","","",null,null,null,null,null,null,null,null,null,null,null,null,null,null,null,null,null,null,null,null,null,null,null,null,null,null,null,null,null,null,null,"No","","","",3950]
[null,null,null,null,null,null,"","",null,null,null,"",null,"","","","","","","","","",null,null,null,null,"","","","",null,null,null,null,null,null,null,null,null,null,null,null,null,null,null,null,null,null,null,null,null,null,null,null,null,null,null,null,null,null,null,"No","","","",3950]
[null,null,null,null,null,null,{"$f":"IF(I1053<>\"\",VLOOKUP(I1053,$C$28:$F$3000,4,FALSE),\"\")","v":""},"",null,null,null,"",null,"","","","","","","","","",null,null,null,null,"","","","",null,null,null,null,null,null,null,null,null,null,null,null,null,null,null,null,null,null,null,null,null,null,null,null,null,null,null,null,null,null,null,"No","","","",3950]
[null,null,null,null,null,null,"","",null,null,null,"",null,"","","","","","","","","",null,null,null,null,"","","","",null,null,null,null,null,null,null,null,null,null,null,null,null,null,null,null,null,null,null,null,null,null,null,null,null,null,null,null,null,null,null,"No","","","",3950]
[null,null,null,null,null,null,"","",null,null,null,"",null,"","","","","","","","","",null,null,null,null,"","","","",null,null,null,null,null,null,null,null,null,null,null,null,null,null,null,null,null,null,null,null,null,null,null,null,null,null,null,null,null,null,null,"No","","","",3950]
[null,null,null,null,null,null,"","",null,null,null,"",null,"","","","","","","","","",null,null,null,null,"","","","",null,null,null,null,null,null,null,null,null,null,null,null,null,null,null,null,null,null,null,null,null,null,null,null,null,null,null,null,null,null,null,"No","","","",3950]
[null,null,null,null,null,null,"","",null,null,null,"",null,"","","","","","","","","",null,null,null,null,"","","","",null,null,null,null,null,null,null,null,null,null,null,null,null,null,null,null,null,null,null,null,null,null,null,null,null,null,null,null,null,null,null,"No","","","",3950]
[null,null,null,null,null,null,"","",null,null,null,"",null,"","","","","","","","","",null,null,null,null,"","","","",null,null,null,null,null,null,null,null,null,null,null,null,null,null,null,null,null,null,null,null,null,null,null,null,null,null,null,null,null,null,null,"No","","","",3950]
[null,null,null,null,null,null,{"$f":"IF(I1117<>\"\",VLOOKUP(I1117,$C$28:$F$3000,4,FALSE),\"\")","v":""},"",null,null,null,"",null,"","","","","","","","","",null,null,null,null,"","","","",null,null,null,null,null,null,null,null,null,null,null,null,null,null,null,null,null,null,null,null,null,null,null,null,null,null,null,null,null,null,null,"No","","","",3950]
[null,null,null,null,null,null,"","",null,null,null,"",null,"","","","","","","","","",null,null,null,null,"","","","",null,null,null,null,null,null,null,null,null,null,null,null,null,null,null,null,null,null,null,null,null,null,null,null,null,null,null,null,null,null,null,"No","","","",3950]
[null,null,null,null,null,null,"","",null,null,null,{"$f":"IF(K1144<>\"\",VLOOKUP(K1144,$BE$16:$BF$23,2,FALSE),\"\")","v":""},null,{"$f":"IF(M1144<>\"\",ROUND((VLOOKUP(J1144,AA$28:AD$2001,4,FALSE)-VLOOKUP(I1144,AA$28:AD$2001,4,FALSE)),2),\"\")","v":""},{"$f":"IF(M1144<>\"\",ROUND((VLOOKUP(J1144,AA$28:AD$2001,4,FALSE)-VLOOKUP(I1144,AA$28:AD$2001,4,FALSE))/M1144,3),\"\")","v":""},{"$f":"IF(K1144<>\"\",VLOOKUP(K1144,$AX$16:$BC$23,3,FALSE),\"\")","v":""},{"$f":"IF(K1144<>\"\",VLOOKUP(K1144,$AX$16:$BC$23,5,FALSE),\"\")","v":""},{"$f":"IF(O1144<>\"\",VLOOKUP(K1144,$AX$16:$BC$23,6,FALSE),\"\")","v":""},{"$f":"IF(O1144<>\"\",IF(K1144<>\"Match Existing Cross Slope\",IF(O1144>0,VLOOKUP(K1144,$AX$16:$BC$23,4,TRUE)-O1144,VLOOKUP(K1144,$AX$16:$BC$23,4,TRUE)+O1144),\"\"),\"\")","v":""},{"$f":"IF(S1144>=0,R1144,IF(AND(M1144>15,O1144>$BB$21),\"\",VLOOKUP(K1144,$AX$16:$BC$23,2,FALSE)&\" to \"&(1+ABS(O1144)*100&\"%\")))","v":""},{"$f":"IF(OR(T1144<>R1144,V1144=\"Yes\"),\"Yes\",\"\")","v":""},{"$f":"IF(AND(OR(K1144=\"Ramp Running Slope\",K1144=\"Sidewalk Running Slope\"),S1144>=0,S1144<0.01),\"Yes\",IF(AND(OR(K1144=\"Ramp Cross Slope\",K1144=\"Sidewalk Cross Slope\",K1144=\"Landing/Turning Space\"),S1144>=0,S1144<0.005),\"Yes\",\"\"))","v":""},null,null,null,null,"","","","",null,null,null,null,null,null,null,null,null,null,null,null,null,null,null,null,null,null,null,null,null,null,null,null,null,null,null,null,null,null,null,"No","","","",3950]
[null,null,null,null,null,null,"","",null,null,null,"",null,"","","","","","","","","",null,null,null,null,"","","","",null,null,null,null,null,null,null,null,null,null,null,null,null,null,null,null,null,null,null,null,null,null,null,null,null,null,null,null,null,null,null,"No","","","",3950]
[null,null,null,null,null,null,"","",null,null,null,"",null,"","","","","","","","","",null,null,null,null,"","","","",null,null,null,null,null,null,null,null,null,null,null,null,null,null,null,null,null,null,null,null,null,null,null,null,null,null,null,null,null,null,null,"No","","","",3950]
[null,null,null,null,null,null,"","",null,null,null,"",null,"","","","","","","","","",null,null,null,null,"","","","",null,null,null,null,null,null,null,null,null,null,null,null,null,null,null,null,null,null,null,null,null,null,null,null,null,null,null,null,null,null,null,"No","","","",3950]
[null,null,null,null,null,null,"","",null,null,null,"",null,"","","","","","","","","",null,null,null,null,"","","","",null,null,null,null,null,null,null,null,null,null,null,null,null,null,null,null,null,null,null,null,null,null,null,null,null,null,null,null,null,null,null,"No","","","",3950]
[null,null,null,null,null,null,"","",null,null,null,"",null,"","","","","","","","","",null,null,null,null,"","","","",null,null,null,null,null,null,null,null,null,null,null,null,null,null,null,null,null,null,null,null,null,null,null,null,null,null,null,null,null,null,null,"No","","","",3950]
[null,null,null,null,null,null,"","",null,null,null,{"$f":"IF(K1208<>\"\",VLOOKUP(K1208,$BE$16:$BF$23,2,FALSE),\"\")","v":""},null,{"$f":"IF(M1208<>\"\",ROUND((VLOOKUP(J1208,AA$28:AD$2001,4,FALSE)-VLOOKUP(I1208,AA$28:AD$2001,4,FALSE)),2),\"\")","v":""},{"$f":"IF(M1208<>\"\",ROUND((VLOOKUP(J1208,AA$28:AD$2001,4,FALSE)-VLOOKUP(I1208,AA$28:AD$2001,4,FALSE))/M1208,3),\"\")","v":""},{"$f":"IF(K1208<>\"\",VLOOKUP(K1208,$AX$16:$BC$23,3,FALSE),\"\")","v":""},{"$f":"IF(K1208<>\"\",VLOOKUP(K1208,$AX$16:$BC$23,5,FALSE),\"\")","v":""},{"$f":"IF(O1208<>\"\",VLOOKUP(K1208,$AX$16:$BC$23,6,FALSE),\"\")","v":""},{"$f":"IF(O1208<>\"\",IF(K1208<>\"Match Existing Cross Slope\",IF(O1208>0,VLOOKUP(K1208,$AX$16:$BC$23,4,TRUE)-O1208,VLOOKUP(K1208,$AX$16:$BC$23,4,TRUE)+O1208),\"\"),\"\")","v":""},{"$f":"IF(S1208>=0,R1208,IF(AND(M1208>15,O1208>$BB$21),\"\",VLOOKUP(K1208,$AX$16:$BC$23,2,FALSE)&\" to \"&(1+ABS(O1208)*100&\"%\")))","v":""},{"$f":"IF(OR(T1208<>R1208,V1208=\"Yes\"),\"Yes\",\"\")","v":""},{"$f":"IF(AND(OR(K1208=\"Ramp Running Slope\",K1208=\"Sidewalk Running Slope\"),S1208>=0,S1208<0.01),\"Yes\",IF(AND(OR(K1208=\"Ramp Cross Slope\",K1208=\"Sidewalk Cross Slope\",K1208=\"Landing/Turning Space\"),S1208>=0,S1208<0.005),\"Yes\",\"\"))","v":""},null,null,null,null,"","","","",null,null,null,null,null,null,null,null,null,null,null,null,null,null,null,null,null,null,null,null,null,null,null,null,null,null,null,null,null,null,null,"No","","","",3950]
[null,null,null,null,null,null,"","",null,null,null,"",null,"","","","","","","","","",null,null,null,null,"","","","",null,null,null,null,null,null,null,null,null,null,null,null,null,null,null,null,null,null,null,null,null,null,null,null,null,null,null,null,null,null,null,"No","","","",3950]
[null,null,null,null,null,null,"","",null,null,null,"",null,"","","","","","","","","",null,null,null,null,"","","","",null,null,null,null,null,null,null,null,null,null,null,null,null,null,null,null,null,null,null,null,null,null,null,null,null,null,null,null,null,null,null,"No","","","",3950]
[null,null,null,null,null,null,"","",null,null,null,"",null,"","","","","","","","","",null,null,null,null,"","","","",null,null,null,null,null,null,null,null,null,null,null,null,null,null,null,null,null,null,null,null,null,null,null,null,null,null,null,null,null,null,null,"No","","","",3950]
[null,null,null,null,null,null,"","",null,null,null,"",null,"","","","","","","","","",null,null,null,null,"","","","",null,null,null,null,null,null,null,null,null,null,null,null,null,null,null,null,null,null,null,null,null,null,null,null,null,null,null,null,null,null,null,"No","","","",3950]
[null,null,null,null,null,null,"","",null,null,null,"",null,"","","","","","","","","",null,null,null,null,"","","","",null,null,null,null,null,null,null,null,null,null,null,null,null,null,null,null,null,null,null,null,null,null,null,null,null,null,null,null,null,null,null,"No","","","",3950]
[null,null,null,null,null,null,"","",null,null,null,"",null,"","","","","","","","","",null,null,null,null,"","","","",null,null,null,null,null,null,null,null,null,null,null,null,null,null,null,null,null,null,null,null,null,null,null,null,null,null,null,null,null,null,null,"No","","","",3950]
[null,null,null,null,null,null,"","",null,null,null,"",null,"","","","","","","","","",null,null,null,null,"","","","",null,null,null,null,null,null,null,null,null,null,null,null,null,null,null,null,null,null,null,null,null,null,null,null,null,null,null,null,null,null,null,"No","","","",3950]
[null,null,null,null,null,null,"","",null,null,null,"",null,"","","","","","","","","",null,null,null,null,"","","","",null,null,null,null,null,null,null,null,null,null,null,null,null,null,null,null,null,null,null,null,null,null,null,null,null,null,null,null,null,null,null,"No","","","",3950]
[null,null,null,null,null,null,"","",null,null,null,"",null,"","","","","","","","","",null,null,null,null,"","","","",null,null,null,null,null,null,null,null,null,null,null,null,null,null,null,null,null,null,null,null,null,null,null,null,null,null,null,null,null,null,null,"No","","","",3950]
[null,null,null,null,null,null,"","",null,null,null,"",null,"","","","","","","","","",null,null,null,null,"","","","",null,null,null,null,null,null,null,null,null,null,null,null,null,null,null,null,null,null,null,null,null,null,null,null,null,null,null,null,null,null,null,"No","","","",3950]
[null,null,null,null,null,null,"","",null,null,null,"",null,"","","","","","","","","",null,null,null,null,"","","","",null,null,null,null,null,null,null,null,null,null,null,null,null,null,null,null,null,null,null,null,null,null,null,null,null,null,null,null,null,null,null,"No","","","",3950]
[null,null,null,null,null,null,"","",null,null,null,"",null,"","","","","","","","","",null,null,null,null,"","","","",null,null,null,null,null,null,null,null,null,null,null,null,null,null,null,null,null,null,null,null,null,null,null,null,null,null,null,null,null,null,null,"No","","","",3950]
[null,null,null,null,null,null,"","",null,null,null,"",null,"","","","","","","","","",null,null,null,null,"","","","",null,null,null,null,null,null,null,null,null,null,null,null,null,null,null,null,null,null,null,null,null,null,null,null,null,null,null,null,null,null,null,"No","","","",3950]
[null,null,null,null,null,null,"","",null,null,null,"",null,"","","","","","","","","",null,null,null,null,"","","","",null,null,null,null,null,null,null,null,null,null,null,null,null,null,null,null,null,null,null,null,null,null,null,null,null,null,null,null,null,null,null,"No","","","",3950]
[null,null,null,null,null,null,"","",null,null,null,"",null,"","","","","","","","","",null,null,null,null,"","","","",null,null,null,null,null,null,null,null,null,null,null,null,null,null,null,null,null,null,null,null,null,null,null,null,null,null,null,null,null,null,null,"No","","","",3950]
[null,null,null,null,null,null,"","",null,null,null,"",null,"","","","","","","","","",null,null,null,null,"","","","",null,null,null,null,null,null,null,null,null,null,null,null,null,null,null,null,null,null,null,null,null,null,null,null,null,null,null,null,null,null,null,"No","","","",3950]
[null,null,null,null,null,null,"","",null,null,null,"",null,"","","","","","","","","",null,null,null,null,"","","","",null,null,null,null,null,null,null,null,null,null,null,null,null,null,null,null,null,null,null,null,null,null,null,null,null,null,null,null,null,null,null,"No","","","",3950]
[null,null,null,null,null,null,"","",null,null,null,"",null,"","","","","","","","","",null,null,null,null,"","","","",null,null,null,null,null,null,null,null,null,null,null,null,null,null,null,null,null,null,null,null,null,null,null,null,null,null,null,null,null,null,null,"No","","","",3950]
[null,null,null,null,null,null,"","",null,null,null,"",null,"","","","","","","","","",null,null,null,null,"","","","",null,null,null,null,null,null,null,null,null,null,null,null,null,null,null,null,null,null,null,null,null,null,null,null,null,null,null,null,null,null,null,"No","","","",3950]
[null,null,null,null,null,null,"","",null,null,null,"",null,"","","","","","","","","",null,null,null,null,"","","","",null,null,null,null,null,null,null,null,null,null,null,null,null,null,null,null,null,null,null,null,null,null,null,null,null,null,null,null,null,null,null,"No","","","",3950]
[null,null,null,null,null,null,"","",null,null,null,"",null,"","","","","","","","","",null,null,null,null,"","","","",null,null,null,null,null,null,null,null,null,null,null,null,null,null,null,null,null,null,null,null,null,null,null,null,null,null,null,null,null,null,null,"No","","","",3950]
[null,null,null,null,null,null,{"$f":"IF(I1437<>\"\",VLOOKUP(I1437,$C$28:$F$3000,4,FALSE),\"\")","v":""},"",null,null,null,"",null,"","","","","","","","","",null,null,null,null,"","","","",null,null,null,null,null,null,null,null,null,null,null,null,null,null,null,null,null,null,null,null,null,null,null,null,null,null,null,null,null,null,null,"No","","","",3950]
[null,null,null,null,null,null,"","",null,null,null,"",null,"","","","","","","","","",null,null,null,null,"","","","",null,null,null,null,null,null,null,null,null,null,null,null,null,null,null,null,null,null,null,null,null,null,null,null,null,null,null,null,null,null,null,"No","","","",3950]
[null,null,null,null,null,null,"","",null,null,null,"",null,"","","","","","","","","",null,null,null,null,"","","","",null,null,null,null,null,null,null,null,null,null,null,null,null,null,null,null,null,null,null,null,null,null,null,null,null,null,null,null,null,null,null,"No","","","",3950]
[null,null,null,null,null,null,"","",null,null,null,"",null,"","","","","","","","","",null,null,null,null,"","","","",null,null,null,null,null,null,null,null,null,null,null,null,null,null,null,null,null,null,null,null,null,null,null,null,null,null,null,null,null,null,null,"No","","","",3950]
[null,null,null,null,null,null,"","",null,null,null,"",null,"","","","","","","","","",null,null,null,null,"","","","",null,null,null,null,null,null,null,null,null,null,null,null,null,null,null,null,null,null,null,null,null,null,null,null,null,null,null,null,null,null,null,"No","","","",3950]
[null,null,null,null,null,null,"","",null,null,null,"",null,"","","","","","","","","",null,null,null,null,"","","","",null,null,null,null,null,null,null,null,null,null,null,null,null,null,null,null,null,null,null,null,null,null,null,null,null,null,null,null,null,null,null,"No","","","",3950]
[null,null,null,null,null,null,{"$f":"IF(I1501<>\"\",VLOOKUP(I1501,$C$28:$F$3000,4,FALSE),\"\")","v":""},"",null,null,null,"",null,"","","","","","","","","",null,null,null,null,"","","","",null,null,null,null,null,null,null,null,null,null,null,null,null,null,null,null,null,null,null,null,null,null,null,null,null,null,null,null,null,null,null,"No","","","",3950]
[null,null,null,null,null,null,"","",null,null,null,"",null,"","","","","","","","","",null,null,null,null,"","","","",null,null,null,null,null,null,null,null,null,null,null,null,null,null,null,null,null,null,null,null,null,null,null,null,null,null,null,null,null,null,null,"No","","","",3950]
[null,null,null,null,null,null,"","",null,null,null,{"$f":"IF(K1528<>\"\",VLOOKUP(K1528,$BE$16:$BF$23,2,FALSE),\"\")","v":""},null,{"$f":"IF(M1528<>\"\",ROUND((VLOOKUP(J1528,AA$28:AD$2001,4,FALSE)-VLOOKUP(I1528,AA$28:AD$2001,4,FALSE)),2),\"\")","v":""},{"$f":"IF(M1528<>\"\",ROUND((VLOOKUP(J1528,AA$28:AD$2001,4,FALSE)-VLOOKUP(I1528,AA$28:AD$2001,4,FALSE))/M1528,3),\"\")","v":""},{"$f":"IF(K1528<>\"\",VLOOKUP(K1528,$AX$16:$BC$23,3,FALSE),\"\")","v":""},{"$f":"IF(K1528<>\"\",VLOOKUP(K1528,$AX$16:$BC$23,5,FALSE),\"\")","v":""},{"$f":"IF(O1528<>\"\",VLOOKUP(K1528,$AX$16:$BC$23,6,FALSE),\"\")","v":""},{"$f":"IF(O1528<>\"\",IF(K1528<>\"Match Existing Cross Slope\",IF(O1528>0,VLOOKUP(K1528,$AX$16:$BC$23,4,TRUE)-O1528,VLOOKUP(K1528,$AX$16:$BC$23,4,TRUE)+O1528),\"\"),\"\")","v":""},{"$f":"IF(S1528>=0,R1528,IF(AND(M1528>15,O1528>$BB$21),\"\",VLOOKUP(K1528,$AX$16:$BC$23,2,FALSE)&\" to \"&(1+ABS(O1528)*100&\"%\")))","v":""},{"$f":"IF(OR(T1528<>R1528,V1528=\"Yes\"),\"Yes\",\"\")","v":""},{"$f":"IF(AND(OR(K1528=\"Ramp Running Slope\",K1528=\"Sidewalk Running Slope\"),S1528>=0,S1528<0.01),\"Yes\",IF(AND(OR(K1528=\"Ramp Cross Slope\",K1528=\"Sidewalk Cross Slope\",K1528=\"Landing/Turning Space\"),S1528>=0,S1528<0.005),\"Yes\",\"\"))","v":""},null,null,null,null,"","","","",null,null,null,null,null,null,null,null,null,null,null,null,null,null,null,null,null,null,null,null,null,null,null,null,null,null,null,null,null,null,null,"No","","","",3950]
[null,null,null,null,null,null,"","",null,null,null,"",null,"","","","","","","","","",null,null,null,null,"","","","",null,null,null,null,null,null,null,null,null,null,null,null,null,null,null,null,null,null,null,null,null,null,null,null,null,null,null,null,null,null,null,"No","","","",3950]
[null,null,null,null,null,null,"","",null,null,null,"",null,"","","","","","","","","",null,null,null,null,"","","","",null,null,null,null,null,null,null,null,null,null,null,null,null,null,null,null,null,null,null,null,null,null,null,null,null,null,null,null,null,null,null,"No","","","",3950]
[null,null,null,null,null,null,"","",null,null,null,"",null,"","","","","","","","","",null,null,null,null,"","","","",null,null,null,null,null,null,null,null,null,null,null,null,null,null,null,null,null,null,null,null,null,null,null,null,null,null,null,null,null,null,null,"No","","","",3950]
[null,null,null,null,null,null,"","",null,null,null,"",null,"","","","","","","","","",null,null,null,null,"","","","",null,null,null,null,null,null,null,null,null,null,null,null,null,null,null,null,null,null,null,null,null,null,null,null,null,null,null,null,null,null,null,"No","","","",3950]
[null,null,null,null,null,null,"","",null,null,null,"",null,"","","","","","","","","",null,null,null,null,"","","","",null,null,null,null,null,null,null,null,null,null,null,null,null,null,null,null,null,null,null,null,null,null,null,null,null,null,null,null,null,null,null,"No","","","",3950]
[null,null,null,null,null,null,"","",null,null,null,{"$f":"IF(K1592<>\"\",VLOOKUP(K1592,$BE$16:$BF$23,2,FALSE),\"\")","v":""},null,{"$f":"IF(M1592<>\"\",ROUND((VLOOKUP(J1592,AA$28:AD$2001,4,FALSE)-VLOOKUP(I1592,AA$28:AD$2001,4,FALSE)),2),\"\")","v":""},{"$f":"IF(M1592<>\"\",ROUND((VLOOKUP(J1592,AA$28:AD$2001,4,FALSE)-VLOOKUP(I1592,AA$28:AD$2001,4,FALSE))/M1592,3),\"\")","v":""},{"$f":"IF(K1592<>\"\",VLOOKUP(K1592,$AX$16:$BC$23,3,FALSE),\"\")","v":""},{"$f":"IF(K1592<>\"\",VLOOKUP(K1592,$AX$16:$BC$23,5,FALSE),\"\")","v":""},{"$f":"IF(O1592<>\"\",VLOOKUP(K1592,$AX$16:$BC$23,6,FALSE),\"\")","v":""},{"$f":"IF(O1592<>\"\",IF(K1592<>\"Match Existing Cross Slope\",IF(O1592>0,VLOOKUP(K1592,$AX$16:$BC$23,4,TRUE)-O1592,VLOOKUP(K1592,$AX$16:$BC$23,4,TRUE)+O1592),\"\"),\"\")","v":""},{"$f":"IF(S1592>=0,R1592,IF(AND(M1592>15,O1592>$BB$21),\"\",VLOOKUP(K1592,$AX$16:$BC$23,2,FALSE)&\" to \"&(1+ABS(O1592)*100&\"%\")))","v":""},{"$f":"IF(OR(T1592<>R1592,V1592=\"Yes\"),\"Yes\",\"\")","v":""},{"$f":"IF(AND(OR(K1592=\"Ramp Running Slope\",K1592=\"Sidewalk Running Slope\"),S1592>=0,S1592<0.01),\"Yes\",IF(AND(OR(K1592=\"Ramp Cross Slope\",K1592=\"Sidewalk Cross Slope\",K1592=\"Landing/Turning Space\"),S1592>=0,S1592<0.005),\"Yes\",\"\"))","v":""},null,null,null,null,"","","","",null,null,null,null,null,null,null,null,null,null,null,null,null,null,null,null,null,null,null,null,null,null,null,null,null,null,null,null,null,null,null,"No","","","",3950]
[null,null,null,null,null,null,"","",null,null,null,"",null,"","","","","","","","","",null,null,null,null,"","","","",null,null,null,null,null,null,null,null,null,null,null,null,null,null,null,null,null,null,null,null,null,null,null,null,null,null,null,null,null,null,null,"No","","","",3950]
[null,null,null,null,null,null,"","",null,null,null,"",null,"","","","","","","","","",null,null,null,null,"","","","",null,null,null,null,null,null,null,null,null,null,null,null,null,null,null,null,null,null,null,null,null,null,null,null,null,null,null,null,null,null,null,"No","","","",3950]
[null,null,null,null,null,null,"","",null,null,null,"",null,"","","","","","","","","",null,null,null,null,"","","","",null,null,null,null,null,null,null,null,null,null,null,null,null,null,null,null,null,null,null,null,null,null,null,null,null,null,null,null,null,null,null,"No","","","",3950]
[null,null,null,null,null,null,"","",null,null,null,"",null,"","","","","","","","","",null,null,null,null,"","","","",null,null,null,null,null,null,null,null,null,null,null,null,null,null,null,null,null,null,null,null,null,null,null,null,null,null,null,null,null,null,null,"No","","","",3950]
[null,null,null,null,null,null,"","",null,null,null,"",null,"","","","","","","","","",null,null,null,null,"","","","",null,null,null,null,null,null,null,null,null,null,null,null,null,null,null,null,null,null,null,null,null,null,null,null,null,null,null,null,null,null,null,"No","","","",3950]
[null,null,null,null,null,null,"","",null,null,null,"",null,"","","","","","","","","",null,null,null,null,"","","","",null,null,null,null,null,null,null,null,null,null,null,null,null,null,null,null,null,null,null,null,null,null,null,null,null,null,null,null,null,null,null,"No","","","",3950]
[null,null,null,null,null,null,"","",null,null,null,"",null,"","","","","","","","","",null,null,null,null,"","","","",null,null,null,null,null,null,null,null,null,null,null,null,null,null,null,null,null,null,null,null,null,null,null,null,null,null,null,null,null,null,null,"No","","","",3950]
[null,null,null,null,null,null,"","",null,null,null,"",null,"","","","","","","","","",null,null,null,null,"","","","",null,null,null,null,null,null,null,null,null,null,null,null,null,null,null,null,null,null,null,null,null,null,null,null,null,null,null,null,null,null,null,"No","","","",3950]
[null,null,null,null,null,null,{"$f":"IF(I1693<>\"\",VLOOKUP(I1693,$C$28:$F$3000,4,FALSE),\"\")","v":""},"",null,null,null,"",null,"","","","","","","","","",null,null,null,null,"","","","",null,null,null,null,null,null,null,null,null,null,null,null,null,null,null,null,null,null,null,null,null,null,null,null,null,null,null,null,null,null,null,"No","","","",3950]
[null,null,null,null,null,null,"","",null,null,null,"",null,"","","","","","","","","",null,null,null,null,"","","","",null,null,null,null,null,null,null,null,null,null,null,null,null,null,null,null,null,null,null,null,null,null,null,null,null,null,null,null,null,null,null,"No","","","",3950]
[null,null,null,null,null,null,"","",null,null,null,"",null,"","","","","","","","","",null,null,null,null,"","","","",null,null,null,null,null,null,null,null,null,null,null,null,null,null,null,null,null,null,null,null,null,null,null,null,null,null,null,null,null,null,null,"No","","","",3950]
[null,null,null,null,null,null,"","",null,null,null,"",null,"","","","","","","","","",null,null,null,null,"","","","",null,null,null,null,null,null,null,null,null,null,null,null,null,null,null,null,null,null,null,null,null,null,null,null,null,null,null,null,null,null,null,"No","","","",3950]
[null,null,null,null,null,null,"","",null,null,null,"",null,"","","","","","","","","",null,null,null,null,"","","","",null,null,null,null,null,null,null,null,null,null,null,null,null,null,null,null,null,null,null,null,null,null,null,null,null,null,null,null,null,null,null,"No","","","",3950]
[null,null,null,null,null,null,"","",null,null,null,"",null,"","","","","","","","","",null,null,null,null,"","","","",null,null,null,null,null,null,null,null,null,null,null,null,null,null,null,null,null,null,null,null,null,null,null,null,null,null,null,null,null,null,null,"No","","","",3950]
[null,null,null,null,null,null,"","",null,null,null,"",null,"","","","","","","","","",null,null,null,null,"","","","",null,null,null,null,null,null,null,null,null,null,null,null,null,null,null,null,null,null,null,null,null,null,null,null,null,null,null,null,null,null,null,"No","","","",3950]
[null,null,null,null,null,null,"","",null,null,null,"",null,"","","","","","","","","",null,null,null,null,"","","","",null,null,null,null,null,null,null,null,null,null,null,null,null,null,null,null,null,null,null,null,null,null,null,null,null,null,null,null,null,null,null,"No","","","",3950]
[null,null,null,null,null,null,"","",null,null,null,"",null,"","","","","","","","","",null,null,null,null,"","","","",null,null,null,null,null,null,null,null,null,null,null,null,null,null,null,null,null,null,null,null,null,null,null,null,null,null,null,null,null,null,null,"No","","","",3950]
[null,null,null,null,null,null,"","",null,null,null,"",null,"","","","","","","","","",null,null,null,null,"","","","",null,null,null,null,null,null,null,null,null,null,null,null,null,null,null,null,null,null,null,null,null,null,null,null,null,null,null,null,null,null,null,"No","","","",3950]
[null,null,null,null,null,null,"","",null,null,null,"",null,"","","","","","","","","",null,null,null,null,"","","","",null,null,null,null,null,null,null,null,null,null,null,null,null,null,null,null,null,null,null,null,null,null,null,null,null,null,null,null,null,null,null,"No","","","",3950]
[null,null,null,null,null,null,"","",null,null,null,"",null,"","","","","","","","","",null,null,null,null,"","","","",null,null,null,null,null,null,null,null,null,null,null,null,null,null,null,null,null,null,null,null,null,null,null,null,null,null,null,null,null,null,null,"No","","","",3950]
[null,null,null,null,null,null,"","",null,null,null,"",null,"","","","","","","","","",null,null,null,null,"","","","",null,null,null,null,null,null,null,null,null,null,null,null,null,null,null,null,null,null,null,null,null,null,null,null,null,null,null,null,null,null,null,"No","","","",3950]
[null,null,null,null,null,null,"","",null,null,null,"",null,"","","","","","","","","",null,null,null,null,"","","","",null,null,null,null,null,null,null,null,null,null,null,null,null,null,null,null,null,null,null,null,null,null,null,null,null,null,null,null,null,null,null,"No","","","",3950]
[null,null,null,null,null,null,"","",null,null,null,"",null,"","","","","","","","","",null,null,null,null,"","","","",null,null,null,null,null,null,null,null,null,null,null,null,null,null,null,null,null,null,null,null,null,null,null,null,null,null,null,null,null,null,null,"No","","","",3950]
[null,null,null,null,null,null,"","",null,null,null,"",null,"","","","","","","","","",null,null,null,null,"","","","",null,null,null,null,null,null,null,null,null,null,null,null,null,null,null,null,null,null,null,null,null,null,null,null,null,null,null,null,null,null,null,"No","","","",3950]
[null,null,null,null,null,null,"","",null,null,null,"",null,"","","","","","","","","",null,null,null,null,"","","","",null,null,null,null,null,null,null,null,null,null,null,null,null,null,null,null,null,null,null,null,null,null,null,null,null,null,null,null,null,null,null,"No","","","",3950]
[null,null,null,null,null,null,"","",null,null,null,"",null,"","","","","","","","","",null,null,null,null,"","","","",null,null,null,null,null,null,null,null,null,null,null,null,null,null,null,null,null,null,null,null,null,null,null,null,null,null,null,null,null,null,null,"No","","","",3950]
[null,null,null,null,null,null,"","",null,null,null,"",null,"","","","","","","","","",null,null,null,null,"","","","",null,null,null,null,null,null,null,null,null,null,null,null,null,null,null,null,null,null,null,null,null,null,null,null,null,null,null,null,null,null,null,"No","","","",3950]
[null,null,null,null,null,null,"","",null,null,null,"",null,"","","","","","","","","",null,null,null,null,"","","","",null,null,null,null,null,null,null,null,null,null,null,null,null,null,null,null,null,null,null,null,null,null,null,null,null,null,null,null,null,null,null,"No","","","",3950]
[null,null,null,null,null,null,"","",null,null,null,"",null,"","","","","","","","","",null,null,null,null,"","","","",null,null,null,null,null,null,null,null,null,null,null,null,null,null,null,null,null,null,null,null,null,null,null,null,null,null,null,null,null,null,null,"No","","","",3950]
[null,null,null,null,null,null,"","",null,null,null,{"$f":"IF(K1912<>\"\",VLOOKUP(K1912,$BE$16:$BF$23,2,FALSE),\"\")","v":""},null,{"$f":"IF(M1912<>\"\",ROUND((VLOOKUP(J1912,AA$28:AD$2001,4,FALSE)-VLOOKUP(I1912,AA$28:AD$2001,4,FALSE)),2),\"\")","v":""},{"$f":"IF(M1912<>\"\",ROUND((VLOOKUP(J1912,AA$28:AD$2001,4,FALSE)-VLOOKUP(I1912,AA$28:AD$2001,4,FALSE))/M1912,3),\"\")","v":""},{"$f":"IF(K1912<>\"\",VLOOKUP(K1912,$AX$16:$BC$23,3,FALSE),\"\")","v":""},{"$f":"IF(K1912<>\"\",VLOOKUP(K1912,$AX$16:$BC$23,5,FALSE),\"\")","v":""},{"$f":"IF(O1912<>\"\",VLOOKUP(K1912,$AX$16:$BC$23,6,FALSE),\"\")","v":""},{"$f":"IF(O1912<>\"\",IF(K1912<>\"Match Existing Cross Slope\",IF(O1912>0,VLOOKUP(K1912,$AX$16:$BC$23,4,TRUE)-O1912,VLOOKUP(K1912,$AX$16:$BC$23,4,TRUE)+O1912),\"\"),\"\")","v":""},{"$f":"IF(S1912>=0,R1912,IF(AND(M1912>15,O1912>$BB$21),\"\",VLOOKUP(K1912,$AX$16:$BC$23,2,FALSE)&\" to \"&(1+ABS(O1912)*100&\"%\")))","v":""},{"$f":"IF(OR(T1912<>R1912,V1912=\"Yes\"),\"Yes\",\"\")","v":""},{"$f":"IF(AND(OR(K1912=\"Ramp Running Slope\",K1912=\"Sidewalk Running Slope\"),S1912>=0,S1912<0.01),\"Yes\",IF(AND(OR(K1912=\"Ramp Cross Slope\",K1912=\"Sidewalk Cross Slope\",K1912=\"Landing/Turning Space\"),S1912>=0,S1912<0.005),\"Yes\",\"\"))","v":""},null,null,null,null,"","","","",null,null,null,null,null,null,null,null,null,null,null,null,null,null,null,null,null,null,null,null,null,null,null,null,null,null,null,null,null,null,null,"No","","","",3950]
[null,null,null,null,null,null,"","",null,null,null,"",null,"","","","","","","","","",null,null,null,null,"","","","",null,null,null,null,null,null,null,null,null,null,null,null,null,null,null,null,null,null,null,null,null,null,null,null,null,null,null,null,null,null,null,"No","","","",3950]
[null,null,null,null,null,null,"","",null,null,null,"",null,"","","","","","","","","",null,null,null,null,"","","","",null,null,null,null,null,null,null,null,null,null,null,null,null,null,null,null,null,null,null,null,null,null,null,null,null,null,null,null,null,null,null,"No","","","",3950]
[null,null,null,null,null,null,"","",null,null,null,"",null,"","","","","","","","","",null,null,null,null,"","","","",null,null,null,null,null,null,null,null,null,null,null,null,null,null,null,null,null,null,null,null,null,null,null,null,null,null,null,null,null,null,null,"No","","","",3950]
[null,null,null,null,null,null,"","",null,null,null,"",null,"","","","","","","","","",null,null,null,null,"","","","",null,null,null,null,null,null,null,null,null,null,null,null,null,null,null,null,null,null,null,null,null,null,null,null,null,null,null,null,null,null,null,"No","","","",3950]
[null,null,null,null,null,null,"","",null,null,null,"",null,"","","","","","","","","",null,null,null,null,"","","","",null,null,null,null,null,null,null,null,null,null,null,null,null,null,null,null,null,null,null,null,null,null,null,null,null,null,null,null,null,null,null,"No","","","",3950]
[null,null,null,null,null,null,"","",null,null,null,"",null,"","","","","","","","","",null,null,null,null,"","","","",null,null,null,null,null,null,null,null,null,null,null,null,null,null,null,null,null,null,null,null,null,null,null,null,null,null,null,null,null,null,null,"No","","","",3950]
[null,null,null,null,null,null,"","",null,null,null,"",null,"","","","","","","","","",null,null,null,null,"","","",""]
[null,null,null,null,null,null,"","",null,null,null,"",null,"","","","","","","","","",null,null,null,null,"","","",""]
[null,null,null,null,null,null,"","",null,null,null,"",null,"","","","","","","","","",null,null,null,null,"","","",""]
[null,null,null,null,null,null,"","",null,null,null,"",null,"","","","","","","","","",null,null,null,null,"","","",""]
[null,null,null,null,null,null,"","",null,null,null,"",null,"","","","","","","","","",null,null,null,null,"","","",""]
[null,null,null,null,null,null,"","",null,null,null,"",null,"","","","","","","","","",null,null,null,null,"","","",""]
[null,null,null,null,null,null,"","",null,null,null,"",null,"","","","","","","","","",null,null,null,null,"","","",""]
[null,null,null,null,null,null,"","",null,null,null,"",null,"","","","","","","","","",null,null,null,null,"","","",""]
[null,null,null,null,null,null,"","",null,null,null,"",null,"","","","","","","","","",null,null,null,null,"","","",""]
[null,null,null,null,null,null,"","",null,null,null,"",null,"","","","","","","","","",null,null,null,null,"","","",""]
[null,null,null,null,null,null,"","",null,null,null,"",null,"","","","","","","","","",null,null,null,null,"","","",""]
[null,null,null,null,null,null,"","",null,null,null,"",null,"","","","","","","","","",null,null,null,null,"","","",""]
[null,null,null,null,null,null,"","",null,null,null,"",null,"","","","","","","","","",null,null,null,null,"","","",""]
[null,null,null,null,null,null,"","",null,null,null,"",null,"","","","","","","","","",null,null,null,null,"","","",""]
[null,null,null,null,null,null,"","",null,null,null,"",null,"","","","","","","","","",null,null,null,null,"","","",""]
[null,null,null,null,null,null,"","",null,null,null,"",null,"","","","","","","","","",null,null,null,null,"","","",""]
[null,null,null,null,null,null,"","",null,null,null,"",null,"","","","","","","","","",null,null,null,null,"","","",""]
[null,null,null,null,null,null,"","",null,null,null,"",null,"","","","","","","","","",null,null,null,null,"","","",""]
[null,null,null,null,null,null,"","",null,null,null,"",null,"","","","","","","","","",null,null,null,null,"","","",""]
[null,null,null,null,null,null,"","",null,null,null,"",null,"","","","","","","","","",null,null,null,null,"","","",""]
[null,null,null,null,null,null,"","",null,null,null,"",null,"","","","","","","","","",null,null,null,null,"","","",""]
[null,null,null,null,null,null,"","",null,null,null,"",null,"","","","","","","","","",null,null,null,null,"","","",""]
[null,null,null,null,null,null,"","",null,null,null,"",null,"","","","","","","","","",null,null,null,null,"","","",""]
[null,null,null,null,null,null,"","",null,null,null,"",null,"","","","","","","","","",null,null,null,null,"","","",""]
[null,null,null,null,null,null,"","",null,null,null,"",null,"","","","","","","","","",null,null,null,null,"","","",""]
[null,null,null,null,null,null,"","",null,null,null,"",null,"","","","","","","","","",null,null,null,null,"","","",""]
[null,null,null,null,null,null,"","",null,null,null,"",null,"","","","","","","","","",null,null,null,null,"","","",""]
[null,null,null,null,null,null,"","",null,null,null,"",null,"","","","","","","","","",null,null,null,null,"","","",""]
[null,null,null,null,null,null,"","",null,null,null,"",null,"","","","","","","","","",null,null,null,null,"","","",""]
[null,null,null,null,null,null,"","",null,null,null,"",null,"","","","","","","","","",null,null,null,null,"","","",""]
[null,null,null,null,null,null,"","",null,null,null,"",null,"","","","","","","","","",null,null,null,null,"","","",""]
[null,null,null,null,null,null,"","",null,null,null,"",null,"","","","","","","","","",null,null,null,null,"","","",""]
[null,null,null,null,null,null,"","",null,null,null,"",null,"","","","","","","","","",null,null,null,null,"","","",""]
[null,null,null,null,null,null,"","",null,null,null,"",null,"","","","","","","","","",null,null,null,null,"","","",""]
[null,null,null,null,null,null,"","",null,null,null,"",null,"","","","","","","","","",null,null,null,null,"","","",""]
[null,null,null,null,null,null,"","",null,null,null,"",null,"","","","","","","","","",null,null,null,null,"","","",""]
[null,null,null,null,null,null,"","",null,null,null,"",null,"","","","","","","","","",null,null,null,null,"","","",""]
[null,null,null,null,null,null,"","",null,null,null,"",null,"","","","","","","","","",null,null,null,null,"","","",""]
[null,null,null,null,null,null,"","",null,null,null,"",null,"","","","","","","","","",null,null,null,null,"","","",""]
[null,null,null,null,null,null,"","",null,null,null,"",null,"","","","","","","","","",null,null,null,null,"","","",""]
[null,null,null,null,null,null,"","",null,null,null,"",null,"","","","","","","","","",null,null,null,null,"","","",""]
[null,null,null,null,null,null,"","",null,null,null,"",null,"","","","","","","","","",null,null,null,null,"","","",""]
[null,null,null,null,null,null,"","",null,null,null,"",null,"","","","","","","","","",null,null,null,null,"","","",""]
[null,null,null,null,null,null,"","",null,null,null,"",null,"","","","","","","","","",null,null,null,null,"","","",""]
[null,null,null,null,null,null,"","",null,null,null,"",null,"","","","","","","","","",null,null,null,null,"","","",""]
[null,null,null,null,null,null,"","",null,null,null,"",null,"","","","","","","","","",null,null,null,null,"","","",""]
[null,null,null,null,null,null,"","",null,null,null,"",null,"","","","","","","","","",null,null,null,null,"","","",""]
[null,null,null,null,null,null,"","",null,null,null,"",null,"","","","","","","","","",null,null,null,null,"","","",""]
[null,null,null,null,null,null,"","",null,null,null,"",null,"","","","","","","","","",null,null,null,null,"","","",""]
[null,null,null,null,null,null,"","",null,null,null,"",null,"","","","","","","","","",null,null,null,null,"","","",""]
[null,null,null,null,null,null,"","",null,null,null,"",null,"","","","","","","","","",null,null,null,null,"","","",""]
[null,null,null,null,null,null,"","",null,null,null,"",null,"","","","","","","","","",null,null,null,null,"","","",""]
[null,null,null,null,null,null,"","",null,null,null,"",null,"","","","","","","","","",null,null,null,null,"","","",""]
[null,null,null,null,null,null,"","",null,null,null,"",null,"","","","","","","","","",null,null,null,null,"","","",""]
[null,null,null,null,null,null,"","",null,null,null,"",null,"","","","","","","","","",null,null,null,null,"","","",""]
[null,null,null,null,null,null,"","",null,null,null,"",null,"","","","","","","","","",null,null,null,null,"","","",""]
[null,null,null,null,null,null,"","",null,null,null,"",null,"","","","","","","","","",null,null,null,null,"","","",""]
[null,null,null,null,null,null,"","",null,null,null,"",null,"","","","","","","","","",null,null,null,null,"","","",""]
[null,null,null,null,null,null,"","",null,null,null,"",null,"","","","","","","","","",null,null,null,null,"","","",""]
[null,null,null,null,null,null,"","",null,null,null,"",null,"","","","","","","","","",null,null,null,null,"","","",""]
[null,null,null,null,null,null,"","",null,null,null,"",null,"","","","","","","","","",null,null,null,null,"","","",""]
[null,null,null,null,null,null,"","",null,null,null,"",null,"","","","","","","","","",null,null,null,null,"","","",""]
[null,null,null,null,null,null,"","",null,null,null,"",null,"","","","","","","","","",null,null,null,null,"","","",""]
[null,null,null,null,null,null,"","",null,null,null,"",null,"","","","","","","","","",null,null,null,null,"","","",""]
[null,null,null,null,null,null,"","",null,null,null,"",null,"","","","","","","","","",null,null,null,null,"","","",""]
[null,null,null,null,null,null,"","",null,null,null,"",null,"","","","","","","","","",null,null,null,null,"","","",""]
[null,null,null,null,null,null,"","",null,null,null,"",null,"","","","","","","","","",null,null,null,null,"","","",""]
[null,null,null,null,null,null,"","",null,null,null,"",null,"","","","","","","","","",null,null,null,null,"","","",""]
[null,null,null,null,null,null,"","",null,null,null,"",null,"","","","","","","","","",null,null,null,null,"","","",""]
[null,null,null,null,null,null,"","",null,null,null,"",null,"","","","","","","","","",null,null,null,null,"","","",""]
[null,null,null,null,null,null,"","",null,null,null,"",null,"","","","","","","","","",null,null,null,null,"","","",""]
[null,null,null,null,null,null,"","",null,null,null,"",null,"","","","","","","","","",null,null,null,null,"","","",""]
[null,null,null,null,null,null,"","",null,null,null,"",null,"","","","","","","","","",null,null,null,null,"","","",""]
[null,null,null,null,null,null,"","",null,null,null,"",null,"","","","","","","","","",null,null,null,null,"","","",""]
[null,null,null,null,null,null,"","",null,null,null,"",null,"","","","","","","","","",null,null,null,null,"","","",""]
[null,null,null,null,null,null,"","",null,null,null,"",null,"","","","","","","","","",null,null,null,null,"","","",""]
[null,null,null,null,null,null,"","",null,null,null,"",null,"","","","","","","","","",null,null,null,null,"","","",""]
[null,null,null,null,null,null,"","",null,null,null,"",null,"","","","","","","","","",null,null,null,null,"","","",""]
[null,null,null,null,null,null,"","",null,null,null,"",null,"","","","","","","","","",null,null,null,null,"","","",""]
[null,null,null,null,null,null,"","",null,null,null,"",null,"","","","","","","","","",null,null,null,null,"","","",""]
[null,null,null,null,null,null,"","",null,null,null,"",null,"","","","","","","","","",null,null,null,null,"","","",""]
[null,null,null,null,null,null,"","",null,null,null,"",null,"","","","","","","","","",null,null,null,null,"","","",""]
[null,null,null,null,null,null,"","",null,null,null,"",null,"","","","","","","","","",null,null,null,null,"","","",""]
[null,null,null,null,null,null,"","",null,null,null,"",null,"","","","","","","","","",null,null,null,null,"","","",""]
[null,null,null,null,null,null,"","",null,null,null,"",null,"","","","","","","","","",null,null,null,null,"","","",""]
[null,null,null,null,null,null,"","",null,null,null,"",null,"","","","","","","","","",null,null,null,null,"","","",""]
[null,null,null,null,null,null,"","",null,null,null,"",null,"","","","","","","","","",null,null,null,null,"","","",""]
[null,null,null,null,null,null,"","",null,null,null,"",null,"","","","","","","","","",null,null,null,null,"","","",""]
[null,null,null,null,null,null,"","",null,null,null,"",null,"","","","","","","","","",null,null,null,null,"","","",""]
[null,null,null,null,null,null,"","",null,null,null,"",null,"","","","","","","","","",null,null,null,null,"","","",""]
[null,null,null,null,null,null,"","",null,null,null,"",null,"","","","","","","","","",null,null,null,null,"","","",""]
[null,null,null,null,null,null,"","",null,null,null,"",null,"","","","","","","","","",null,null,null,null,"","","",""]
[null,null,null,null,null,null,"","",null,null,null,"",null,"","","","","","","","","",null,null,null,null,"","","",""]
[null,null,null,null,null,null,"","",null,null,null,"",null,"","","","","","","","","",null,null,null,null,"","","",""]
[null,null,null,null,null,null,"","",null,null,null,"",null,"","","","","","","","","",null,null,null,null,"","","",""]
[null,null,null,null,null,null,null,null,null,null,null,"",null,"","",null,null,"","","","","",null,null,null,null,"","","",""]
[null,null,null,null,null,null,null,null,null,null,null,"",null,"","",null,null,"","","","","",null,null,null,null,"","","",""]
[null,null,null,null,null,null,null,null,null,null,null,"",null,"","",null,null,"","","","","",null,null,null,null,"","","",""]
[null,null,null,null,null,null,null,null,null,null,null,"",null,"","",null,null,"","","","","",null,null,null,null,"","","",""]
[null,null,null,null,null,null,null,null,null,null,null,"",null,"","",null,null,"","","","","",null,null,null,null,"","","",""]
[null,null,null,null,null,null,null,null,null,null,null,"",null,"","",null,null,"","","","","",null,null,null,null,"","","",""]
[null,null,null,null,null,null,null,null,null,null,null,"",null,"","",null,null,"","","","","",null,null,null,null,"","","",""]
[null,null,null,null,null,null,null,null,null,null,null,"",null,"","",null,null,"","","","","",null,null,null,null,"","","",""]
[null,null,null,null,null,null,null,null,null,null,null,"",null,"","",null,null,"","","","","",null,null,null,null,{"$f":"IF(C3100<>\"\",C3100,\"\")","v":""},"","",""]
[null,null,null,null,null,null,null,null,null,null,null,"",null,"","",null,null,"","","","","",null,null,null,null,"","","",""]
[null,null,null,null,null,null,null,null,null,null,null,"",null,"","",null,null,"","","","","",null,null,null,null,"","","",""]
[null,null,null,null,null,null,null,null,null,null,null,"",null,"","",null,null,"","","","","",null,null,null,null,"","","",""]
[null,null,null,null,null,null,null,null,null,null,null,"",null,"","",null,null,"","","","","",null,null,null,null,"","","",""]
[null,null,null,null,null,null,null,null,null,null,null,"",null,"","",null,null,"","","","","",null,null,null,null,"","","",""]
[null,null,null,null,null,null,null,null,null,null,null,"",null,"","",null,null,"","","","","",null,null,null,null,"","","",""]
[null,null,null,null,null,null,null,null,null,null,null,"",null,"","",null,null,"","","","","",null,null,null,null,"","","",""]
[null,null,null,null,null,null,null,null,null,null,null,"",null,"","",null,null,"","","","","",null,null,null,null,"","","",""]
[null,null,null,null,null,null,null,null,null,null,null,"",null,"","",null,null,"","","","","",null,null,null,null,"","","",""]
[null,null,null,null,null,null,null,null,null,null,null,"",null,"","",null,null,"","","","","",null,null,null,null,"","","",""]
[null,null,null,null,null,null,null,null,null,null,null,"",null,"","",null,null,"","","","","",null,null,null,null,"","","",""]
[null,null,null,null,null,null,null,null,null,null,null,"",null,"","",null,null,"","","","","",null,null,null,null,"","","",""]
[null,null,null,null,null,null,null,null,null,null,null,"",null,"","",null,null,"","","","","",null,null,null,null,"","","",""]
[null,null,null,null,null,null,null,null,null,null,null,"",null,"","",null,null,"","","","","",null,null,null,null,"","","",""]
[null,null,null,null,null,null,null,null,null,null,null,"",null,"","",null,null,"","","","","",null,null,null,null,"","","",""]
[null,null,null,null,null,null,null,null,null,null,null,"",null,"","",null,null,"","","","","",null,null,null,null,"","","",""]
[null,null,null,null,null,null,null,null,null,null,null,"",null,"","",null,null,"","","","","",null,null,null,null,"","","",""]
[null,null,null,null,null,null,null,null,null,null,null,"",null,"","",null,null,"","","","","",null,null,null,null,"","","",{"$f":"IF(F3291<>\"\",F3291,\"\")","v":""}]
[null,null,null,null,null,null,null,null,null,null,null,"",null,"","",null,null,"","","","","",null,null,null,null,"","","",""]
[null,null,null,null,null,null,null,null,null,null,null,"",null,"","",null,null,"","","","","",null,null,null,null,"","","",""]
[null,null,null,null,null,null,null,null,null,null,null,"",null,"","",null,null,"","","","","",null,null,null,null,"","","",""]
[null,null,null,null,null,null,null,null,null,null,null,"",null,"","",null,null,"","","","","",null,null,null,null,"","","",""]
[null,null,null,null,null,null,null,null,null,null,null,"",null,"","",null,null,"","","","","",null,null,null,null,"","","",""]
[null,null,null,null,null,null,null,null,null,null,null,"",null,"","",null,null,"","","","","",null,null,null,null,"","","",""]
[null,null,null,null,null,null,null,null,null,null,null,"",null,"","",null,null,"","","","","",null,null,null,null,"","","",""]
[null,null,null,null,null,null,null,null,null,null,null,"",null,"","",null,null,"","","","","",null,null,null,null,"","","",""]
[null,null,null,null,null,null,null,null,null,null,null,"",null,"","",null,null,"","","","","",null,null,null,null,"","","",""]
[null,null,null,null,null,null,null,null,null,null,null,"",null,"","",null,null,"","","","","",null,null,null,null,"","","",""]
[null,null,null,null,null,null,null,null,null,null,null,"",null,"","",null,null,"","","","","",null,null,null,null,"","","",""]
[null,null,null,null,null,null,null,null,null,null,null,"",null,"","",null,null,"","","","","",null,null,null,null,"","","",""]
[null,null,null,null,null,null,null,null,null,null,null,"",null,"","",null,null,"","","","","",null,null,null,null,"","","",""]
[null,null,null,null,null,null,null,null,null,null,null,"",null,"","",null,null,"","","","","",null,null,null,null,"","","",""]
[null,null,null,null,null,null,null,null,null,null,null,"",null,"","",null,null,"","","","","",null,null,null,null,"","","",""]
[null,null,null,null,null,null,null,null,null,null,null,"",null,"","",null,null,"","","","","",null,null,null,null,"","","",""]
[null,null,null,null,null,null,null,null,null,null,null,"",null,"","",null,null,"","","","","",null,null,null,null,"","","",""]
[null,null,null,null,null,null,null,null,null,null,null,"",null,"","",null,null,"","","","","",null,null,null,null,"","","",""]
[null,null,null,null,null,null,null,null,null,null,null,"",null,"","",null,null,"","","","","",null,null,null,null,"","","",""]
[null,null,null,null,null,null,null,null,null,null,null,"",null,"","",null,null,"","","","","",null,null,null,null,"","","",""]
[null,null,null,null,null,null,null,null,null,null,null,"",null,"","",null,null,"","","","","",null,null,null,null,"","","",""]
[null,null,null,null,null,null,null,null,null,null,null,"",null,"","",null,null,"","","","","",null,null,null,null,"","","",""]
[null,null,null,null,null,null,null,null,null,null,null,"",null,"","",null,null,"","","","","",null,null,null,null,"","","",""]
[null,null,null,null,null,null,null,null,null,null,null,"",null,"","",null,null,"","","","","",null,null,null,null,"","","",""]
[null,null,null,null,null,null,null,null,null,null,null,"",null,"","",null,null,"","","","","",null,null,null,null,"","","",""]
[null,null,null,null,null,null,null,null,null,null,null,"",null,"","",null,null,"","","","","",null,null,null,null,"","","",""]
[null,null,null,null,null,null,null,null,null,null,null,"",null,"","",null,null,"","","","","",null,null,null,null,"","","",""]
[null,null,null,null,null,null,null,null,null,null,null,"",null,"","",null,null,"","","","","",null,null,null,null,"","","",""]
[null,null,null,null,null,null,null,null,null,null,null,"",null,"","",null,null,"","","","","",null,null,null,null,"","","",""]
[null,null,null,null,null,null,null,null,null,null,null,"",null,"","",null,null,"","","","","",null,null,null,null,"","","",""]
[null,null,null,null,null,null,null,null,null,null,null,"",null,"","",null,null,"","","","","",null,null,null,null,"","","",""]
[null,null,null,null,null,null,null,null,null,null,null,"",null,"","",null,null,"","","","","",null,null,null,null,"","","",""]
[null,null,null,null,null,null,null,null,null,null,null,"",null,"","",null,null,"","","","","",null,null,null,null,"","","",""]
[null,null,null,null,null,null,null,null,null,null,null,"",null,"","",null,null,"","","","","",null,null,null,null,"","","",""]
[null,null,null,null,null,null,null,null,null,null,null,"",null,"","",null,null,"","","","","",null,null,null,null,"","","",""]
[null,null,null,null,null,null,null,null,null,null,null,"",null,"","",null,null,"","","","","",null,null,null,null,"","","",{"$f":"IF(F3675<>\"\",F3675,\"\")","v":""}]
[null,null,null,null,null,null,null,null,null,null,null,"",null,"","",null,null,"","","","","",null,null,null,null,"","","",""]
[null,null,null,null,null,null,null,null,null,null,null,"",null,"","",null,null,"","","","","",null,null,null,null,"","","",""]
[null,null,null,null,null,null,null,null,null,null,null,"",null,"","",null,null,"","","","","",null,null,null,null,"","","",""]
[null,null,null,null,null,null,null,null,null,null,null,"",null,"","",null,null,"","","","","",null,null,null,null,"","","",""]
[null,null,null,null,null,null,null,null,null,null,null,"",null,"","",null,null,"","","","","",null,null,null,null,"","","",""]
[null,null,null,null,null,null,null,null,null,null,null,"",null,"","",null,null,"","","","","",null,null,null,null,{"$f":"IF(C3740<>\"\",C3740,\"\")","v":""},"","",""]
[null,null,null,null,null,null,null,null,null,null,null,"",null,"","",null,null,"","","","","",null,null,null,null,"","","",""]
[null,null,null,null,null,null,null,null,null,null,null,"",null,"","",null,null,"","","","","",null,null,null,null,"","","",""]
[null,null,null,null,null,null,null,null,null,null,null,"",null,"","",null,null,"","","","","",null,null,null,null,"","","",""]
[null,null,null,null,null,null,null,null,null,null,null,"",null,"","",null,null,"","","","","",null,null,null,null,"","","",""]
[null,null,null,null,null,null,null,null,null,null,null,"",null,"","",null,null,"","","","","",null,null,null,null,"","","",""]
[null,null,null,null,null,null,null,null,null,null,null,"",null,"","",null,null,"","","","","",null,null,null,null,"","","",""]
[null,null,null,null,null,null,null,null,null,null,null,"",null,"","",null,null,"","","","","",null,null,null,null,"","","",""]
[null,null,null,null,null,null,null,null,null,null,null,"",null,"","",null,null,"","","","","",null,null,null,null,"","","",""]
[null,null,null,null,null,null,null,null,null,null,null,"",null,"","",null,null,"","","","","",null,null,null,null,"","","",""]
[null,null,null,null,null,null,null,null,null,null,null,"",null,"","",null,null,"","","","","",null,null,null,null,"","","",""]
[null,null,null,null,null,null,null,null,null,null,null,"",null,"","",null,null,"","","","","",null,null,null,null,"","","",""]
[null,null,null,null,null,null,null,null,null,null,null,"",null,"","",null,null,"","","","","",null,null,null,null,"","","",""]
[null,null,null,null,null,null,null,null,null,null,null,"",null,"","",null,null,"","","","","",null,null,null,null,"","","",""]
[null,null,null,null,null,null,null,null,null,null,null,"",null,"","",null,null,"","","","","",null,null,null,null,"","","",""]
[null,null,null,null,null,null,null,null,null,null,null,"",null,"","",null,null,"","","","","",null,null,null,null,"","","",""]
[null,null,null,null,null,null,null,null,null,null,null,"",null,"","",null,null,"","","","","",null,null,null,null,"","","",""]
[null,null,null,null,null,null,null,null,null,null,null,"",null,"","",null,null,"","","","","",null,null,null,null,"","","",""]
[null,null,null,null,null,null,null,null,null,null,null,"",null,"","",null,null,"","","","","",null,null,null,null,"","","",""]
[null,null,null,null,null,null,null,null,null,null,null,"",null,"","",null,null,"","","","","",null,null,null,null,"","","",""]
[null,null,null,null,null,null,null,null,null,null,null,"",null,"","",null,null,"","","","","",null,null,null,null,"","","",""]
[null,null,null,null,null,null,null,null,null,null,null,"",null,"","",null,null,"","","","","",null,null,null,null,"","","",""]
[null,null,null,null,null,null,null,null,null,null,null,"",null,"","",null,null,"","","","","",null,null,null,null,"","","",""]
[null,null,null,null,null,null,null,null,null,null,null,"",null,"","",null,null,"","","","","",null,null,null,null,"","","",""]
[null,null,null,null,null,null,null,null,null,null,null,"",null,"","",null,null,"","","","","",null,null,null,null,"","","",""]
[null,null,null,null,null,null,null,null,null,null,null,"",null,"","",null,null,"","","","","",null,null,null,null,"","","",""]
[null,null,null,null,null,null,null,null,null,null,null,"",null,"","",null,null,"","","","","",null,null,null,null,"","","",""]
[null,null,null,null,null,null,null,null,null,null,null,"",null,"","",null,null,"","","","","",null,null,null,null,"","","",""]
[null,null,null,null,null,null,null,null,null,null,null,"",null,"","",null,null,"","","","","",null,null,null,null,"","","",""]
[null,null,null,null,null,null,null,null,null,null,null,"",null,"","",null,null,"","","","","",null,null,null,null,"","","",""]
[null,null,null,null,null,null,null,null,null,null,null,"",null,"","",null,null,"","","","","",null,null,null,null,"","","",{"$f":"IF(F4059<>\"\",F4059,\"\")","v":""}]
[null,null,null,null,null,null,null,null,null,null,null,"",null,"","",null,null,"","","","","",null,null,null,null,"","","",""]
[null,null,null,null,null,null,null,null,null,null,null,"",null,"","",null,null,"","","","","",null,null,null,null,"","","",""]
[null,null,null,null,null,null,null,null,null,null,null,"",null,"","",null,null,"","","","","",null,null,null,null,"","","",""]
[null,null,null,null,null,null,null,null,null,null,null,"",null,"","",null,null,"","","","","",null,null,null,null,"","","",""]
[null,null,null,null,null,null,null,null,null,null,null,"",null,"","",null,null,"","","","","",null,null,null,null,"","","",""]
[null,null,null,null,null,null,null,null,null,null,null,"",null,"","",null,null,"","","","","",null,null,null,null,{"$f":"IF(C4124<>\"\",C4124,\"\")","v":""},"","",""]
[null,null,null,null,null,null,null,null,null,null,null,"",null,"","",null,null,"","","","","",null,null,null,null,"","","",""]
[null,null,null,null,null,null,null,null,null,null,null,"",null,"","",null,null,"","","","","",null,null,null,null,"","","",""]
[null,null,null,null,null,null,null,null,null,null,null,"",null,"","",null,null,"","","","","",null,null,null,null,"","","",""]
[null,null,null,null,null,null,null,null,null,null,null,"",null,"","",null,null,"","","","","",null,null,null,null,"","","",""]
[null,null,null,null,null,null,null,null,null,null,null,"",null,"","",null,null,"","","","","",null,null,null,null,"","","",""]
[null,null,null,null,null,null,null,null,null,null,null,"",null,"","",null,null,"","","","","",null,null,null,null,"","","",""]
[null,null,null,null,null,null,null,null,null,null,null,"",null,"","",null,null,"","","","","",null,null,null,null,"","","",""]
[null,null,null,null,null,null,null,null,null,null,null,"",null,"","",null,null,"","","","","",null,null,null,null,"","","",""]
[null,null,null,null,null,null,null,null,null,null,null,"",null,"","",null,null,"","","","","",null,null,null,null,"","","",""]
[null,null,null,null,null,null,null,null,null,null,null,"",null,"","",null,null,"","","","","",null,null,null,null,"","","",""]
[null,null,null,null,null,null,null,null,null,null,null,"",null,"","",null,null,"","","","","",null,null,null,null,"","","",""]
[null,null,null,null,null,null,null,null,null,null,null,"",null,"","",null,null,"","","","","",null,null,null,null,"","","",""]
[null,null,null,null,null,null,null,null,null,null,null,"",null,"","",null,null,"","","","","",null,null,null,null,"","","",""]
[null,null,null,null,null,null,null,null,null,null,null,"",null,"","",null,null,"","","","","",null,null,null,null,"","","",""]
[null,null,null,null,null,null,null,null,null,null,null,"",null,"","",null,null,"","","","","",null,null,null,null,"","","",""]
[null,null,null,null,null,null,null,null,null,null,null,"",null,"","",null,null,"","","","","",null,null,null,null,"","","",""]
[null,null,null,null,null,null,null,null,null,null,null,"",null,"","",null,null,"","","","","",null,null,null,null,"","","",""]
[null,null,null,null,null,null,null,null,null,null,null,"",null,"","",null,null,"","","","","",null,null,null,null,"","","",""]
[null,null,null,null,null,null,null,null,null,null,null,"",null,"","",null,null,"","","","","",null,null,null,null,"","","",""]
[null,null,null,null,null,null,null,null,null,null,null,"",null,"","",null,null,"","","","","",null,null,null,null,"","","",""]
[null,null,null,null,null,null,null,null,null,null,null,"",null,"","",null,null,"","","","","",null,null,null,null,"","","",""]
[null,null,null,null,null,null,null,null,null,null,null,"",null,"","",null,null,"","","","","",null,null,null,null,"","","",""]
[null,null,null,null,null,null,null,null,null,null,null,"",null,"","",null,null,"","","","","",null,null,null,null,{"$f":"IF(C4380<>\"\",C4380,\"\")","v":""},"","",""]
[null,null,null,null,null,null,null,null,null,null,null,"",null,"","",null,null,"","","","","",null,null,null,null,"","","",""]
[null,null,null,null,null,null,null,null,null,null,null,"",null,"","",null,null,"","","","","",null,null,null,null,"","","",""]
[null,null,null,null,null,null,null,null,null,null,null,"",null,"","",null,null,"","","","","",null,null,null,null,"","","",""]
[null,null,null,null,null,null,null,null,null,null,null,"",null,"","",null,null,"","","","","",null,null,null,null,"","","",""]
[null,null,null,null,null,null,null,null,null,null,null,"",null,"","",null,null,"","","","","",null,null,null,null,"","","",""]
[null,null,null,null,null,null,null,null,null,null,null,"",null,"","",null,null,"","","","","",null,null,null,null,"","","",""]
[null,null,null,null,null,null,null,null,null,null,null,"",null,"","",null,null,"","","","","",null,null,null,null,"","","",""]
[null,null,null,null,null,null,null,null,null,null,null,"",null,"","",null,null,"","","","","",null,null,null,null,"","","",""]
[null,null,null,null,null,null,null,null,null,null,null,"",null,"","",null,null,"","","","","",null,null,null,null,"","","",""]
[null,null,null,null,null,null,null,null,null,null,null,"",null,"","",null,null,"","","","","",null,null,null,null,"","","",""]
[null,null,null,null,null,null,null,null,null,null,null,"",null,"","",null,null,"","","","","",null,null,null,null,"","","",""]
[null,null,null,null,null,null,null,null,null,null,null,"",null,"","",null,null,"","","","","",null,null,null,null,"","","",""]
[null,null,null,null,null,null,null,null,null,null,null,"",null,"","",null,null,"","","","","",null,null,null,null,"","","",""]
[null,null,null,null,null,null,null,null,null,null,null,"",null,"","",null,null,"","","","","",null,null,null,null,"","","",""]
[null,null,null,null,null,null,null,null,null,null,null,"",null,"","",null,null,"","","","","",null,null,null,null,"","","",""]
[null,null,null,null,null,null,null,null,null,null,null,"",null,"","",null,null,"","","","","",null,null,null,null,"","","",""]
[null,null,null,null,null,null,null,null,null,null,null,"",null,"","",null,null,"","","","","",null,null,null,null,"","","",""]
[null,null,null,null,null,null,null,null,null,null,null,"",null,"","",null,null,"","","","","",null,null,null,null,"","","",""]
[null,null,null,null,null,null,null,null,null,null,null,"",null,"","",null,null,"","","","","",null,null,null,null,"","","",""]
[null,null,null,null,null,null,null,null,null,null,null,"",null,"","",null,null,"","","","","",null,null,null,null,"","","",""]
[null,null,null,null,null,null,null,null,null,null,null,"",null,"","",null,null,"","","","","",null,null,null,null,"","","",""]
[null,null,null,null,null,null,null,null,null,null,null,"",null,"","",null,null,"","","","","",null,null,null,null,"","","",""]
[null,null,null,null,null,null,null,null,null,null,null,"",null,"","",null,null,"","","","","",null,null,null,null,"","","",""]
[null,null,null,null,null,null,null,null,null,null,null,"",null,"","",null,null,"","","","","",null,null,null,null,"","","",""]
[null,null,null,null,null,null,null,null,null,null,null,"",null,"","",null,null,"","","","","",null,null,null,null,"","","",""]
[null,null,null,null,null,null,null,null,null,null,null,"",null,"","",null,null,"","","","","",null,null,null,null,"","","",""]
[null,null,null,null,null,null,null,null,null,null,null,"",null,"","",null,null,"","","","","",null,null,null,null,"","","",""]
[null,null,null,null,null,null,null,null,null,null,null,"",null,"","",null,null,"","","","","",null,null,null,null,"","","",""]
[null,null,null,null,null,null,null,null,null,null,null,"",null,"","",null,null,"","","","","",null,null,null,null,"","","",""]
[null,null,null,null,null,null,null,null,null,null,null,"",null,"","",null,null,"","","","","",null,null,null,null,"","","",""]
[null,null,null,null,null,null,null,null,null,null,null,"",null,"","",null,null,"","","","","",null,null,null,null,"","","",""]
[null,null,null,null,null,null,null,null,null,null,null,"",null,"","",null,null,"","","","","",null,null,null,null,"","","",""]
[null,null,null,null,null,null,null,null,null,null,null,"",null,"","",null,null,"","","","","",null,null,null,null,"","","",""]
[null,null,null,null,null,null,null,null,null,null,null,"",null,"","",null,null,"","","","","",null,null,null,null,"","","",""]
[null,null,null,null,null,null,null,null,null,null,null,"",null,"","",null,null,"","","","","",null,null,null,null,"","","",""]
[null,null,null,null,null,null,null,null,null,null,null,"",null,"","",null,null,"","","","","",null,null,null,null,{"$f":"IF(C4764<>\"\",C4764,\"\")","v":""},"","",""]
[null,null,null,null,null,null,null,null,null,null,null,"",null,"","",null,null,"","","","","",null,null,null,null,"","","",""]
[null,null,null,null,null,null,null,null,null,null,null,"",null,"","",null,null,"","","","","",null,null,null,null,"","","",""]
[null,null,null,null,null,null,null,null,null,null,null,"",null,"","",null,null,"","","","","",null,null,null,null,"","","",""]
[null,null,null,null,null,null,null,null,null,null,null,"",null,"","",null,null,"","","","","",null,null,null,null,"","","",""]
[null,null,null,null,null,null,null,null,null,null,null,"",null,"","",null,null,"","","","","",null,null,null,null,"","","",""]
[null,null,null,null,null,null,null,null,null,null,null,"",null,"","",null,null,"","","","","",null,null,null,null,"","","",""]
[null,null,null,null,null,null,null,null,null,null,null,"",null,"","",null,null,"","","","","",null,null,null,null,"","","",""]
[null,null,null,null,null,null,null,null,null,null,null,"",null,"","",null,null,"","","","","",null,null,null,null,"","","",""]
[null,null,null,null,null,null,null,null,null,null,null,"",null,"","",null,null,"","","","","",null,null,null,null,"","","",""]
[null,null,null,null,null,null,null,null,null,null,null,"",null,"","",null,null,"","","","","",null,null,null,null,"","","",""]
[null,null,null,null,null,null,null,null,null,null,null,"",null,"","",null,null,"","","","","",null,null,null,null,"","","",""]
[null,null,null,null,null,null,null,null,null,null,null,"",null,"","",null,null,"","","","","",null,null,null,null,"","","",""]
[null,null,null,null,null,null,null,null,null,null,null,"",null,"","",null,null,"","","","","",null,null,null,null,"","","",""]
[null,null,null,null,null,null,null,null,null,null,null,"",null,"","",null,null,"","","","","",null,null,null,null,"","","",""]
[null,null,null,null,null,null,null,null,null,null,null,"",null,"","",null,null,"","","","","",null,null,null,null,"","","",""]
[null,null,null,null,null,null,null,null,null,null,null,"",null,"","",null,null,"","","","","",null,null,null,null,"","","",""]
[null,null,null,null,null,null,null,null,null,null,null,"",null,"","",null,null,"","","","","",null,null,null,null,"","","",""]
[null,null,null,null,null,null,null,null,null,null,null,"",null,"","",null,null,"","","","","",null,null,null,null,"","","",""]
[null,null,null,null,null,null,null,null,null,null,null,"",null,"","",null,null,"","","","","",null,null,null,null,"","","",""]
[null,null,null,null,null,null,null,null,null,null,null,"",null,"","",null,null,"","","","","",null,null,null,null,"","","",""]
[null,null,null,null,null,null,null,null,null,null,null,"",null,"","",null,null,"","","","","",null,null,null,null,"","","",""]
[null,null,null,null,null,null,null,null,null,null,null,"",null,"","",null,null,"","","","","",null,null,null,null,"","","",""]
[null,null,null,null,null,null,null,null,null,null,null,"",null,"","",null,null,"","","","","",null,null,null,null,"","","",""]
[null,null,null,null,null,null,null,null,null,null,null,"",null,"","",null,null,"","","","","",null,null,null,null,"","","",""]
[null,null,null,null,null,null,null,null,null,null,null,"",null,"","",null,null,"","","","","",null,null,null,null,"","","",""]
[null,null,null,null,null,null,null,null,null,null,null,"",null,"","",null,null,"","","","","",null,null,null,null,"","","",""]
[null,null,null,null,null,null,null,null,null,null,null,"",null,"","",null,null,"","","","","",null,null,null,null,"","","",""]
[null,null,null,null,null,null,null,null,null,null,null,"",null,"","",null,null,"","","","","",null,null,null,null,"","","",""]
[null,null,null,null,null,null,null,null,null,null,null,"",null,"","",null,null,"","","","","",null,null,null,null,"","","",""]
[null,null,null,null,null,null,null,null,null,null,null,"",null,"","",null,null,"","","","","",null,null,null,null,"","","",""]
[null,null,null,null,null,null,null,null,null,null,null,"",null,"","",null,null,"","","","","",null,null,null,null,"","","",""]
[null,null,null,null,null,null,null,null,null,null,null,"",null,"","",null,null,"","","","","",null,null,null,null,"","","",""]
[null,null,null,null,null,null,null,null,null,null,null,"",null,"","",null,null,"","","","","",null,null,null,null,"","","",""]
[null,null,null,null,null,null,null,null,null,null,null,"",null,"","",null,null,"","","","","",null,null,null,null,"","","",""]
[null,null,null,null,null,null,null,null,null,null,null,"",null,"","",null,null,"","","","","",null,null,null,null,"","","",""]
[null,null,null,null,null,null,null,null,null,null,null,"",null,"","",null,null,"","","","","",null,null,null,null,{"$f":"IF(C5148<>\"\",C5148,\"\")","v":""},"","",""]
[null,null,null,null,null,null,null,null,null,null,null,"",null,"","",null,null,"","","","","",null,null,null,null,"","","",""]
[null,null,null,null,null,null,null,null,null,null,null,"",null,"","",null,null,"","","","","",null,null,null,null,"","","",""]
[null,null,null,null,null,null,null,null,null,null,null,"",null,"","",null,null,"","","","","",null,null,null,null,"","","",""]
[null,null,null,null,null,null,null,null,null,null,null,"",null,"","",null,null,"","","","","",null,null,null,null,"","","",""]
[null,null,null,null,null,null,null,null,null,null,null,"",null,"","",null,null,"","","","","",null,null,null,null,"","","",""]
[null,null,null,null,null,null,null,null,null,null,null,"",null,"","",null,null,"","","","","",null,null,null,null,"","","",""]
[null,null,null,null,null,null,null,null,null,null,null,"",null,"","",null,null,"","","","","",null,null,null,null,"","","",""]
[null,null,null,null,null,null,null,null,null,null,null,"",null,"","",null,null,"","","","","",null,null,null,null,"","","",""]
[null,null,null,null,null,null,null,null,null,null,null,"",null,"","",null,null,"","","","","",null,null,null,null,"","","",""]
[null,null,null,null,null,null,null,null,null,null,null,"",null,"","",null,null,"","","","","",null,null,null,null,"","","",""]
[null,null,null,null,null,null,null,null,null,null,null,"",null,"","",null,null,"","","","","",null,null,null,null,"","","",""]
[null,null,null,null,null,null,null,null,null,null,null,"",null,"","",null,null,"","","","","",null,null,null,null,"","","",""]
[null,null,null,null,null,null,null,null,null,null,null,"",null,"","",null,null,"","","","","",null,null,null,null,"","","",""]
[null,null,null,null,null,null,null,null,null,null,null,{"$f":"IF(K5304<>\"\",VLOOKUP(K5304,$BE$16:$BF$23,2,FALSE),\"\")","v":""},null,{"$f":"IF(M5304<>\"\",ROUND((VLOOKUP(J5304,AA$28:AD$2001,4,FALSE)-VLOOKUP(I5304,AA$28:AD$2001,4,FALSE)),2),\"\")","v":""},{"$f":"IF(M5304<>\"\",ROUND((VLOOKUP(J5304,AA$28:AD$2001,4,FALSE)-VLOOKUP(I5304,AA$28:AD$2001,4,FALSE))/M5304,3),\"\")","v":""},null,null,{"$f":"IF(O5304<>\"\",VLOOKUP(K5304,$AX$16:$BC$23,6,FALSE),\"\")","v":""},"",{"$f":"IF(S5304>=0,R5304,IF(AND(M5304>15,O5304>$BB$21),\"\",VLOOKUP(K5304,$AX$16:$BC$23,2,FALSE)&\" to \"&(1+ABS(O5304)*100&\"%\")))","v":""},{"$f":"IF(OR(T5304<>R5304,V5304=\"Yes\"),\"Yes\",\"\")","v":""},{"$f":"IF(AND(OR(K5304=\"Ramp Running Slope\",K5304=\"Sidewalk Running Slope\"),S5304>=0,S5304<0.01),\"Yes\",IF(AND(OR(K5304=\"Ramp Cross Slope\",K5304=\"Sidewalk Cross Slope\",K5304=\"Landing/Turning Space\"),S5304>=0,S5304<0.005),\"Yes\",\"\"))","v":""},null,null,null,null,"","","",""]
[null,null,null,null,null,null,null,null,null,null,null,"",null,"","",null,null,"","","","","",null,null,null,null,"","","",""]
[null,null,null,null,null,null,null,null,null,null,null,"",null,"","",null,null,"","","","","",null,null,null,null,"","","",""]
[null,null,null,null,null,null,null,null,null,null,null,"",null,"","",null,null,"","","","","",null,null,null,null,"","","",""]
[null,null,null,null,null,null,null,null,null,null,null,"",null,"","",null,null,"","","","","",null,null,null,null,"","","",""]
[null,null,null,null,null,null,null,null,null,null,null,"",null,"","",null,null,"","","","","",null,null,null,null,"","","",""]
[null,null,null,null,null,null,null,null,null,null,null,{"$f":"IF(K5368<>\"\",VLOOKUP(K5368,$BE$16:$BF$23,2,FALSE),\"\")","v":""},null,{"$f":"IF(M5368<>\"\",ROUND((VLOOKUP(J5368,AA$28:AD$2001,4,FALSE)-VLOOKUP(I5368,AA$28:AD$2001,4,FALSE)),2),\"\")","v":""},{"$f":"IF(M5368<>\"\",ROUND((VLOOKUP(J5368,AA$28:AD$2001,4,FALSE)-VLOOKUP(I5368,AA$28:AD$2001,4,FALSE))/M5368,3),\"\")","v":""},null,null,{"$f":"IF(O5368<>\"\",VLOOKUP(K5368,$AX$16:$BC$23,6,FALSE),\"\")","v":""},"",{"$f":"IF(S5368>=0,R5368,IF(AND(M5368>15,O5368>$BB$21),\"\",VLOOKUP(K5368,$AX$16:$BC$23,2,FALSE)&\" to \"&(1+ABS(O5368)*100&\"%\")))","v":""},{"$f":"IF(OR(T5368<>R5368,V5368=\"Yes\"),\"Yes\",\"\")","v":""},{"$f":"IF(AND(OR(K5368=\"Ramp Running Slope\",K5368=\"Sidewalk Running Slope\"),S5368>=0,S5368<0.01),\"Yes\",IF(AND(OR(K5368=\"Ramp Cross Slope\",K5368=\"Sidewalk Cross Slope\",K5368=\"Landing/Turning Space\"),S5368>=0,S5368<0.005),\"Yes\",\"\"))","v":""},null,null,null,null,"","","",""]
[null,null,null,null,null,null,null,null,null,null,null,"",null,"","",null,null,"","","","","",null,null,null,null,"","","",""]
[null,null,null,null,null,null,null,null,null,null,null,"",null,"","",null,null,"","","","","",null,null,null,null,"","","",""]
[null,null,null,null,null,null,null,null,null,null,null,"",null,"","",null,null,"","","","","",null,null,null,null,"","","",""]
[null,null,null,null,null,null,null,null,null,null,null,"",null,"","",null,null,"","","","","",null,null,null,null,"","","",""]
[null,null,null,null,null,null,null,null,null,null,null,"",null,"","",null,null,"","","","","",null,null,null,null,"","","",""]
[null,null,null,null,null,null,null,null,null,null,null,"",null,"","",null,null,"","","","","",null,null,null,null,"","","",""]
[null,null,null,null,null,null,null,null,null,null,null,"",null,"","",null,null,"","","","","",null,null,null,null,"","","",""]
[null,null,null,null,null,null,null,null,null,null,null,"",null,"","",null,null,"","","","","",null,null,null,null,"","","",""]
[null,null,null,null,null,null,null,null,null,null,null,"",null,"","",null,null,"","","","","",null,null,null,null,"","","",""]
[null,null,null,null,null,null,null,null,null,null,null,"",null,"","",null,null,"","","","","",null,null,null,null,"","","",""]
[null,null,null,null,null,null,null,null,null,null,null,"",null,"","",null,null,"","","","","",null,null,null,null,"","","",""]
[null,null,null,null,null,null,null,null,null,null,null,"",null,"","",null,null,"","","","","",null,null,null,null,"","","",""]
[null,null,null,null,null,null,null,null,null,null,null,"",null,"","",null,null,"","","","","",null,null,null,null,"","","",""]
[null,null,null,null,null,null,null,null,null,null,null,"",null,"","",null,null,"",{"$f":"IF(O5513<>\"\",IF(K5513<>\"Match Existing Cross Slope\",IF(O5513>0,VLOOKUP(K5513,$AX$16:$BC$23,4,FALSE)-O5513,VLOOKUP(K5513,$AX$16:$BC$23,4,FALSE)+O5513)),\"\")","v":""},"","","",null,null,null,null,"","","",""]
[null,null,null,null,null,null,null,null,null,null,null,"",null,"","",null,null,"","","","","",null,null,null,null,"","","",""]
[null,null,null,null,null,null,null,null,null,null,null,"",null,"","",null,null,"","","","","",null,null,null,null,"","","",""]
[null,null,null,null,null,null,null,null,null,null,null,"",null,"","",null,null,"","","","","",null,null,null,null,"","","",""]
[null,null,null,null,null,null,null,null,null,null,null,"",null,"","",null,null,"","","","","",null,null,null,null,"","","",""]
[null,null,null,null,null,null,null,null,null,null,null,"",null,"","",null,null,"","","","","",null,null,null,null,"","","",""]
[null,null,null,null,null,null,null,null,null,null,null,"",null,"","",null,null,"","","","","",null,null,null,null,"","","",""]
[null,null,null,null,null,null,null,null,null,null,null,"",null,"","",null,null,"","","","","",null,null,null,null,"","","",""]
[null,null,null,null,null,null,null,null,null,null,null,"",null,"","",null,null,"","","","","",null,null,null,null,"","","",""]
[null,null,null,null,null,null,null,null,null,null,null,"",null,"","",null,null,"","","","","",null,null,null,null,"","","",""]
[null,null,null,null,null,null,null,null,null,null,null,"",null,"","",null,null,"","","","","",null,null,null,null,"","","",""]
[null,null,null,null,null,null,null,null,null,null,null,"",null,"","",null,null,"","","","","",null,null,null,null,"","","",""]
[null,null,null,null,null,null,null,null,null,null,null,"",null,"","",null,null,"","","","","",null,null,null,null,"","","",""]
[null,null,null,null,null,null,null,null,null,null,null,"",null,"","",null,null,"","","","","",null,null,null,null,"","","",""]
[null,null,null,null,null,null,null,null,null,null,null,"",null,"","",null,null,"","","","","",null,null,null,null,"","","",""]
[null,null,null,null,null,null,null,null,null,null,null,"",null,"","",null,null,"","","","","",null,null,null,null,"","","",""]
[null,null,null,null,null,null,null,null,null,null,null,{"$f":"IF(K5688<>\"\",VLOOKUP(K5688,$BE$16:$BF$23,2,FALSE),\"\")","v":""},null,{"$f":"IF(M5688<>\"\",ROUND((VLOOKUP(J5688,AA$28:AD$2001,4,FALSE)-VLOOKUP(I5688,AA$28:AD$2001,4,FALSE)),2),\"\")","v":""},{"$f":"IF(M5688<>\"\",ROUND((VLOOKUP(J5688,AA$28:AD$2001,4,FALSE)-VLOOKUP(I5688,AA$28:AD$2001,4,FALSE))/M5688,3),\"\")","v":""},null,null,{"$f":"IF(O5688<>\"\",VLOOKUP(K5688,$AX$16:$BC$23,6,FALSE),\"\")","v":""},"",{"$f":"IF(S5688>=0,R5688,IF(AND(M5688>15,O5688>$BB$21),\"\",VLOOKUP(K5688,$AX$16:$BC$23,2,FALSE)&\" to \"&(1+ABS(O5688)*100&\"%\")))","v":""},{"$f":"IF(OR(T5688<>R5688,V5688=\"Yes\"),\"Yes\",\"\")","v":""},{"$f":"IF(AND(OR(K5688=\"Ramp Running Slope\",K5688=\"Sidewalk Running Slope\"),S5688>=0,S5688<0.01),\"Yes\",IF(AND(OR(K5688=\"Ramp Cross Slope\",K5688=\"Sidewalk Cross Slope\",K5688=\"Landing/Turning Space\"),S5688>=0,S5688<0.005),\"Yes\",\"\"))","v":""},null,null,null,null,"","","",""]
[null,null,null,null,null,null,null,null,null,null,null,"",null,"","",null,null,"","","","","",null,null,null,null,"","","",""]
[null,null,null,null,null,null,null,null,null,null,null,"",null,"","",null,null,"","","","","",null,null,null,null,"","","",""]
[null,null,null,null,null,null,null,null,null,null,null,"",null,"","",null,null,"","","","","",null,null,null,null,"","","",""]
[null,null,null,null,null,null,null,null,null,null,null,"",null,"","",null,null,"","","","","",null,null,null,null,"","","",""]
[null,null,null,null,null,null,null,null,null,null,null,"",null,"","",null,null,"","","","","",null,null,null,null,"","","",""]
[null,null,null,null,null,null,null,null,null,null,null,{"$f":"IF(K5752<>\"\",VLOOKUP(K5752,$BE$16:$BF$23,2,FALSE),\"\")","v":""},null,{"$f":"IF(M5752<>\"\",ROUND((VLOOKUP(J5752,AA$28:AD$2001,4,FALSE)-VLOOKUP(I5752,AA$28:AD$2001,4,FALSE)),2),\"\")","v":""},{"$f":"IF(M5752<>\"\",ROUND((VLOOKUP(J5752,AA$28:AD$2001,4,FALSE)-VLOOKUP(I5752,AA$28:AD$2001,4,FALSE))/M5752,3),\"\")","v":""},null,null,{"$f":"IF(O5752<>\"\",VLOOKUP(K5752,$AX$16:$BC$23,6,FALSE),\"\")","v":""},"",{"$f":"IF(S5752>=0,R5752,IF(AND(M5752>15,O5752>$BB$21),\"\",VLOOKUP(K5752,$AX$16:$BC$23,2,FALSE)&\" to \"&(1+ABS(O5752)*100&\"%\")))","v":""},{"$f":"IF(OR(T5752<>R5752,V5752=\"Yes\"),\"Yes\",\"\")","v":""},{"$f":"IF(AND(OR(K5752=\"Ramp Running Slope\",K5752=\"Sidewalk Running Slope\"),S5752>=0,S5752<0.01),\"Yes\",IF(AND(OR(K5752=\"Ramp Cross Slope\",K5752=\"Sidewalk Cross Slope\",K5752=\"Landing/Turning Space\"),S5752>=0,S5752<0.005),\"Yes\",\"\"))","v":""},null,null,null,null,"","","",""]
[null,null,null,null,null,null,null,null,null,null,null,"",null,"","",null,null,"","","","","",null,null,null,null,"","","",""]
[null,null,null,null,null,null,null,null,null,null,null,"",null,"","",null,null,"","","","","",null,null,null,null,"","","",""]
[null,null,null,null,null,null,null,null,null,null,null,"",null,"","",null,null,"","","","","",null,null,null,null,{"$f":"IF(C5788<>\"\",C5788,\"\")","v":""},"","",""]
[null,null,null,null,null,null,null,null,null,null,null,"",null,"","",null,null,"","","","","",null,null,null,null,"","","",""]
[null,null,null,null,null,null,null,null,null,null,null,"",null,"","",null,null,"","","","","",null,null,null,null,"","","",""]
[null,null,null,null,null,null,null,null,null,null,null,"",null,"","",null,null,"","","","","",null,null,null,null,"","","",""]
[null,null,null,null,null,null,null,null,null,null,null,"",null,"","",null,null,"","","","","",null,null,null,null,"","","",""]
[null,null,null,null,null,null,null,null,null,null,null,"",null,"","",null,null,"","","","","",null,null,null,null,"","","",""]
[null,null,null,null,null,null,null,null,null,null,null,"",null,"","",null,null,"","","","","",null,null,null,null,"","","",""]
[null,null,null,null,null,null,null,null,null,null,null,"",null,"","",null,null,"","","","","",null,null,null,null,"","","",""]
[null,null,null,null,null,null,null,null,null,null,null,"",null,"","",null,null,"","","","","",null,null,null,null,"","","",""]
[null,null,null,null,null,null,null,null,null,null,null,"",null,"","",null,null,"","","","","",null,null,null,null,"","","",""]
[null,null,null,null,null,null,null,null,null,null,null,"",null,"","",null,null,"","","","","",null,null,null,null,"","","",""]
[null,null,null,null,null,null,null,null,null,null,null,"",null,"","",null,null,"","","","","",null,null,null,null,"","","",""]
[null,null,null,null,null,null,null,null,null,null,null,{"$f":"IF(K5880<>\"\",VLOOKUP(K5880,$BE$16:$BF$23,2,FALSE),\"\")","v":""},null,{"$f":"IF(M5880<>\"\",ROUND((VLOOKUP(J5880,AA$28:AD$2001,4,FALSE)-VLOOKUP(I5880,AA$28:AD$2001,4,FALSE)),2),\"\")","v":""},{"$f":"IF(M5880<>\"\",ROUND((VLOOKUP(J5880,AA$28:AD$2001,4,FALSE)-VLOOKUP(I5880,AA$28:AD$2001,4,FALSE))/M5880,3),\"\")","v":""},null,null,{"$f":"IF(O5880<>\"\",VLOOKUP(K5880,$AX$16:$BC$23,6,FALSE),\"\")","v":""},"",{"$f":"IF(S5880>=0,R5880,IF(AND(M5880>15,O5880>$BB$21),\"\",VLOOKUP(K5880,$AX$16:$BC$23,2,FALSE)&\" to \"&(1+ABS(O5880)*100&\"%\")))","v":""},{"$f":"IF(OR(T5880<>R5880,V5880=\"Yes\"),\"Yes\",\"\")","v":""},{"$f":"IF(AND(OR(K5880=\"Ramp Running Slope\",K5880=\"Sidewalk Running Slope\"),S5880>=0,S5880<0.01),\"Yes\",IF(AND(OR(K5880=\"Ramp Cross Slope\",K5880=\"Sidewalk Cross Slope\",K5880=\"Landing/Turning Space\"),S5880>=0,S5880<0.005),\"Yes\",\"\"))","v":""},null,null,null,null,"","","",""]
[null,null,null,null,null,null,null,null,null,null,null,"",null,"","",null,null,"","","","","",null,null,null,null,"","","",""]
[null,null,null,null,null,null,null,null,null,null,null,"",null,"","",null,null,"","","","","",null,null,null,null,"","","",""]
[null,null,null,null,null,null,null,null,null,null,null,"",null,"","",null,null,"","","","","",null,null,null,null,"","","",""]
[null,null,null,null,null,null,null,null,null,null,null,"",null,"","",null,null,"","","","","",null,null,null,null,"","","",""]
[null,null,null,null,null,null,null,null,null,null,null,"",null,"","",null,null,"","","","","",null,null,null,null,"","","",""]
[null,null,null,null,null,null,null,null,null,null,null,"",null,"","",null,null,"","","","","",null,null,null,null,"","","",""]
[null,null,null,null,null,null,null,null,null,null,null,"",null,"","",null,null,"","","","","",null,null,null,null,"","","",""]
[null,null,null,null,null,null,null,null,null,null,null,"",null,"","",null,null,"","","","","",null,null,null,null,"","","",""]
[null,null,null,null,null,null,null,null,null,null,null,"",null,"","",null,null,"","","","","",null,null,null,null,"","","",""]
[null,null,null,null,null,null,null,null,null,null,null,"",null,"","",null,null,"","","","","",null,null,null,null,"","","",""]
[null,null,null,null,null,null,null,null,null,null,null,"",null,"","",null,null,"","","","","",null,null,null,null,"","","",""]
[null,null,null,null,null,null,null,null,null,null,null,"",null,"","",null,null,"","","","","",null,null,null,null,"","","",""]
[null,null,null,null,null,null,null,null,null,null,null,"",null,"","",null,null,"","","","","",null,null,null,null,"","","",""]
[null,null,null,null,null,null,null,null,null,null,null,"",null,"","",null,null,"","","","","",null,null,null,null,"","","",""]
[null,null,null,null,null,null,null,null,null,null,null,"",null,"","",null,null,"","","","","",null,null,null,null,"","","",""]
[null,null,null,null,null,null,null,null,null,null,null,"",null,"","",null,null,"","","","","",null,null,null,null,"","","",""]
[null,null,null,null,null,null,null,null,null,null,null,"",null,"","",null,null,"",{"$f":"IF(O5897<>\"\",IF(K5897<>\"Match Existing Cross Slope\",IF(O5897>0,VLOOKUP(K5897,$AX$16:$BC$23,4,FALSE)-O5897,VLOOKUP(K5897,$AX$16:$BC$23,4,FALSE)+O5897)),\"\")","v":""},"","","",null,null,null,null,"","","",""]
[null,null,null,null,null,null,null,null,null,null,null,"",null,"","",null,null,"","","","","",null,null,null,null,"","","",""]
[null,null,null,null,null,null,null,null,null,null,null,"",null,"","",null,null,"","","","","",null,null,null,null,"","","",""]
[null,null,null,null,null,null,null,null,null,null,null,"",null,"","",null,null,"","","","","",null,null,null,null,"","","",""]
[null,null,null,null,null,null,null,null,null,null,null,"",null,"","",null,null,"","","","","",null,null,null,null,"","","",""]
[null,null,null,null,null,null,null,null,null,null,null,"",null,"","",null,null,"","","","","",null,null,null,null,"","","",""]
[null,null,null,null,null,null,null,null,null,null,null,"",null,"","",null,null,"","","","","",null,null,null,null,"","","",""]
[null,null,null,null,null,null,null,null,null,null,null,"",null,"","",null,null,"","","","","",null,null,null,null,"","","",""]
[null,null,null,null,null,null,null,null,null,null,null,"",null,"","",null,null,"","","","","",null,null,null,null,"","","",""]
[null,null,null,null,null,null,null,null,null,null,null,"",null,"","",null,null,"","","","","",null,null,null,null,"","","",""]
[null,null,null,null,null,null,null,null,null,null,null,"",null,"","",null,null,"","","","","",null,null,null,null,"","","",""]
[null,null,null,null,null,null,null,null,null,null,null,"",null,"","",null,null,"","","","","",null,null,null,null,"","","",""]
[null,null,null,null,null,null,null,null,null,null,null,"",null,"","",null,null,"","","","","",null,null,null,null,"","","",""]
[null,null,null,null,null,null,null,null,null,null,null,"",null,"","",null,null,"","","","","",null,null,null,null,"","","",""]
[null,null,null,null,null,null,null,null,null,null,null,"",null,"","",null,null,"","","","","",null,null,null,null,"","","",""]
[null,null,null,null,null,null,null,null,null,null,null,"",null,"","",null,null,"","","","","",null,null,null,null,"","","",""]
[null,null,null,null,null,null,null,null,null,null,null,"",null,"","",null,null,"","","","","",null,null,null,null,"","","",""]
[null,null,null,null,null,null,null,null,null,null,null,"",null,"","",null,null,"","","","","",null,null,null,null,"","","",""]
[null,null,null,null,null,null,null,null,null,null,null,"",null,"","",null,null,"","","","","",null,null,null,null,"","","",""]
[null,null,null,null,null,null,null,null,null,null,null,"",null,"","",null,null,"","","","","",null,null,null,null,{"$f":"IF(C5916<>\"\",C5916,\"\")","v":""},"","",""]
[null,null,null,null,null,null,null,null,null,null,null,"",null,"","",null,null,"","","","","",null,null,null,null,"","","",""]
[null,null,null,null,null,null,null,null,null,null,null,"",null,"","",null,null,"","","","","",null,null,null,null,"","","",""]
[null,null,null,null,null,null,null,null,null,null,null,"",null,"","",null,null,"","","","","",null,null,null,null,"","","",""]
[null,null,null,null,null,null,null,null,null,null,null,"",null,"","",null,null,"","","","","",null,null,null,null,"","","",""]
[null,null,null,null,null,null,null,null,null,null,null,"",null,"","",null,null,"","","","","",null,null,null,null,"","","",""]
[null,null,null,null,null,null,null,null,null,null,null,"",null,"","",null,null,"","","","","",null,null,null,null,"","","",""]
[null,null,null,null,null,null,null,null,null,null,null,"",null,"","",null,null,"","","","","",null,null,null,null,"","","",""]
[null,null,null,null,null,null,null,null,null,null,null,"",null,"","",null,null,"","","","","",null,null,null,null,"","","",""]
[null,null,null,null,null,null,null,null,null,null,null,"",null,"","",null,null,"","","","","",null,null,null,null,"","","",""]
[null,null,null,null,null,null,null,null,null,null,null,"",null,"","",null,null,"","","","","",null,null,null,null,"","","",""]
[null,null,null,null,null,null,null,null,null,null,null,"",null,"","",null,null,"","","","","",null,null,null,null,"","","",""]
[null,null,null,null,null,null,null,null,null,null,null,"",null,"","",null,null,"","","","","",null,null,null,null,"","","",""]
[null,null,null,null,null,null,null,null,null,null,null,"",null,"","",null,null,"","","","","",null,null,null,null,"","","",""]
[null,null,null,null,null,null,null,null,null,null,null,"",null,"","",null,null,"","","","","",null,null,null,null,"","","",""]
[null,null,null,null,null,null,null,null,null,null,null,"",null,"","",null,null,"","","","","",null,null,null,null,"","","",""]
[null,null,null,null,null,null,null,null,null,null,null,"",null,"","",null,null,"","","","","",null,null,null,null,"","","",""]
[null,null,null,null,null,null,null,null,null,null,null,"",null,"","",null,null,"","","","","",null,null,null,null,"","","",""]
[null,null,null,null,null,null,null,null,null,null,null,"",null,"","",null,null,"","","","","",null,null,null,null,"","","",""]
[null,null,null,null,null,null,null,null,null,null,null,"",null,"","",null,null,"","","","","",null,null,null,null,"","","",""]
[null,null,null,null,null,null,null,null,null,null,null,"",null,"","",null,null,"","","","","",null,null,null,null,"","","",""]
[null,null,null,null,null,null,null,null,null,null,null,"",null,"","",null,null,"","","","","",null,null,null,null,"","","",""]
[null,null,null,null,null,null,null,null,null,null,null,"",null,"","",null,null,"","","","","",null,null,null,null,"","","",""]
[null,null,null,null,null,null,null,null,null,null,null,"",null,"","",null,null,"","","","","",null,null,null,null,"","","",""]
[null,null,null,null,null,null,null,null,null,null,null,"",null,"","",null,null,"","","","","",null,null,null,null,"","","",""]
[null,null,null,null,null,null,null,null,null,null,null,"",null,"","",null,null,"","","","","",null,null,null,null,"","","",""]
[null,null,null,null,null,null,null,null,null,null,null,"",null,"","",null,null,"","","","","",null,null,null,null,"","","",""]
[null,null,null,null,null,null,null,null,null,null,null,"",null,"","",null,null,"","","","","",null,null,null,null,"","","",""]
[null,null,null,null,null,null,null,null,null,null,null,{"$f":"IF(K5944<>\"\",VLOOKUP(K5944,$BE$16:$BF$23,2,FALSE),\"\")","v":""},null,{"$f":"IF(M5944<>\"\",ROUND((VLOOKUP(J5944,AA$28:AD$2001,4,FALSE)-VLOOKUP(I5944,AA$28:AD$2001,4,FALSE)),2),\"\")","v":""},{"$f":"IF(M5944<>\"\",ROUND((VLOOKUP(J5944,AA$28:AD$2001,4,FALSE)-VLOOKUP(I5944,AA$28:AD$2001,4,FALSE))/M5944,3),\"\")","v":""},null,null,{"$f":"IF(O5944<>\"\",VLOOKUP(K5944,$AX$16:$BC$23,6,FALSE),\"\")","v":""},"",{"$f":"IF(S5944>=0,R5944,IF(AND(M5944>15,O5944>$BB$21),\"\",VLOOKUP(K5944,$AX$16:$BC$23,2,FALSE)&\" to \"&(1+ABS(O5944)*100&\"%\")))","v":""},{"$f":"IF(OR(T5944<>R5944,V5944=\"Yes\"),\"Yes\",\"\")","v":""},{"$f":"IF(AND(OR(K5944=\"Ramp Running Slope\",K5944=\"Sidewalk Running Slope\"),S5944>=0,S5944<0.01),\"Yes\",IF(AND(OR(K5944=\"Ramp Cross Slope\",K5944=\"Sidewalk Cross Slope\",K5944=\"Landing/Turning Space\"),S5944>=0,S5944<0.005),\"Yes\",\"\"))","v":""},null,null,null,null,"","","",""]
[null,null,null,null,null,null,null,null,null,null,null,"",null,"","",null,null,"","","","","",null,null,null,null,"","","",""]
[null,null,null,null,null,null,null,null,null,null,null,"",null,"","",null,null,"","","","","",null,null,null,null,"","","",""]
[null,null,null,null,null,null,null,null,null,null,null,"",null,"","",null,null,"","","","","",null,null,null,null,"","","",""]
[null,null,null,null,null,null,null,null,null,null,null,"",null,"","",null,null,"","","","","",null,null,null,null,"","","",""]
[null,null,null,null,null,null,null,null,null,null,null,"",null,"","",null,null,"","","","","",null,null,null,null,"","","",""]
[null,null,null,null,null,null,null,null,null,null,null,"",null,"","",null,null,"","","","","",null,null,null,null,"","","",""]
[null,null,null,null,null,null,null,null,null,null,null,"",null,"","",null,null,"","","","","",null,null,null,null,"","","",""]
[null,null,null,null,null,null,null,null,null,null,null,"",null,"","",null,null,"","","","","",null,null,null,null,"","","",""]
[null,null,null,null,null,null,null,null,null,null,null,"",null,"","",null,null,"","","","","",null,null,null,null,"","","",""]
[null,null,null,null,null,null,null,null,null,null,null,"",null,"","",null,null,"","","","","",null,null,null,null,"","","",""]
[null,null,null,null,null,null,null,null,null,null,null,"",null,"","",null,null,"","","","","",null,null,null,null,"","","",""]
[null,null,null,null,null,null,null,null,null,null,null,"",null,"","",null,null,"","","","","",null,null,null,null,"","","",""]
[null,null,null,null,null,null,null,null,null,null,null,"",null,"","",null,null,"","","","","",null,null,null,null,"","","",""]
[null,null,null,null,null,null,null,null,null,null,null,"",null,"","",null,null,"","","","","",null,null,null,null,"","","",""]
[null,null,null,null,null,null,null,null,null,null,null,"",null,"","",null,null,"","","","","",null,null,null,null,"","","",""]
[null,null,null,null,null,null,null,null,null,null,null,"",null,"","",null,null,"","","","","",null,null,null,null,"","","",""]
[null,null,null,null,null,null,null,null,null,null,null,"",null,"","",null,null,"",{"$f":"IF(O5961<>\"\",IF(K5961<>\"Match Existing Cross Slope\",IF(O5961>0,VLOOKUP(K5961,$AX$16:$BC$23,4,FALSE)-O5961,VLOOKUP(K5961,$AX$16:$BC$23,4,FALSE)+O5961)),\"\")","v":""},"","","",null,null,null,null,"","","",""]
[null,null,null,null,null,null,null,null,null,null,null,"",null,"","",null,null,"","","","","",null,null,null,null,"","","",""]
[null,null,null,null,null,null,null,null,null,null,null,"",null,"","",null,null,"","","","","",null,null,null,null,"","","",""]
[null,null,null,null,null,null,null,null,null,null,null,"",null,"","",null,null,"","","","","",null,null,null,null,"","","",""]
[null,null,null,null,null,null,null,null,null,null,null,"",null,"","",null,null,"","","","","",null,null,null,null,"","","",""]
[null,null,null,null,null,null,null,null,null,null,null,"",null,"","",null,null,"","","","","",null,null,null,null,"","","",""]
[null,null,null,null,null,null,null,null,null,null,null,"",null,"","",null,null,"","","","","",null,null,null,null,"","","",""]
[null,null,null,null,null,null,null,null,null,null,null,"",null,"","",null,null,"","","","","",null,null,null,null,"","","",""]
[null,null,null,null,null,null,null,null,null,null,null,"",null,"","",null,null,"","","","","",null,null,null,null,"","","",""]
[null,null,null,null,null,null,null,null,null,null,null,"",null,"","",null,null,"","","","","",null,null,null,null,"","","",""]
[null,null,null,null,null,null,null,null,null,null,null,"",null,"","",null,null,"","","","","",null,null,null,null,"","","",""]
[null,null,null,null,null,null,null,null,null,null,null,"",null,"","",null,null,"","","","","",null,null,null,null,"","","",""]
[null,null,null,null,null,null,null,null,null,null,null,"",null,"","",null,null,"","","","","",null,null,null,null,"","","",""]
[null,null,null,null,null,null,null,null,null,null,null,"",null,"","",null,null,"","","","","",null,null,null,null,"","","",""]
[null,null,null,null,null,null,null,null,null,null,null,"",null,"","",null,null,"","","","","",null,null,null,null,"","","",""]
[null,null,null,null,null,null,null,null,null,null,null,"",null,"","",null,null,"","","","","",null,null,null,null,"","","",""]
[null,null,null,null,null,null,null,null,null,null,null,"",null,"","",null,null,"","","","","",null,null,null,null,"","","",""]
[null,null,null,null,null,null,null,null,null,null,null,"",null,"","",null,null,"","","","","",null,null,null,null,"","","",""]
[null,null,null,null,null,null,null,null,null,null,null,"",null,"","",null,null,"","","","","",null,null,null,null,"","","",{"$f":"IF(F5979<>\"\",F5979,\"\")","v":""}]
[null,null,null,null,null,null,null,null,null,null,null,"",null,"","",null,null,"","","","","",null,null,null,null,{"$f":"IF(C5980<>\"\",C5980,\"\")","v":""},"","",""]
[null,null,null,null,null,null,null,null,null,null,null,"",null,"","",null,null,"","","","","",null,null,null,null,"","","",""]
[null,null,null,null,null,null,null,null,null,null,null,"",null,"","",null,null,"","","","","",null,null,null,null,"","","",""]
[null,null,null,null,null,null,null,null,null,null,null,"",null,"","",null,null,"","","","","",null,null,null,null,"","","",""]
[null,null,null,null,null,null,null,null,null,null,null,"",null,"","",null,null,"","","","","",null,null,null,null,"","","",""]
[null,null,null,null,null,null,null,null,null,null,null,""]
[null,null,null,null,null,null,null,null,null,null,null,"",null,{"$f":"IF(M5986<>\"\",ROUND((VLOOKUP(J5986,AA$28:AD$2001,4,FALSE)-VLOOKUP(I5986,AA$28:AD$2001,4,FALSE)),2),\"\")","v":""},{"$f":"IF(M5986<>\"\",ROUND((VLOOKUP(J5986,AA$28:AD$2001,4,FALSE)-VLOOKUP(I5986,AA$28:AD$2001,4,FALSE))/M5986,3),\"\")","v":""},null,null,{"$f":"IF(O5986<>\"\",VLOOKUP(K5986,$AX$16:$BC$23,6,FALSE),\"\")","v":""},{"$f":"IF(O5986<>\"\",IF(K5986<>\"Match Existing Cross Slope\",IF(O5986>0,VLOOKUP(K5986,$AX$16:$BC$23,4,FALSE)-O5986,VLOOKUP(K5986,$AX$16:$BC$23,4,FALSE)+O5986)),\"\")","v":""},{"$f":"IF(S5986>=0,R5986,IF(AND(M5986>15,O5986>$BB$21),\"\",VLOOKUP(K5986,$AX$16:$BC$23,2,FALSE)&\" to \"&(1+ABS(O5986)*100&\"%\")))","v":""},{"$f":"IF(OR(T5986<>R5986,V5986=\"Yes\"),\"Yes\",\"\")","v":""},{"$f":"IF(AND(OR(K5986=\"Ramp Running Slope\",K5986=\"Sidewalk Running Slope\"),S5986>=0,S5986<0.01),\"Yes\",IF(AND(OR(K5986=\"Ramp Cross Slope\",K5986=\"Sidewalk Cross Slope\",K5986=\"Landing/Turning Space\"),S5986>=0,S5986<0.005),\"Yes\",\"\"))","v":""},null,null,null,null,{"$f":"IF(C5986<>\"\",C5986,\"\")","v":""},"","",""]
[null,null,null,null,null,null,null,null,null,null,null,"",null,"","",null,null,"","","","","",null,null,null,null,"","","",""]
[null,null,null,null,null,null,null,null,null,null,null,"",null,"","",null,null,"","","","","",null,null,null,null,"","","",""]
[null,null,null,null,null,null,null,null,null,null,null,"",null,"","",null,null,"","","","","",null,null,null,null,"","","",""]
[null,null,null,null,null,null,null,null,null,null,null,"",null,"","",null,null,"","","","","",null,null,null,null,"","","",""]
[null,null,null,null,null,null,null,null,null,null,null,"",null,"","",null,null,"","","","","",null,null,null,null,"","","",""]
[null,null,null,null,null,null,null,null,null,null,null,"",null,"","",null,null,"","","","","",null,null,null,null,"","","",""]
[null,null,null,null,null,null,null,null,null,null,null,"",null,"","",null,null,"","","","","",null,null,null,null,"","","",""]
[null,null,null,null,null,null,null,null,null,null,null,"",null,"","",null,null,"","","","","",null,null,null,null,"","","",""]
[null,null,null,null,null,null,null,null,null,null,null,"",null,"","",null,null,"","","","","",null,null,null,null,"","","",""]
[null,null,null,null,null,null,null,null,null,null,null,"",null,"","",null,null,"","","","","",null,null,null,null,"","","",""]
[null,null,null,null,null,null,null,null,null,null,null,"",null,"","",null,null,"","","","","",null,null,null,null,"","","",""]
[null,null,null,null,null,null,null,null,null,null,null,"",null,"","",null,null,"","","","","",null,null,null,null,"","","",""]
[null,null,null,null,null,null,null,null,null,null,null,"",null,"","",null,null,"","","","","",null,null,null,null,"","","",""]
[null,null,null,null,null,null,null,null,null,null,null,"",null,"","",null,null,"","","","","",null,null,null,null,"","","",""]
[null,null,null,null,null,null,null,null,null,null,null,null,null,"","",null,null,"","","","","",null,null,null,null,"","","",""]